Workbook

Sheet Cover
F3: Amendments made on 6 August 2014.
F4: Click here for details.
A8: Distribution Network Service Provider
A9: Annual reporting template
A11: This template is to be used by a DNSP to fulfil its annual reporting obligations to the AER.
A13: Colour coding of input sheets:
A14: Dark blue = AER instructions/headings
A15: Yellow = Input cells
A16: Grey = Not applicable/No inputs required
A18: Leave coloured cells blank if no information exists - PLEASE DO NOT ENTER TEXT unless specifically requested to do so.
A19: All dollar amounts are to be unrounded, and in nominal terms.
A22: DNSP - trading name: | E22: CitiPower Pty
A24: DNSP - Australian business number: | E24: ACN 064 651 056
A26: Reporting year: | E26: 2014
A30: Business address | D30: Address | F30: 40 Market Street
D31: Suburb | F31: Melbourne
E32: State | F32: VIC | G32: Postcode | H32: 3000
A34: Postal address | D34: Address | F34: Locked Bag 14090
D35: Suburb | F35: Melbourne
E36: State | F36: VIC | G36: Postcode | H36: 8001
A39: Contact name/s | D39: Hannah Williams
A40: Contact phone/s | D40: 03 9683 4088
A41: Contact email address/s | D41: hwilliams@powercor.com.au
A44: Consumer Price Index | D44: 2010 | E44: 2011 | F44: 2012 | G44: 2013 | H44: 2014 | I44: 2015
A45: ABS CPI (Pub No: 6401.0, All groups, 8 Capital Cities, Sept) | D45: 168.6 | E45: 173.3 | F45: 179.4 | G45: 182.9951904 | H45: 186.9498998 | I45: 191.2659972
A46: ABS CPI (Pub No: 6401.0, All groups, 8 Capital Cities, Sept) | D46: =E46/(1+E54) -> 93.79197324 | E46: =F46/(1+F54) -> 96.40657748 | F46: =G46/(1+G54) -> 99.8 | G46: =H46/(1+H54) -> 101.8 | H46: =I46/(1+I54) -> 104 | I46: 106.4010397
A47: CPI (per cent) | E47: =+E45/D45-1 -> 0.02787663108 | F47: =+F46/E46-1 -> 0.03519907675 | G47: =+G46/F46-1 -> 0.02004008016 | H47: =+H46/G46-1 -> 0.02161100196 | I47: =+I46/H46-1 -> 0.02308692
A48: Reconstructed index (2014 = 100) | D48: =+E48/(1+E47) -> 90.18458966 | E48: =+F48/(1+F47) -> 92.69863219 | F48: =+G48/(1+G47) -> 95.96153846 | G48: =+H48/(1+H47) -> 97.88461538 | H48: 100
A49: Reconstructed index (2015 = 100) | D49: =+E49/(1+E47) -> 89.16123336 | E49: =+F49/(1+F47) -> 91.64674817 | F49: 94.87262909 | G49: =+H49/(1+H47) -> 96.77388418 | H49: =+I49/(1+I47)^0.5 -> 98.86526478 | I49: 100
D50: * Above CPI is used to adjust forecasts from 2011-15 determination.
E54: =E45/D45-1 -> 0.02787663108 | F54: =F45/E45-1 -> 0.03519907675 | G54: =G45/F45-1 -> 0.02004008016 | H54: =H45/G45-1 -> 0.02161100196 | I54: =I45/H45-1 -> 0.02308692

Sheet Contents
C3: Electricity Distribution Network Service Provider Annual Reporting Template
D4: Table of contents
C7: Cover sheet | D7: Operating activities | E7: 18. Self Insurance
D8: 8a. Operating Activities (T)
C9: Reconciliation (deleted) | D9: 8b. Operating Activities (M) | E9: 19. CHAP
C11: 1a. Income Statement | D11: 9a. Operating Oheads (T) (deleted) | E11: 20. Related Party
C12: 1b. Provisions (deleted) | D12: 9b. Operating Oheads (M) (deleted)
E13: 21. AMI
C14: 2. Demand and Revenue | D14: Overheads
D15: 10. Overheads Allocation (deleted) | E15: 22. Safety and Bushfire
C16: Capex
C17: 3a. Capex - total | D17: 11. Total Overheads (deleted) | E17: 23. Shared assets
C18: 3b. Capex - margins
D19: Other information | E19: Pricing proposal
C20: 4a. Capex overheads - total (deleted) | D20: 12. Cost categories (deleted) | E20: 24. Unmetered supply
C21: 4b. Capex overheads - Margins (deleted)
D22: 13. Avoided Cost Payments | E22: 25. Actual t-2 Distr Tariff
C23: 5. Capex for tax depreciation
D24: 14. Alt Control&Others | E24: 26. Actual t-2 Trans Tariff
C25: Maintenance
C26: 6a. Maintenance - total | D26: 15. EBSS | E26: 27. TUoS cost audit (t-2)
C27: 6b. Maintenance - margin
D28: 16. Juris Scheme | E28: 28. Actual t-2 Juris Revenue
C29: 7a. Maintenance overhead -total (deleted)
C30: 7b. Maintenance ohead - margin (deleted) | D30: 17. DMIS-DMIA | E30: 29. Juris cost audit template

Sheet 1a. Income
B1: =Cover!E22 -> CitiPower Pty
B2: Income Statement
B3: =Cover!E26 -> 2014
E4: Colour coding:
B5: Dollar unit used in this sheet | E5: Yellow = Input cells
B6: nominal $'000 | E6: Grey = No inputs required
B8: This information is used to monitor revenues for each service classification. Elements of the information are used to calculate financial ratios, used for intra and inter-business comparison and reconcile statutory amounts with regulatory amounts.
B12: Statutory Account code or reference to account code | C12: Description | D12: Audited Statutory Accounts | E12: Adjustments | F12: Distribution business | G12: Standard Control Services | H12: AMI | I12: Alternative Control Services - Public Lighting | K12: Alternative Control Services | M12: Negotiated Services | N12: Unregulated Services
I13: Energy efficient | J13: Non energy efficient | K13: Fee based services | L13: Quoted services
C14: Distribution Revenue | D14: 308156.3724 | E14: 0 | F14: 308156.3724 | G14: 254485.6561 | H14: 39623.20664 | I14: 1771.474078 | J14: 2752.811502 | K14: 5972.255693 | L14: 3456.46758 | M14: 94.51791 | N14: 0
C15: TUOS revenue | D15: 70755.29311 | E15: -70755.29311 | F15: 0 | G15: 0 | H15: 0 | I15: 0 | J15: 0 | K15: 0 | L15: 0 | M15: 0 | N15: 0
C16: Cross boundary revenue | D16: 3618.49768 | E16: -3618.49768 | F16: 0 | G16: 0 | H16: 0 | I16: 0 | J16: 0 | K16: 0 | L16: 0 | M16: 0 | N16: 0
C17: Jurisdictional Scheme Amounts | D17: 2823.84083 | E17: -2823.84083 | F17: 0 | G17: 0 | H17: 0 | I17: 0 | J17: 0 | K17: 0 | L17: 0 | M17: 0 | N17: 0
C18: Profit from sale of Fixed Assets | D18: -46.16064 | E18: 46.16064 | F18: 0 | G18: 0 | H18: 0 | I18: 0 | J18: 0 | K18: 0 | L18: 0 | M18: 0 | N18: 0
C19: Customer Contributions | D19: 24152.12042 | E19: -24152.12042 | F19: 0 | G19: 0 | H19: 0 | I19: 0 | J19: 0 | K19: 0 | L19: 0 | M19: 0 | N19: 0
C20: Interest income | D20: 225.30643 | E20: 0 | F20: 225.30643 | G20: 206.8057165 | H20: 16.87791043 | I20: 0.536823985 | J20: 1.085979037 | K20: 0 | L20: 0 | M20: 0 | N20: 0
C21: Revenue from use of RAB assets for non-SCS purposes | D21: 0 | E21: 0 | F21: 0 | G21: 0 | H21: 0 | I21: 0 | J21: 0 | K21: 0 | L21: 0 | M21: 0 | N21: 0
C22: Other Revenue | D22: 28445.56914 | E22: -27965.88863 | F22: 479.68051 | G22: 1353.52263 | H22: -3611.23983 | I22: -48.368 | J22: 0 | K22: 0 | L22: 0 | M22: 0 | N22: 2785.76571
C23: Total revenue | D23: =SUM(D14:D22) -> 438130.8394 | E23: -129269.48 | F23: 308861.3593 | G23: 256045.9845 | H23: 36028.84472 | I23: 1723.642902 | J23: 2753.897481 | K23: 5972.255693 | L23: 3456.46758 | M23: 94.51791 | N23: 2785.76571
C24: TUOS costs | D24: 70755.29311 | E24: -70755.29311 | F24: 0 | G24: 0 | H24: 0 | I24: 0 | J24: 0 | K24: 0 | L24: 0 | M24: 0 | N24: 0
C25: Cross boundary costs | D25: 3618.49768 | E25: -3618.49768 | F25: 0 | G25: 0 | H25: 0 | I25: 0 | J25: 0 | K25: 0 | L25: 0 | M25: 0 | N25: 0
C26: Jurisdictional Scheme Amounts | D26: 2823.84083 | E26: -2823.84083 | F26: 0 | G26: 0 | H26: 0 | I26: 0 | J26: 0 | K26: 0 | L26: 0 | M26: 0 | N26: 0
C27: Maintenance | D27: 38974.38224 | E27: 0 | F27: 38974.38224 | G27: 31071.68328 | H27: 912.8298254 | I27: 1046.280702 | J27: 2116.594902 | K27: 1930.550826 | L27: 1896.442701 | M27: 0 | N27: 0
C28: Operating Expenses | D28: 64732.21033 | E28: -24121.88869 | F28: 40610.32164 | G28: 25910.60646 | H28: 8648.352319 | I28: 27.74980823 | J28: 56.13704097 | K28: 3185.425877 | L28: 2782.05013 | M28: 0 | N28: 0
C29: Depreciation | D29: 71829.27869 | E29: 31522.63222 | F29: 103351.9109 | G29: 84256.09457 | H29: 18368.9858 | I29: 240.4358748 | J29: 486.3946603 | K29: 0 | L29: 0 | M29: 0 | N29: 0
C30: Finance Charges | D30: 9508.62148 | E30: -9531.32655 | F30: -22.70507 | G30: -22.70507 | H30: 0 | I30: 0 | J30: 0 | K30: 0 | L30: 0 | M30: 0 | N30: 0
C31: Loss from sale of Fixed Assets | D31: 0 | E31: 46.16064 | F31: 46.16064 | G31: 46.16064 | H31: 0 | I31: 0 | J31: 0 | K31: 0 | L31: 0 | M31: 0 | N31: 0
C32: Impairment Losses (Nature) | D32: 0 | E32: 0 | F32: 0 | G32: 0 | H32: 0 | I32: 0 | J32: 0 | K32: 0 | L32: 0 | M32: 0 | N32: 0
C33: Costs from use of RAB assets for non-SCS purposes | D33: 0 | E33: 0 | F33: 0 | G33: 0 | H33: 0 | I33: 0 | J33: 0 | K33: 0 | L33: 0 | M33: 0 | N33: 0
C34: Other | D34: 0 | E34: 0 | F34: 0 | G34: 0 | H34: 0 | I34: 0 | J34: 0 | K34: 0 | L34: 0 | M34: 0 | N34: 0
C35: Profit before Tax (PBT) | D35: =D23-SUM(D24:D34) -> 175888.715 | E35: -49987.42602 | F35: 125901.289 | G35: 114784.1446 | H35: 8098.676774 | I35: 409.1765168 | J35: 94.77087724 | K35: 856.2789889 | L35: -1222.025251 | M35: 94.51791 | N35: 2785.76571
C36: Income Tax Expenses /(Benefit) | D36: 2562.715 | E36: -728.3214643 | F36: 1834.393536 | G36: 1672.415704 | H36: 117.9984768 | I36: 5.961740053 | J36: 1.38082053 | K36: 12.47606482 | L36: -17.805022 | M36: 1.377134774 | N36: 40.5888665
C37: Profit after tax | D37: =D35-D36 -> 173326 | E37: -49259.10455 | F37: 124066.8954 | G37: 113111.7289 | H37: 7980.678297 | I37: 403.2147767 | J37: 93.39005671 | K37: 843.8029241 | L37: -1204.220229 | M37: 93.14077523 | N37: 2745.176844
B39: Note:
B40: Balancing is required at distribution business level: Distribution business = SCS+AMI+ACS+Negotiated services; and Audited Statutory accounts + Adjustments = Distribution business
B42: In addition it is mandatory to produce for each cost or revenue item that has been allocated to the distribution services/AMI a supporting
B43: workpaper that includes the following:
B44: a) the amounts that have been directly attributed to each distribution service
B45: b) the amounts that have been allocated to each distribution service
B46: c) a description of the allocation basis
B47: d) the numeric quantity of each allocator.
B50: Definitions
B51: The accounting terms used in this template have the same meaning as is used for the prepartion of the statutory accounts.
B52: The service classifications have the same meaning as that used in Citipower's approved CAM.
B53: Audited statutory accounts: | C53: the audited set of accounts prepared in accordance with the requirements of the Australian Securities and Investments Commission (ASIC) and the Corporations Act 2001 (Cth).

Sheet 2. Demand and Revenue
B1: =Cover!E22 -> CitiPower Pty
B2: Total Revenue and Demand
B3: =Cover!E26 -> 2014
D4: Colour coding:
B5: Dollar unit used in this sheet | D5: Yellow = Input cells
B6: nominal $'000 | D6: Grey = No inputs required
B8: Table 1 Standard Control Services Revenue - Current Year
B9: Note: insert additional rows as necessary
B11: Statutory Account code or reference to account code | C11: Tariff categories | D11: Amount of Electricity Distributed (GWh) | E11: Distribution Revenue
C12: C1R - Residential Single Rate | D12: 793.9918938 | E12: 50088.04761
C13: C1RB - Residential Single Rate - Bulk | D13: 99.82459949 | E13: 5446.576892
C14: C13R - Residential - flexible pricing | D14: 1.794664026 | E14: 78.53352047
C15: C13RB - Residential - flexible pricing bulk | D15: 0.2469302743 | E15: 11.27068031
C16: C2R - Residential Two Rate | D16: 80.84850937 | E16: 4509.157905
C17: C2RB - Residential Two Rate - Bulk | D17: 27.99112142 | E17: 1308.92453
C18: C2ROP - Residential Two Rate 5d - Controlled Load | D18: 9.298438747 | E18: 95.35228214
C19: C2RBOP - Residential Two Rate 5d - Bulk - Controlled Load | D19: 3.412508261 | E19: 23.24321864
C20: C3R - Residential Three Rate | D20: 112.6929774 | E20: 7122.18968
C21: C3RB - Residential Three Rate - Bulk | D21: 29.08956351 | E21: 1857.777421
C22: CDS - Dedicated Supplies | D22: 39.02053381 | E22: 338.9975471
C23: CDSB - Dedicated Supplies - Bulk | D23: 2.514395962 | E23: 19.18239431
C24: C1G - General Purpose Single Rate | D24: 305.9749998 | E24: 20440.27112
C25: C1GB - General Purpose Single Rate - Bulk | D25: 121.513148 | E25: 6427.69475
C26: C2G5 - General Purpose Two Rate (5 day peak) | D26: 550.4749611 | E26: 31215.95601
C27: C2G5B - General Purpose Two Rate (5 day peak) bulk | D27: 183.1541826 | E27: 7275.603366
C28: C3G - General Purpose Interval | D28: 198.6059251 | E28: 11792.07658
C29: C3GB - General Purpose Interval Bulk | D29: 299.2961528 | E29: 12104.17329
C30: C14G - Non-Residential | D30: 1.017737894 | E30: 29.11669581
C31: C14GB - Non-Residential - Bulk | D31: 2.148939807 | E31: 49.14708135
C32: C2G7 - General Purpose Two Rate (7 day peak) | D32: 127.9638302 | E32: 5996.625572
C33: C2G7B - General Purpose Two Rate (7 day peak) bulk | D33: 33.9485955 | E33: 1177.682199
C34: C2U - Unmetered Supplies | D34: 37.06667748 | E34: 1363.356554
C35: C2DL - Large LV Demand metered | D35: 155.8447374 | E35: 6370.438766
C36: C2L7 - Large two Rate (7 day Peak) Bulk | D36: 20.84669674 | E36: 834.9955109
C37: C2DLB - Large LV Demand metered bulk | D37: 1814.490146 | E37: 59969.68909
C38: C2DLER - Large LV Demand R | D38: 0 | E38: 0
C39: C2DLEG - Large LV Demand G | D39: 6.58300589 | E39: 339.1731671
C40: C2DLBER - Large LV Demand Bulk R | D40: 0 | E40: 0
C41: C2DLBEG - Large LV Demand Bulk G | D41: 174.9030756 | E41: 5800.118581
C42: C2DH - HV Demand Metered | D42: 564.7918565 | E42: 11405.80607
C43: C2DHD1 - HV Holden | D43: 0 | E43: 0
C44: C2DHER - HV Demand R | D44: 0 | E44: 0
C45: C2DHEG - HV Demand G | D45: 8.383355728 | E45: 215.5325619
C46: C2DT - Subtransmission | D46: 111.6679116 | E46: 778.9454698
C48: Total | D48: =SUM(D12:D46) -> 5919.402072 | E48: =SUM(E12:E46) -> 254485.6561
B50: Table 2 Standard Control Revenue - Prior Year
B51: Note: insert additional rows as necessary
B53: Statutory Account code or reference to account code | C53: Tariff categories | D53: Amount of Electricity Distributed (GWh) | E53: Distribution Revenue
C54: C1R - Residential Single Rate | D54: 851.1856759 | E54: 47424.10842
C55: C1RB - Residential Single Rate - Bulk | D55: 105.8122963 | E55: 4677.545341
C56: C13R - Residential - flexible pricing | D56: 0.04962750086 | E56: 2.016407861
C57: C13RB - Residential - flexible pricing bulk | D57: 0.002024457011 | E57: 0.05676260849
C58: C2R - Residential Two Rate | D58: 94.84890674 | E58: 4414.037228
C59: C2RB - Residential Two Rate - Bulk | D59: 33.96558932 | E59: 1292.617995
C60: C3R - Residential Three Rate | D60: 110.5816015 | E60: 6401.983559
C61: C3RB - Residential Three Rate - Bulk | D61: 26.36209603 | E61: 1363.3528
C62: CDS - Dedicated Supplies | D62: 44.16413979 | E62: 406.4537123
C63: CDSB - Dedicated Supplies - Bulk | D63: 2.607201063 | E63: 21.09130611
C64: C1G - General Purpose Single Rate | D64: 311.9795111 | E64: 16901.8031
C65: C1GB - General Purpose Single Rate - Bulk | D65: 128.8571628 | E65: 5570.409744
C66: C2G5 - General Purpose Two Rate (5 day peak) | D66: 584.3859169 | E66: 30912.43214
C67: C2G5B - General Purpose Two Rate (5 day peak) bulk | D67: 200.0208583 | E67: 8280.931343
C68: C3G - General Purpose Interval | D68: 191.4802289 | E68: 10520.72593
C69: C3GB - General Purpose Interval Bulk | D69: 307.0903285 | E69: 12802.45101
C70: C2G7 - General Purpose Two Rate (7 day peak) | D70: 134.8976078 | E70: 6341.896887
C71: C2G7B - General Purpose Two Rate (7 day peak) bulk | D71: 35.17882169 | E71: 1257.008867
C72: C2U - Unmetered Supplies | D72: 39.0223705 | E72: 1312.977765
C73: C2DL - Large LV Demand metered | D73: 153.5002724 | E73: 5404.846789
C74: C2L7 - Large two Rate (7 day Peak) Bulk | D74: 21.68231087 | E74: 895.9590255
C75: C2DLB - Large LV Demand metered bulk | D75: 1825.530713 | E75: 53871.75662
C76: C2DLER - Large LV Demand R | D76: 0 | E76: 0
C77: C2DLEG - Large LV Demand G | D77: 6.25196906 | E77: 170.5814345
C78: C2DLBER - Large LV Demand Bulk R | D78: 0 | E78: 0
C79: C2DLBEG - Large LV Demand Bulk G | D79: 113.4410018 | E79: 3456.695787
C80: C2DH - HV Demand Metered | D80: 534.4989675 | E80: 10043.92503
C81: C2DHD1 - HV Holden | D81: 0 | E81: 0
C82: C2DHER - HV Demand R | D82: 0 | E82: 0
C83: C2DHEG - HV Demand G | D83: 8.911752727 | E83: 206.4313797
C84: C2DT - Subtransmission | D84: 115.045997 | E84: 716.2466916
C85: Total | D85: =SUM(D54:D84) -> 5981.354949 | E85: =SUM(E54:E84) -> 234670.3431
B87: Table 3 AMI - Current Year
B88: Note: 'Number of Meters\NMIs refers to end of year figures
B90: Statutory Account code or reference to account code | C90: Tariff categories | D90: Number of Meters\NMIs\Lights | E90: Metering Revenue
C91: MP - Single phase non-off peak meter | D91: 200361.9167 | E91: 23380.22289
C92: MP - Single phase off peak meter | D92: 55147.5 | E92: 6435.159251
C93: MP - Two or threee phase direct connet | D93: 58483.41667 | E93: 8919.476599
C94: MP - Two or threee phase current transformer connet | D94: 2366.083333 | E94: 455.7810827
C95: 0 | D95: 0 | E95: 0
C96: 0 | D96: 0 | E96: 0
C97: 0 | D97: 0 | E97: 0
C98: Total | D98: =SUM(D91:D97) -> 316358.9167 | E98: =SUM(E91:E97) -> 39190.63982
B101: Table 4 AMI - Prior Year
B102: Note: 'Number of Meters\NMIs refers to end of year figures
B104: Statutory Account code or reference to account code | C104: Tariff categories | D104: Number of Meters | E104: Metering Revenue
C105: MP - Single phase non-off peak meter | D105: 201725.6556 | E105: 25713.34764
C106: MP - Single phase off peak meter | D106: 52896.97449 | E106: 6742.614323
C107: MP - Two or threee phase direct connet | D107: 56477.48767 | E107: 9408.711022
C108: MP - Two or threee phase current transformer connet | D108: 2213.699013 | E108: 465.802551
C109: 0 | D109: 0 | E109: 0
C110: 0 | D110: 0 | E110: 0
C111: 0 | D111: 0 | E111: 0
C112: Total | D112: =SUM(D105:D111) -> 313313.8167 | E112: =SUM(E105:E111) -> 42330.47554
B115: Table 5 Public lighting- Current Year
B117: Statutory Account code or reference to account code | C117: Tariff categories | D117: Number of Lights | E117: Public Lighting Revenue
C118: MDs - Unmetered Supplies | D118: 64955.40194 | E118: 81.56448
C119: 0 | D119: 0 | E119: 0
C120: 0 | D120: 0 | E120: 0
C121: 0 | D121: 0 | E121: 0
C122: 0 | D122: 0 | E122: 0
C123: 0 | D123: 0 | E123: 0
C124: 0 | D124: 0 | E124: 0
C125: Total | D125: =SUM(D118:D124) -> 64955.40194 | E125: =SUM(E118:E124) -> 81.56448
B128: Table 6 Public lighting - Prior Year
B130: Statutory Account code or reference to account code | C130: Tariff categories | D130: Number of Lights | E130: Public Lighting Revenue
C131: MDs - Unmetered Supplies | D131: 63645 | E131: 88.86450923
C132: 0 | D132: 0 | E132: 0
C133: 0 | D133: 0 | E133: 0
C134: 0 | D134: 0 | E134: 0
C135: 0 | D135: 0 | E135: 0
C136: 0 | D136: 0 | E136: 0
C137: 0 | D137: 0 | E137: 0
C138: Total | D138: =SUM(D131:D137) -> 63645 | E138: =SUM(E131:E137) -> 88.86450923
B140: Table 7 Total annual retailer charges
B142: TARC is defined as the total annual amount of network charges billed by the Citipower to all retailers as most recently reported by Citipower to the AER, or total annual amount of network charges billed by Citipower to all retailers.
B144: TARC | C144: 385259.5032

Sheet 3a. Capex - total
B1: CitiPower
B2: Capex total
B3: =Cover!E26 -> 2014
D4: Colour coding:
B5: Dollar unit used in this sheet | D5: Yellow = Input cells
B6: nominal $'000 | D6: Grey = No inputs required
B8: The information on sheets 5 and 6 is necessary for monitoring capex and will be used to inform the AER's assessment of capex and its underlying drivers at the next reset. It will also be used to assist in any comparative analysis undertaken by the AER within the current and future regulatory control periods.
B10: Instructions:
B11: Reported expenditure must EXCLUDE capital contributions, except for Table 5.
B12: Reported expenditure must INCLUDE any profit margins or management fees paid directly or indirectly to related party contractors (which is not an actual incurred cost of the related party contractor) for the regulatory reporting period.
B13: Forecast expenditure is to be taken from the 2011-15 distribution determination. This forecast is adjusted using the CPI calculations on the cover sheet.
B14: If allocating based on assumptions then provide method.
B15: All adjustments must be explained with supporting documentation attached.
B18: Table 1 Standard Control Services - capex by purpose by voltage level
C20: Forecast | D20: Adjusted Forecast | E20: Actual | F20: Difference (%) | G20: Sub-transmission | H20: HV | I20: LV | J20: Other
B21: Demand Related
B22: Reinforcement | C22: 50696.26826 | D22: =IF(Cover!$E$26=2014,((C22/Cover!$D$48)*Cover!$H$48),((C22/Cover!$D$49)*Cover!$I$49)) -> 56213.89248 | E22: =SUM(G22:J22) -> 49355.17685 | F22: =IF(D22=0,1,((E22-D22)/D22)*1) -> -0.1220110426 | G22: 11524.42864 | H22: 27097.76317 | I22: 10450.2292 | J22: 282.7558438
B23: New customer connection | C23: 47282.43563 | D23: =IF(Cover!$E$26=2014,((C23/Cover!$D$48)*Cover!$H$48),((C23/Cover!$D$49)*Cover!$I$49)) -> 52428.50891 | E23: 46412.86017 | F23: =IF(D23=0,1,((E23-D23)/D23)*1) -> -0.114740031 | G23: 10837.398 | H23: 25482.32573 | I23: 9827.237129 | J23: 265.8993095
B24: Non Demand Related
B25: Reliability & quality maintained | C25: 35744.10435 | D25: =IF(Cover!$E$26=2014,((C25/Cover!$D$48)*Cover!$H$48),((C25/Cover!$D$49)*Cover!$I$49)) -> 39634.38153 | E25: 24823.22837 | F25: =IF(D25=0,1,((E25-D25)/D25)*1) -> -0.37369457 | G25: 5796.221233 | H25: 13628.84314 | I25: 5255.951704 | J25: 142.2122933
B26: Environmental, safety & legal | C26: 7333.000069 | D26: =IF(Cover!$E$26=2014,((C26/Cover!$D$48)*Cover!$H$48),((C26/Cover!$D$49)*Cover!$I$49)) -> 8131.100997 | E26: 12045.21053 | F26: 0.4813750973 | G26: 2812.555401 | H26: 6613.252815 | I26: 2550.395294 | J26: 69.00701983
B27: Sub-total | C27: =C22+C23+C25+C26 -> 141055.8083 | D27: =D22+D23+D25+D26 -> 156407.8839 | E27: =E22+E23+E25+E26 -> 132636.4759 | F27: -0.1519834384 | G27: =G22+G23+G25+G26 -> 30970.60328 | H27: =H22+H23+H25+H26 -> 72822.18485 | I27: =I22+I23+I25+I26 -> 28083.81332 | J27: =J22+J23+J25+J26 -> 759.8744664
B28: SCADA/Network control | C28: 2952.345662 | D28: =IF(Cover!$E$26=2014,((C28/Cover!$D$48)*Cover!$H$48),((C28/Cover!$D$49)*Cover!$I$49)) -> 3273.669785 | E28: 2621.52439 | F28: -0.1992092782 | G28: 0 | H28: 0 | I28: 0 | J28: 2621.52439
B29: Non network general - IT | C29: 12766.54259 | D29: =IF(Cover!$E$26=2014,((C29/Cover!$D$48)*Cover!$H$48),((C29/Cover!$D$49)*Cover!$I$49)) -> 14156.0134 | E29: 8778.28108 | F29: -0.3798903099 | G29: 0 | H29: 0 | I29: 0 | J29: 8778.28108
B30: Non network general - other | C30: 3383.508875 | D30: =IF(Cover!$E$26=2014,((C30/Cover!$D$48)*Cover!$H$48),((C30/Cover!$D$49)*Cover!$I$49)) -> 3751.759461 | E30: 5017.46242 | F30: 0.3373625022 | G30: 0 | H30: 0 | I30: 0 | J30: 5017.46242
B31: Metering - Non AMI | C31: 0 | D31: =IF(Cover!$E$26=2014,((C31/Cover!$D$48)*Cover!$H$48),((C31/Cover!$D$49)*Cover!$I$49)) -> 0 | E31: 0 | F31: 1 | G31: 0 | H31: 0 | I31: 0 | J31: 0
B32: Standard Control - Total Capex | C32: =SUM(C27:C31) -> 160158.2054 | D32: =SUM(D27:D31) -> 177589.3266 | E32: =SUM(E27:E31) -> 149053.7438 | F32: -0.160682983 | G32: 30970.60328 | H32: =SUM(H27:H31) -> 72822.18485 | I32: 28083.81332 | J32: 17177.14236
B34: Table 2: Material difference explanation
B35: Where the difference between forecast and actual expenditure shown in table 1, column E is greater than ±10per cent, please explain the main factors driving the difference.
C37: Reason for material difference
B38: Demand Related
B39: Reinforcement | C39: Expenditure is less than forecast at the 2011-15 EDPR Final Determination as a result of: 1. While the initial stages of the CBD Security Project have been completed, the final stages of the project have been delayed as a result of more detailed analysis of options relating to the condition of the substation W building. The conclusion of the options analysis is to proceed with the plan to demolish and replace the W building, which has now commenced. 2. The delay in the development of the Brunswick Terminal Station bu AusNet Services has changed the timing of several elements of the Metro Capacity Upgrade Project, and other projects that would have increased the 66kV supply requirementrs from the now constrained West Melbourne Terminal Station. These delayed projects have been partially offset by reinforcement expenditure to provide replacement capacity to allow for the decommissioning of the Prahran zone substation.
B40: New customer connection | C40: Economic conditions are still improving following the impacts of the GFC, resulting in less connection expenditure in 2014 than forecast at the 2011-15 EDPR.
B41: Non Demand Related
B42: Reliability & quality maintained | C42: Efficiencies realised by the strategy of decommissioning ageing zone substations and avoiding replacement expenditure, but with some offsetting reinforcement expenditure.
B43: Environmental, safety & legal | C43: Work volumes related to overhead lines were greater than forecast at the 2011-15 EDPR.
B44: Other
B45: SCADA/Network control | C45: The absolute expenditure variance is not material.
B46: Non network general - IT | C46: Over the regulatory period standard control systems have been maintained and enhanced due to the focus on the implementation of smart meter related systems (not included in the analysis below). Beginning in 2014, Powercor has re-commenced its investment in these standard control systems.
B47: Non network general - other | C47: Purchase of new fleet including a crane borer and light fleet to to support operational requirements; and upgrade of the fleet to address changes in safety and compliance as required by Australian Standards (AS) or Australian Design Rules (ADR).
B48: Metering - Non AMI
B50: Table 3 Capex by asset class
B52: Asset class | C52: Audited Statutory Accounts | D52: Adjustments | E52: Forecast | F52: Adjusted Forecast | G52: Actual | H52: Movements in provisions allocated to as-incurred capex | I52: Difference (%)
B53: Subtransmission | C53: 0 | D53: 0 | E53: 25728.80754 | F53: =IF(Cover!$E$26=2014,((E53/Cover!$D$48)*Cover!$H$48),((E53/Cover!$D$49)*Cover!$I$49)) -> 28529.05095 | G53: 30970.60328 | H53: 144.718716 | I53: =IF(F53=0,1,((G53-F53)/F53)*1) -> 0.08558126699
B54: Distribution system assets | C54: 0 | D54: 0 | E54: 115327.0008 | F54: =IF(Cover!$E$26=2014,((E54/Cover!$D$48)*Cover!$H$48),((E54/Cover!$D$49)*Cover!$I$49)) -> 127878.833 | G54: 101665.8726 | H54: 475.0619294 | I54: -0.2049827928
B55: Metering | C55: 0 | D55: 0 | E55: 0 | F55: =IF(Cover!$E$26=2014,((E55/Cover!$D$48)*Cover!$H$48),((E55/Cover!$D$49)*Cover!$I$49)) -> 0 | G55: 0 | H55: 0 | I55: 1
B56: Public Lighting | C56: 0 | D56: 0 | E56: 0 | F56: =IF(Cover!$E$26=2014,((E56/Cover!$D$48)*Cover!$H$48),((E56/Cover!$D$49)*Cover!$I$49)) -> 0 | G56: 0 | H56: 0 | I56: 1
B57: SCADA/Network control | C57: 0 | D57: 0 | E57: 2952.345662 | F57: =IF(Cover!$E$26=2014,((E57/Cover!$D$48)*Cover!$H$48),((E57/Cover!$D$49)*Cover!$I$49)) -> 3273.669785 | G57: 2621.52439 | H57: 12.24979831 | I57: -0.1992092782
B58: Non network - IT | C58: 0 | D58: 0 | E58: 12766.54259 | F58: =IF(Cover!$E$26=2014,((E58/Cover!$D$48)*Cover!$H$48),((E58/Cover!$D$49)*Cover!$I$49)) -> 14156.0134 | G58: 8778.28108 | H58: 41.01894803 | I58: -0.3798903099
B59: Non network - other | C59: 0 | D59: 0 | E59: 3383.508875 | F59: =IF(Cover!$E$26=2014,((E59/Cover!$D$48)*Cover!$H$48),((E59/Cover!$D$49)*Cover!$I$49)) -> 3751.759461 | G59: 5017.46242 | H59: 23.44548191 | I59: 0.3373625022
B60: Equity Raising Costs | C60: 0 | D60: 0 | E60: 0 | F60: =IF(Cover!$E$26=2014,((E60/Cover!$D$48)*Cover!$H$48),((E60/Cover!$D$49)*Cover!$I$49)) -> 0 | G60: 0 | H60: 0 | I60: 1
B61: AMI | C61: 0 | D61: 0 | E61: 5609.440457 | F61: =IF(Cover!$E$26=2014,((E61/Cover!$D$48)*Cover!$H$48),((E61/Cover!$D$49)*Cover!$I$49)) -> 6219.954516 | G61: 4859.062024 | H61: 0 | I61: -0.218794605
B62: Victorian Bushfires Royal Commission | C62: 0 | D62: 0 | E62: 0 | F62: =IF(Cover!$E$26=2014,((E62/Cover!$D$48)*Cover!$H$48),((E62/Cover!$D$49)*Cover!$I$49)) -> 0 | G62: 0 | H62: 0 | I62: 1
B63: Alternative control fee and quoted services | C63: 0 | D63: 0 | E63: 0 | F63: =IF(Cover!$E$26=2014,((E63/Cover!$D$48)*Cover!$H$48),((E63/Cover!$D$49)*Cover!$I$49)) -> 0 | G63: 1937.318658 | H63: 0 | I63: 1
B64: Negotiated | C64: 0 | D64: 0 | E64: 0 | F64: =IF(Cover!$E$26=2014,((E64/Cover!$D$48)*Cover!$H$48),((E64/Cover!$D$49)*Cover!$I$49)) -> 0 | G64: -223.5893618 | H64: 0 | I64: 1
B65: Unregulated | C65: 0 | D65: 0 | E65: 0 | F65: =IF(Cover!$E$26=2014,((E65/Cover!$D$48)*Cover!$H$48),((E65/Cover!$D$49)*Cover!$I$49)) -> 0 | G65: 0 | H65: 0 | I65: 1
B66: Total (system and non system) | C66: =SUM(C53:C65) -> 0 | D66: 0 | E66: =SUM(E53:E65) -> 165767.6459 | F66: =SUM(F53:F65) -> 183809.2811 | G66: =SUM(G53:G65) -> 155626.5351 | H66: =SUM(H53:H65) -> 696.4948736 | I66: -0.1533260224
B68: Table 4 Other Capex
C70: Forecast | D70: Adjusted Forecast | E70: Actual | F70: Difference (%) | G70: Sub-transmission | H70: HV | I70: LV | J70: Other
B71: AMI
B72: Accumulation Meters | C72: 0 | D72: =IF(Cover!$E$26=2014,((C72/Cover!$D$48)*Cover!$H$48),((C72/Cover!$D$49)*Cover!$I$49)) -> 0 | E72: =SUM(G72:J72) -> 0 | F72: =IF(D72=0,1,((E72-D72)/D72)*1) -> 1 | G72: 0 | H72: 0 | I72: 0 | J72: 0
B73: Manually read interval meters | C73: 0 | D73: =IF(Cover!$E$26=2014,((C73/Cover!$D$48)*Cover!$H$48),((C73/Cover!$D$49)*Cover!$I$49)) -> 0 | E73: =SUM(G73:J73) -> 14.06803 | F73: 1 | G73: 0 | H73: 0 | I73: 0 | J73: 14.06803
B74: Remotely read interval meters & transformers | C74: 2346.070494 | D74: =IF(Cover!$E$26=2014,((C74/Cover!$D$48)*Cover!$H$48),((C74/Cover!$D$49)*Cover!$I$49)) -> 2601.409512 | E74: 1693.84378 | F74: -0.3488746112 | G74: 0 | H74: 0 | I74: 0 | J74: 1693.84378
B75: AMI communication | C75: 121.875321 | D75: =IF(Cover!$E$26=2014,((C75/Cover!$D$48)*Cover!$H$48),((C75/Cover!$D$49)*Cover!$I$49)) -> 135.139852 | E75: 278.6796545 | F75: 1.062157464 | G75: 0 | H75: 0 | I75: 0 | J75: 278.6796545
B76: Metering data services (IT) | C76: 3141.494642 | D76: =IF(Cover!$E$26=2014,((C76/Cover!$D$48)*Cover!$H$48),((C76/Cover!$D$49)*Cover!$I$49)) -> 3483.405152 | E76: 2872.47056 | F76: -0.1753843051 | G76: 0 | H76: 0 | I76: 0 | J76: 2872.47056
B77: Metering data services (other) | C77: 0 | D77: =IF(Cover!$E$26=2014,((C77/Cover!$D$48)*Cover!$H$48),((C77/Cover!$D$49)*Cover!$I$49)) -> 0 | E77: 0 | F77: 1 | G77: 0 | H77: 0 | I77: 0 | J77: 0
B78: AMI - Total | C78: =SUM(C72:C77) -> 5609.440457 | D78: =SUM(D72:D77) -> 6219.954516 | E78: 4859.062024 | F78: -0.218794605 | G78: =SUM(G72:G77) -> 0 | H78: =SUM(H72:H77) -> 0 | I78: =SUM(I72:I77) -> 0 | J78: =SUM(J72:J77) -> 4859.062024
B79: Alternative Control services
B80: Public lighting - energy efficient | C80: 0 | D80: =IF(Cover!$E$26=2014,((C80/Cover!$D$48)*Cover!$H$48),((C80/Cover!$D$49)*Cover!$I$49)) -> 0 | E80: =SUM(G80:J80) -> 686.9618696 | F80: =IF(D80=0,1,((E80-D80)/D80)*1) -> 1 | G80: 0 | H80: 0 | I80: 0 | J80: 686.9618696
B81: Public lighting - non energy efficient | C81: 0 | D81: =IF(Cover!$E$26=2014,((C81/Cover!$D$48)*Cover!$H$48),((C81/Cover!$D$49)*Cover!$I$49)) -> 0 | E81: 1250.356788 | F81: 1 | G81: 0 | H81: 0 | I81: 0 | J81: 1250.356788
B82: Public Lighting - Total | C82: =SUM(C80:C81) -> 0 | D82: =SUM(D80:D81) -> 0 | E82: 1937.318658 | F82: 1 | G82: =SUM(G80:G81) -> 0 | H82: =SUM(H80:H81) -> 0 | I82: =SUM(I80:I81) -> 0 | J82: =SUM(J80:J81) -> 1937.318658
B83: Other - fee based services | C83: 0 | D83: =IF(Cover!$E$26=2014,((C83/Cover!$D$48)*Cover!$H$48),((C83/Cover!$D$49)*Cover!$I$49)) -> 0 | E83: 0 | F83: 1 | G83: 0 | H83: 0 | I83: 0 | J83: 0
B84: Other - quoted services | C84: 0 | D84: =IF(Cover!$E$26=2014,((C84/Cover!$D$48)*Cover!$H$48),((C84/Cover!$D$49)*Cover!$I$49)) -> 0 | E84: 0 | F84: 1 | G84: 0 | H84: 0 | I84: 0 | J84: 0
B85: Other Alternative Control - Total | C85: =SUM(C83:C84) -> 0 | D85: =SUM(D83:D84) -> 0 | E85: 0 | F85: 1 | G85: =SUM(G83:G84) -> 0 | H85: =SUM(H83:H84) -> 0 | I85: =SUM(I83:I84) -> 0 | J85: =SUM(J83:J84) -> 0
B86: Negotiated services | C86: 0 | D86: =IF(Cover!$E$26=2014,((C86/Cover!$D$48)*Cover!$H$48),((C86/Cover!$D$49)*Cover!$I$49)) -> 0 | E86: -223.5893618 | F86: 1 | G86: 0 | H86: 0 | I86: 0 | J86: -223.5893618
B87: Unregulated services | C87: 0 | D87: =IF(Cover!$E$26=2014,((C87/Cover!$D$48)*Cover!$H$48),((C87/Cover!$D$49)*Cover!$I$49)) -> 0 | E87: 0 | F87: 1 | G87: 0 | H87: 0 | I87: 0 | J87: 0
B88: Total Other capex | C88: =C78+C82+C85+C86+C87 -> 5609.440457 | D88: =D78+D82+D85+D86+D87 -> 6219.954516 | E88: 6572.791321 | F88: 0.05672658922 | G88: =G78+G82+G85+G86+G87 -> 0 | H88: 0 | I88: 0 | J88: 6572.791321
B91: Table 5 Customer Contributions by asset class
C93: Audited Statutory Accounts | D93: Adjustments | E93: Forecast | F93: Adjusted Forecast | G93: Actual | H93: Difference (%)
B94: Subtransmission | C94: 0 | D94: 0 | E94: 2132.297154 | F94: =IF(Cover!$E$26=2014,((E94/Cover!$D$48)*Cover!$H$48),((E94/Cover!$D$49)*Cover!$I$49)) -> 2364.369747 | G94: 4288.074077 | H94: =IF(F94=0,1,((G94-F94)/F94)*1) -> 0.81362246
B95: Distribution system assets | C95: 0 | D95: 0 | E95: 9521.077296 | F95: =IF(Cover!$E$26=2014,((E95/Cover!$D$48)*Cover!$H$48),((E95/Cover!$D$49)*Cover!$I$49)) -> 10557.32175 | G95: 17197.51781 | H95: 0.6289659653
B96: Metering | C96: 0 | D96: 0 | E96: 0 | F96: =IF(Cover!$E$26=2014,((E96/Cover!$D$48)*Cover!$H$48),((E96/Cover!$D$49)*Cover!$I$49)) -> 0 | G96: 0 | H96: 1
B97: Public Lighting | C97: 0 | D97: 0 | E97: 0 | F97: =IF(Cover!$E$26=2014,((E97/Cover!$D$48)*Cover!$H$48),((E97/Cover!$D$49)*Cover!$I$49)) -> 0 | G97: 0 | H97: 1
B98: SCADA/Network control | C98: 0 | D98: 0 | E98: 0 | F98: =IF(Cover!$E$26=2014,((E98/Cover!$D$48)*Cover!$H$48),((E98/Cover!$D$49)*Cover!$I$49)) -> 0 | G98: 0 | H98: 1
B99: Non network - IT | C99: 0 | D99: 0 | E99: 0 | F99: =IF(Cover!$E$26=2014,((E99/Cover!$D$48)*Cover!$H$48),((E99/Cover!$D$49)*Cover!$I$49)) -> 0 | G99: 0 | H99: 1
B100: Non network - other | C100: 0 | D100: 0 | E100: 0 | F100: =IF(Cover!$E$26=2014,((E100/Cover!$D$48)*Cover!$H$48),((E100/Cover!$D$49)*Cover!$I$49)) -> 0 | G100: 0 | H100: 1
B101: Equity Raising Costs | C101: 0 | D101: 0 | E101: 0 | F101: =IF(Cover!$E$26=2014,((E101/Cover!$D$48)*Cover!$H$48),((E101/Cover!$D$49)*Cover!$I$49)) -> 0 | G101: 0 | H101: =IF(F101=0,1,((G101-F101)/F101)*1) -> 1
B102: AMI | C102: 0 | D102: 0 | E102: 0 | F102: =IF(Cover!$E$26=2014,((E102/Cover!$D$48)*Cover!$H$48),((E102/Cover!$D$49)*Cover!$I$49)) -> 0 | G102: 0 | H102: 1
B103: Victorian Bushfires Royal Commission | C103: 0 | D103: 0 | E103: 0 | F103: =IF(Cover!$E$26=2014,((E103/Cover!$D$48)*Cover!$H$48),((E103/Cover!$D$49)*Cover!$I$49)) -> 0 | G103: 0 | H103: 1
B104: Alternative control fee and quoted services | C104: 0 | D104: 0 | E104: 0 | F104: =IF(Cover!$E$26=2014,((E104/Cover!$D$48)*Cover!$H$48),((E104/Cover!$D$49)*Cover!$I$49)) -> 0 | G104: 237.743 | H104: 1
B105: Negotiated | C105: 0 | D105: 0 | E105: 0 | F105: =IF(Cover!$E$26=2014,((E105/Cover!$D$48)*Cover!$H$48),((E105/Cover!$D$49)*Cover!$I$49)) -> 0 | G105: 2666.528534 | H105: 1
B106: Unregulated | C106: 0 | D106: 0 | E106: 0 | F106: =IF(Cover!$E$26=2014,((E106/Cover!$D$48)*Cover!$H$48),((E106/Cover!$D$49)*Cover!$I$49)) -> 0 | G106: 0 | H106: 1
B107: Total Customer Contributions | C107: =SUM(C94:C106) -> 0 | D107: =SUM(D94:D106) -> 0 | E107: =SUM(E94:E106) -> 11653.37445 | F107: =SUM(F94:F106) -> 12921.69149 | G107: =SUM(G94:G106) -> 24389.86342 | H107: 0.8875132124
B109: Table 6 Disposals by asset class
C111: Audited Statutory Accounts | D111: Adjustments | E111: Forecast | F111: Adjusted Forecast | G111: Actual | H111: Difference (%)
B112: Subtransmission | C112: 0 | D112: 0 | E112: 0 | F112: =IF(Cover!$E$26=2014,((E112/Cover!$D$48)*Cover!$H$48),((E112/Cover!$D$49)*Cover!$I$49)) -> 0 | G112: 0 | H112: =IF(F112=0,1,((G112-F112)/F112)*1) -> 1
B113: Distribution system assets | C113: 0 | D113: 0 | E113: 0 | F113: =IF(Cover!$E$26=2014,((E113/Cover!$D$48)*Cover!$H$48),((E113/Cover!$D$49)*Cover!$I$49)) -> 0 | G113: 0 | H113: 1
B114: Metering | C114: 0 | D114: 0 | E114: 0 | F114: =IF(Cover!$E$26=2014,((E114/Cover!$D$48)*Cover!$H$48),((E114/Cover!$D$49)*Cover!$I$49)) -> 0 | G114: 0 | H114: 1
B115: Public Lighting | C115: 0 | D115: 0 | E115: 0 | F115: =IF(Cover!$E$26=2014,((E115/Cover!$D$48)*Cover!$H$48),((E115/Cover!$D$49)*Cover!$I$49)) -> 0 | G115: 0 | H115: 1
B116: SCADA/Network control | C116: 0 | D116: 0 | E116: 0 | F116: =IF(Cover!$E$26=2014,((E116/Cover!$D$48)*Cover!$H$48),((E116/Cover!$D$49)*Cover!$I$49)) -> 0 | G116: 0 | H116: 1
B117: Non network - IT | C117: 0 | D117: 0 | E117: 0 | F117: =IF(Cover!$E$26=2014,((E117/Cover!$D$48)*Cover!$H$48),((E117/Cover!$D$49)*Cover!$I$49)) -> 0 | G117: 0 | H117: 1
B118: Non network - other | C118: 0 | D118: 0 | E118: 0 | F118: =IF(Cover!$E$26=2014,((E118/Cover!$D$48)*Cover!$H$48),((E118/Cover!$D$49)*Cover!$I$49)) -> 0 | G118: 210.54274 | H118: 1
B119: Equity Raising Costs | C119: 0 | D119: 0 | E119: 0 | F119: =IF(Cover!$E$26=2014,((E119/Cover!$D$48)*Cover!$H$48),((E119/Cover!$D$49)*Cover!$I$49)) -> 0 | G119: 0 | H119: 1
B120: AMI | C120: 0 | D120: 0 | E120: 0 | F120: =IF(Cover!$E$26=2014,((E120/Cover!$D$48)*Cover!$H$48),((E120/Cover!$D$49)*Cover!$I$49)) -> 0 | G120: 0 | H120: 1
B121: Victorian Bushfires Royal Commission | C121: 0 | D121: 0 | E121: 0 | F121: =IF(Cover!$E$26=2014,((E121/Cover!$D$48)*Cover!$H$48),((E121/Cover!$D$49)*Cover!$I$49)) -> 0 | G121: 0 | H121: 1
B122: Alternative control fee and quoted services | C122: 0 | D122: 0 | E122: 0 | F122: =IF(Cover!$E$26=2014,((E122/Cover!$D$48)*Cover!$H$48),((E122/Cover!$D$49)*Cover!$I$49)) -> 0 | G122: 0 | H122: 1
B123: Negotiated | C123: 0 | D123: 0 | E123: 0 | F123: =IF(Cover!$E$26=2014,((E123/Cover!$D$48)*Cover!$H$48),((E123/Cover!$D$49)*Cover!$I$49)) -> 0 | G123: 0 | H123: 1
B124: Unregulated | C124: 0 | D124: 0 | E124: 0 | F124: =IF(Cover!$E$26=2014,((E124/Cover!$D$48)*Cover!$H$48),((E124/Cover!$D$49)*Cover!$I$49)) -> 0 | G124: 0 | H124: =IF(F124=0,1,((G124-F124)/F124)*1) -> 1
B125: Total Disposals | C125: =SUM(C112:C124) -> 0 | D125: =SUM(D112:D124) -> 0 | E125: =SUM(E112:E124) -> 0 | F125: =IF(Cover!$E$26=2014,((E125/Cover!$D$48)*Cover!$H$48),((E125/Cover!$D$49)*Cover!$I$49)) -> 0 | G125: =SUM(G112:G124) -> 210.54274 | H125: 1
B128: Definitions
B129: SCS Capex by purpose | C129: Capex by purpose is defined in appendix G of the RIN.
B130: SCS Capex by asset class | C130: The assets classes must align with asset classes used in the PTRM for the 2011-15 distribution determination.
B131: Capex by service | C131: Capex for non-SCS distribution services is defined in appendix G of the RIN, or in the 2011-15 distribution determination.
B132: Voltage level - HV | C132: Assets with a nominal voltage above 1 kV and not exceeding 35 kV used to distribute electricity from a (zone) substation.
B133: Voltage level - subtransmission | C133: Assets that distribute electricity at voltage levels between the transmission system and the HV section of the network.
B134: Voltage level - LV | C134: Assets that distribute electricity at low voltage. The connection boundaries are the LV terminals of the HV to LV distribution transformers to the supply point.
B135: Voltage level - other | C135: Assets that distribute electricity at a voltage level that is not subtransmission, HV or LV.
B136: Customer contributions | C136: Cash or in kind contributions to Capex projects and gifted assets.
B137: Disposals | C137: The written down value (WDV) of assets disposed or proceeds from the sale of assets.
B138: Forecast | C138: The forecast expenditure derived for the 2011-2015 Distribution determination.
B139: Adjusted Forecast | C139: The forecast adjusted to be in equivalent dollar terms to the actual expenditure for the relevant regulatory year
B140: Actual | C140: The expenditure reported for the relevant regulatory year.
B141: ABS CPI | C141: ABS CPI (Pub No: 6401.0, All groups, 8 Capital Cities, September)
B142: Movements in provisions | C142: The difference between opening and closing capitalised provisions.

Sheet 3b. Capex - margins
B1: CitiPower
B2: Capex - margins
B3: =Cover!E26 -> 2014
D4: Colour coding:
B5: Dollar unit used in this sheet | D5: Yellow = Input cells
B6: nominal $'000 | D6: Grey = No inputs required
B8: Instructions:
B9: Reported expenditure must EXCLUDE capital contributions, except for Table 5.
B10: Reported expenditure must ONLY INCLUDE profit margins or management fees paid directly or indirectly to related party contractors (which is not an actual incurred cost of the related party contractor) for the regulatory reporting period.
B11: Forecast expenditure is to be taken from the 2011-15 distribution determination. This forecast is adjusted using the CPI calculations on the cover sheet.
B12: If allocating based on assumptions then provide method.
B13: All adjustments must be explained with supporting documentation attached.
B16: Table 1 Standard Control Services - capex by purpose by voltage level
C18: Forecast | D18: Adjusted Forecast | E18: Actual | F18: Difference (%) | G18: Sub-transmission | H18: HV | I18: LV | J18: Other
B19: Demand Related
B20: Reinforcement | C20: 0 | D20: =IF(Cover!$E$26=2014,((C20/Cover!$D$48)*Cover!$H$48),((C20/Cover!$D$49)*Cover!$I$49)) -> 0 | E20: =SUM(G20:J20) -> 1496.373812 | F20: =IF(D20=0,1,((E20-D20)/D20)*1) -> 1 | G20: 349.4031288 | H20: 821.5629189 | I20: 316.8350372 | J20: 8.572726648
B21: New customer connection | C21: 0 | D21: =IF(Cover!$E$26=2014,((C21/Cover!$D$48)*Cover!$H$48),((C21/Cover!$D$49)*Cover!$I$49)) -> 0 | E21: 1768.027661 | F21: 1 | G21: 412.8342743 | H21: 970.7106305 | I21: 374.3537246 | J21: 10.12903175
B22: Non Demand Related
B23: Reliability & quality maintained | C23: 0 | D23: =IF(Cover!$E$26=2014,((C23/Cover!$D$48)*Cover!$H$48),((C23/Cover!$D$49)*Cover!$I$49)) -> 0 | E23: 683.4054651 | F23: =IF(D23=0,1,((E23-D23)/D23)*1) -> 1 | G23: 159.5751047 | H23: 375.2141239 | I23: 144.701006 | J23: 3.915230403
B24: Environmental, safety & legal | C24: 0 | D24: =IF(Cover!$E$26=2014,((C24/Cover!$D$48)*Cover!$H$48),((C24/Cover!$D$49)*Cover!$I$49)) -> 0 | E24: 377.1721478 | F24: 1 | G24: 88.06965714 | H24: 207.0810437 | I24: 79.86062746 | J24: 2.160819508
B25: Sub-total | C25: =C20+C21+C23+C24 -> 0 | D25: =D20+D21+D23+D24 -> 0 | E25: =E20+E21+E23+E24 -> 4324.979086 | F25: 1 | G25: =G20+G21+G23+G24 -> 1009.882165 | H25: =H20+H21+H23+H24 -> 2374.568717 | I25: =I20+I21+I23+I24 -> 915.7503954 | J25: =J20+J21+J23+J24 -> 24.77780831
B26: SCADA/Network control | C26: 0 | D26: =IF(Cover!$E$26=2014,((C26/Cover!$D$48)*Cover!$H$48),((C26/Cover!$D$49)*Cover!$I$49)) -> 0 | E26: 68.23835706 | F26: 1 | G26: 0 | H26: 0 | I26: 0 | J26: 68.23835706
B27: Non network general - IT | C27: 0 | D27: =IF(Cover!$E$26=2014,((C27/Cover!$D$48)*Cover!$H$48),((C27/Cover!$D$49)*Cover!$I$49)) -> 0 | E27: 802.7819 | F27: 1 | G27: 0 | H27: 0 | I27: 0 | J27: 802.7819
B28: Non network general - other | C28: 0 | D28: =IF(Cover!$E$26=2014,((C28/Cover!$D$48)*Cover!$H$48),((C28/Cover!$D$49)*Cover!$I$49)) -> 0 | E28: 0 | F28: 1 | G28: 0 | H28: 0 | I28: 0 | J28: 0
B29: Metering - Non AMI | C29: 0 | D29: =IF(Cover!$E$26=2014,((C29/Cover!$D$48)*Cover!$H$48),((C29/Cover!$D$49)*Cover!$I$49)) -> 0 | E29: 0 | F29: 1 | G29: 0 | H29: 0 | I29: 0 | J29: 0
B30: Standard Control - Total Capex | C30: =SUM(C25:C29) -> 0 | D30: =SUM(D25:D29) -> 0 | E30: =SUM(E25:E29) -> 5195.999343 | F30: 1 | G30: =SUM(G25:G29) -> 1009.882165 | H30: 2374.568717 | I30: 915.7503954 | J30: 895.7980654
B32: Table 2: Material difference explanation
B33: Where the difference between forecast and actual expenditure shown in table 1, column E is greater than ±10 per cent, please explain the main factors driving the difference.
C35: Reason for material difference
B36: Demand Related
B37: Reinforcement | C37: N/A
B38: New customer connection | C38: N/A
B39: Non Demand Related
B40: Reliability & quality maintained | C40: N/A
B41: Environmental, safety & legal | C41: N/A
B42: Other
B43: SCADA/Network control | C43: N/A
B44: Non network general - IT | C44: N/A
B45: Non network general - other | C45: N/A
B46: Metering - Non AMI | C46: N/A
B48: Table 3 Capex by asset class
B50: Asset class | C50: Forecast | D50: Adjusted Forecast | E50: Actual | F50: Difference (%)
B51: Subtransmission | C51: 0 | D51: =IF(Cover!$E$26=2014,((C51/Cover!$D$48)*Cover!$H$48),((C51/Cover!$D$49)*Cover!$I$49)) -> 0 | E51: 1009.882165 | F51: =IF(D51=0,1,((E51-D51)/D51)*1) -> 1
B52: Distribution system assets | C52: 0 | D52: =IF(Cover!$E$26=2014,((C52/Cover!$D$48)*Cover!$H$48),((C52/Cover!$D$49)*Cover!$I$49)) -> 0 | E52: 3315.096921 | F52: 1
B53: Metering | C53: 0 | D53: =IF(Cover!$E$26=2014,((C53/Cover!$D$48)*Cover!$H$48),((C53/Cover!$D$49)*Cover!$I$49)) -> 0 | E53: 0 | F53: 1
B54: Public Lighting | C54: 0 | D54: =IF(Cover!$E$26=2014,((C54/Cover!$D$48)*Cover!$H$48),((C54/Cover!$D$49)*Cover!$I$49)) -> 0 | E54: 0 | F54: 1
B55: SCADA/Network control | C55: 0 | D55: =IF(Cover!$E$26=2014,((C55/Cover!$D$48)*Cover!$H$48),((C55/Cover!$D$49)*Cover!$I$49)) -> 0 | E55: 68.23835706 | F55: 1
B56: Non network - IT | C56: 0 | D56: =IF(Cover!$E$26=2014,((C56/Cover!$D$48)*Cover!$H$48),((C56/Cover!$D$49)*Cover!$I$49)) -> 0 | E56: 802.7819 | F56: 1
B57: Non network - other | C57: 0 | D57: =IF(Cover!$E$26=2014,((C57/Cover!$D$48)*Cover!$H$48),((C57/Cover!$D$49)*Cover!$I$49)) -> 0 | E57: 0 | F57: 1
B58: Equity Raising Costs | C58: 0 | D58: =IF(Cover!$E$26=2014,((C58/Cover!$D$48)*Cover!$H$48),((C58/Cover!$D$49)*Cover!$I$49)) -> 0 | E58: 0 | F58: 1
B59: AMI | C59: 0 | D59: =IF(Cover!$E$26=2014,((C59/Cover!$D$48)*Cover!$H$48),((C59/Cover!$D$49)*Cover!$I$49)) -> 0 | E59: 219.0286586 | F59: 1
B60: Victorian Bushfires Royal Commission | C60: 0 | D60: =IF(Cover!$E$26=2014,((C60/Cover!$D$48)*Cover!$H$48),((C60/Cover!$D$49)*Cover!$I$49)) -> 0 | E60: 0 | F60: 1
B61: Alternative control fee and quoted services | C61: 0 | D61: =IF(Cover!$E$26=2014,((C61/Cover!$D$48)*Cover!$H$48),((C61/Cover!$D$49)*Cover!$I$49)) -> 0 | E61: 67.92137646 | F61: 1
B62: Negotiated | C62: 0 | D62: =IF(Cover!$E$26=2014,((C62/Cover!$D$48)*Cover!$H$48),((C62/Cover!$D$49)*Cover!$I$49)) -> 0 | E62: 71.89177578 | F62: 1
B63: Unregulated | C63: 0 | D63: =IF(Cover!$E$26=2014,((C63/Cover!$D$48)*Cover!$H$48),((C63/Cover!$D$49)*Cover!$I$49)) -> 0 | E63: 0 | F63: 1
B64: Total (system and non system) | C64: =SUM(C51:C63) -> 0 | D64: =SUM(D51:D63) -> 0 | E64: =SUM(E51:E63) -> 5554.841154 | F64: 1
B66: Table 4 Other Capex
C68: Forecast | D68: Adjusted Forecast | E68: Actual | F68: Difference (%) | G68: Sub-transmission | H68: HV | I68: LV | J68: Other
B69: AMI
B70: Accumulation Meters | C70: 0 | D70: =IF(Cover!$E$26=2014,((C70/Cover!$D$48)*Cover!$H$48),((C70/Cover!$D$49)*Cover!$I$49)) -> 0 | E70: =SUM(G70:J70) -> 0 | F70: =IF(D70=0,1,((E70-D70)/D70)*1) -> 1 | G70: 0 | H70: 0 | I70: 0 | J70: 0
B71: Manually read interval meters | C71: 0 | D71: =IF(Cover!$E$26=2014,((C71/Cover!$D$48)*Cover!$H$48),((C71/Cover!$D$49)*Cover!$I$49)) -> 0 | E71: =SUM(G71:J71) -> 0.4764011097 | F71: 1 | G71: 0 | H71: 0 | I71: 0 | J71: 0.4764011097
B72: Remotely read interval meters & transformers | C72: 0 | D72: =IF(Cover!$E$26=2014,((C72/Cover!$D$48)*Cover!$H$48),((C72/Cover!$D$49)*Cover!$I$49)) -> 0 | E72: 47.92749125 | F72: 1 | G72: 0 | H72: 0 | I72: 0 | J72: 47.92749125
B73: AMI communication | C73: 0 | D73: =IF(Cover!$E$26=2014,((C73/Cover!$D$48)*Cover!$H$48),((C73/Cover!$D$49)*Cover!$I$49)) -> 0 | E73: 20.15847627 | F73: 1 | G73: 0 | H73: 0 | I73: 0 | J73: 20.15847627
B74: Metering data services (IT) | C74: 0 | D74: =IF(Cover!$E$26=2014,((C74/Cover!$D$48)*Cover!$H$48),((C74/Cover!$D$49)*Cover!$I$49)) -> 0 | E74: 150.46629 | F74: 1 | G74: 0 | H74: 0 | I74: 0 | J74: 150.46629
B75: Metering data services (other) | C75: 0 | D75: =IF(Cover!$E$26=2014,((C75/Cover!$D$48)*Cover!$H$48),((C75/Cover!$D$49)*Cover!$I$49)) -> 0 | E75: 0 | F75: 1 | G75: 0 | H75: 0 | I75: 0 | J75: 0
B76: AMI - Total | C76: =SUM(C70:C75) -> 0 | D76: =SUM(D70:D75) -> 0 | E76: 219.0286586 | F76: 1 | G76: =SUM(G70:G75) -> 0 | H76: 0 | I76: 0 | J76: 219.0286586
B77: Alternative Control services
B78: Public lighting - energy efficient | C78: 0 | D78: =IF(Cover!$E$26=2014,((C78/Cover!$D$48)*Cover!$H$48),((C78/Cover!$D$49)*Cover!$I$49)) -> 0 | E78: =SUM(G78:J78) -> 21.45198762 | F78: =IF(D78=0,1,((E78-D78)/D78)*1) -> 1 | G78: 0 | H78: 0 | I78: 0 | J78: 21.45198762
B79: Public lighting - non energy efficient | C79: 0 | D79: =IF(Cover!$E$26=2014,((C79/Cover!$D$48)*Cover!$H$48),((C79/Cover!$D$49)*Cover!$I$49)) -> 0 | E79: 46.46938884 | F79: 1 | G79: 0 | H79: 0 | I79: 0 | J79: 46.46938884
B80: Public Lighting - Total | C80: =SUM(C78:C79) -> 0 | D80: =SUM(D78:D79) -> 0 | E80: 67.92137646 | F80: 1 | G80: =SUM(G78:G79) -> 0 | H80: 0 | I80: 0 | J80: 67.92137646
B81: Other - fee based services | C81: 0 | D81: =IF(Cover!$E$26=2014,((C81/Cover!$D$48)*Cover!$H$48),((C81/Cover!$D$49)*Cover!$I$49)) -> 0 | E81: 0 | F81: 1 | G81: 0 | H81: 0 | I81: 0 | J81: 0
B82: Other - quoted services | C82: 0 | D82: =IF(Cover!$E$26=2014,((C82/Cover!$D$48)*Cover!$H$48),((C82/Cover!$D$49)*Cover!$I$49)) -> 0 | E82: 0 | F82: 1 | G82: 0 | H82: 0 | I82: 0 | J82: 0
B83: Other Alternative Control - Total | C83: =SUM(C81:C82) -> 0 | D83: =SUM(D81:D82) -> 0 | E83: 0 | F83: 1 | G83: =SUM(G81:G82) -> 0 | H83: 0 | I83: 0 | J83: 0
B84: Negotiated services | C84: 0 | D84: =IF(Cover!$E$26=2014,((C84/Cover!$D$48)*Cover!$H$48),((C84/Cover!$D$49)*Cover!$I$49)) -> 0 | E84: 71.89177578 | F84: 1 | G84: 0 | H84: 0 | I84: 0 | J84: 71.89177578
B85: Unregulated services | C85: 0 | D85: =IF(Cover!$E$26=2014,((C85/Cover!$D$48)*Cover!$H$48),((C85/Cover!$D$49)*Cover!$I$49)) -> 0 | E85: 0 | F85: 1 | G85: 0 | H85: 0 | I85: 0 | J85: 0
B86: Total Other capex | C86: =C76+C80+C83+C84+C85 -> 0 | D86: =D76+D80+D83+D84+D85 -> 0 | E86: 358.8418109 | F86: 1 | G86: =G76+G80+G83+G84+G85 -> 0 | H86: 0 | I86: 0 | J86: 358.8418109
B89: Table 5 Customer Contributions by asset class
C91: Forecast | D91: Adjusted Forecast | E91: Actual | F91: Difference (%)
B92: Subtransmission | C92: 0 | D92: =IF(Cover!$E$26=2014,((C92/Cover!$D$48)*Cover!$H$48),((C92/Cover!$D$49)*Cover!$I$49)) -> 0 | E92: 0 | F92: =IF(D92=0,1,((E92-D92)/D92)*1) -> 1
B93: Distribution system assets | C93: 0 | D93: =IF(Cover!$E$26=2014,((C93/Cover!$D$48)*Cover!$H$48),((C93/Cover!$D$49)*Cover!$I$49)) -> 0 | E93: 0 | F93: 1
B94: Metering | C94: 0 | D94: =IF(Cover!$E$26=2014,((C94/Cover!$D$48)*Cover!$H$48),((C94/Cover!$D$49)*Cover!$I$49)) -> 0 | E94: 0 | F94: 1
B95: Public Lighting | C95: 0 | D95: =IF(Cover!$E$26=2014,((C95/Cover!$D$48)*Cover!$H$48),((C95/Cover!$D$49)*Cover!$I$49)) -> 0 | E95: 0 | F95: 1
B96: SCADA/Network control | C96: 0 | D96: =IF(Cover!$E$26=2014,((C96/Cover!$D$48)*Cover!$H$48),((C96/Cover!$D$49)*Cover!$I$49)) -> 0 | E96: 0 | F96: 1
B97: Non network - IT | C97: 0 | D97: =IF(Cover!$E$26=2014,((C97/Cover!$D$48)*Cover!$H$48),((C97/Cover!$D$49)*Cover!$I$49)) -> 0 | E97: 0 | F97: 1
B98: Non network - other | C98: 0 | D98: =IF(Cover!$E$26=2014,((C98/Cover!$D$48)*Cover!$H$48),((C98/Cover!$D$49)*Cover!$I$49)) -> 0 | E98: 0 | F98: 1
B99: Equity Raising Costs | C99: 0 | D99: =IF(Cover!$E$26=2014,((C99/Cover!$D$48)*Cover!$H$48),((C99/Cover!$D$49)*Cover!$I$49)) -> 0 | E99: 0 | F99: 1
B100: AMI | C100: 0 | D100: =IF(Cover!$E$26=2014,((C100/Cover!$D$48)*Cover!$H$48),((C100/Cover!$D$49)*Cover!$I$49)) -> 0 | E100: 0 | F100: 1
B101: Victorian Bushfires Royal Commission | C101: 0 | D101: =IF(Cover!$E$26=2014,((C101/Cover!$D$48)*Cover!$H$48),((C101/Cover!$D$49)*Cover!$I$49)) -> 0 | E101: 0 | F101: 1
B102: Alternative control fee and quoted services | C102: 0 | D102: =IF(Cover!$E$26=2014,((C102/Cover!$D$48)*Cover!$H$48),((C102/Cover!$D$49)*Cover!$I$49)) -> 0 | E102: 0 | F102: 1
B103: Negotiated | C103: 0 | D103: =IF(Cover!$E$26=2014,((C103/Cover!$D$48)*Cover!$H$48),((C103/Cover!$D$49)*Cover!$I$49)) -> 0 | E103: 0 | F103: 1
B104: Unregulated | C104: 0 | D104: =IF(Cover!$E$26=2014,((C104/Cover!$D$48)*Cover!$H$48),((C104/Cover!$D$49)*Cover!$I$49)) -> 0 | E104: 0 | F104: 1
B105: Total Customer Contributions | C105: =SUM(C92:C104) -> 0 | D105: =SUM(D92:D104) -> 0 | E105: =SUM(E92:E104) -> 0 | F105: 1
B107: Table 6 Disposals by asset class
C109: Forecast | D109: Adjusted Forecast | E109: Actual | F109: Difference (%)
B110: Subtransmission | C110: 0 | D110: =IF(Cover!$E$26=2014,((C110/Cover!$D$48)*Cover!$H$48),((C110/Cover!$D$49)*Cover!$I$49)) -> 0 | E110: 0 | F110: =IF(D110=0,1,((E110-D110)/D110)*1) -> 1
B111: Distribution system assets | C111: 0 | D111: =IF(Cover!$E$26=2014,((C111/Cover!$D$48)*Cover!$H$48),((C111/Cover!$D$49)*Cover!$I$49)) -> 0 | E111: 0 | F111: 1
B112: Metering | C112: 0 | D112: =IF(Cover!$E$26=2014,((C112/Cover!$D$48)*Cover!$H$48),((C112/Cover!$D$49)*Cover!$I$49)) -> 0 | E112: 0 | F112: 1
B113: Public Lighting | C113: 0 | D113: =IF(Cover!$E$26=2014,((C113/Cover!$D$48)*Cover!$H$48),((C113/Cover!$D$49)*Cover!$I$49)) -> 0 | E113: 0 | F113: 1
B114: SCADA/Network control | C114: 0 | D114: =IF(Cover!$E$26=2014,((C114/Cover!$D$48)*Cover!$H$48),((C114/Cover!$D$49)*Cover!$I$49)) -> 0 | E114: 0 | F114: 1
B115: Non network - IT | C115: 0 | D115: =IF(Cover!$E$26=2014,((C115/Cover!$D$48)*Cover!$H$48),((C115/Cover!$D$49)*Cover!$I$49)) -> 0 | E115: 0 | F115: 1
B116: Non network - other | C116: 0 | D116: =IF(Cover!$E$26=2014,((C116/Cover!$D$48)*Cover!$H$48),((C116/Cover!$D$49)*Cover!$I$49)) -> 0 | E116: 0 | F116: 1
B117: Equity Raising Costs | C117: 0 | D117: =IF(Cover!$E$26=2014,((C117/Cover!$D$48)*Cover!$H$48),((C117/Cover!$D$49)*Cover!$I$49)) -> 0 | E117: 0 | F117: 1
B118: AMI | C118: 0 | D118: =IF(Cover!$E$26=2014,((C118/Cover!$D$48)*Cover!$H$48),((C118/Cover!$D$49)*Cover!$I$49)) -> 0 | E118: 0 | F118: 1
B119: Victorian Bushfires Royal Commission | C119: 0 | D119: =IF(Cover!$E$26=2014,((C119/Cover!$D$48)*Cover!$H$48),((C119/Cover!$D$49)*Cover!$I$49)) -> 0 | E119: 0 | F119: 1
B120: Alternative control fee and quoted services | C120: 0 | D120: =IF(Cover!$E$26=2014,((C120/Cover!$D$48)*Cover!$H$48),((C120/Cover!$D$49)*Cover!$I$49)) -> 0 | E120: 0 | F120: 1
B121: Negotiated | C121: 0 | D121: =IF(Cover!$E$26=2014,((C121/Cover!$D$48)*Cover!$H$48),((C121/Cover!$D$49)*Cover!$I$49)) -> 0 | E121: 0 | F121: 1
B122: Unregulated | C122: 0 | D122: =IF(Cover!$E$26=2014,((C122/Cover!$D$48)*Cover!$H$48),((C122/Cover!$D$49)*Cover!$I$49)) -> 0 | E122: 0 | F122: 1
B123: Total Disposals | C123: =SUM(C110:C122) -> 0 | D123: =SUM(D110:D122) -> 0 | E123: =SUM(E110:E122) -> 0 | F123: 1

Sheet 5. Capex Tax
B1: =Cover!E22 -> CitiPower Pty
B2: Capex Tax
B3: =Cover!E26 -> 2014
D4: Colour coding:
B5: Dollar unit used in this sheet | D5: Yellow = Input cells
B6: nominal $'000 | D6: Grey = No inputs required
B8: This information will be used to allow the roll forward of the regulated asset base.
B10: Table 1: Tax standard lives and Capex Additions - Standard control services
B12: Asset class | C12: Tax standard lives | D12: Capex additions
B13: System Assets
B14: Subtransmission | C14: 43 | D14: 30970.60328
B15: Distribution system assets | C15: 49 | D15: 101665.8726
B16: Metering | C16: n/a | D16: 0
B17: Public Lighting | C17: n/a | D17: 0
B18: SCADA/Network control | C18: 10 | D18: 2621.52439
B19: Sub-total | C19: =SUM(C14:C18) -> 102 | D19: =SUM(D14:D18) -> 135258.0003
B20: Non-System Assets
B21: Non network - IT | C21: 4 | D21: 8778.28108
B22: Non network - other | C22: 12 | D22: 5017.46242
B23: Equity Raising Costs | C23: n/a | D23: 0
B24: Sub-total | C24: =SUM(C21:C23) -> 16 | D24: =SUM(D21:D23) -> 13795.7435
B25: Total (system and non system) | C25: =C24+C19 -> 118 | D25: =D24+D19 -> 149053.7438
B27: Table 2 Standard Control Services - excl metering
B29: Asset Class | C29: Tax Depreciation - Rate (Post Ralph 10 May 2006 onwards) | D29: Total Additions per Taxation Category Including Related Party Margin | E29: Additions per Taxation Category - Related Party Margin
B30: Demand related capital expenditure | C30: 0.04 | D30: 117253.6289 | E30: 3264.401473
B31: Replacement expenditure (Group 1) | C31: 1 | D31: 16435.29603 | E31: 497.7914956
B32: Replacement expenditure (Group 2) | C32: 0.1 | D32: 3139.62193 | E32: 82.65033486
B33: Replacement expenditure (Group 3) | C33: 0.04 | D33: 5248.31041 | E33: 102.9636346
B34: Environment, safety & legal | C34: 0.1 | D34: 12045.21053 | E34: 377.1721478
B35: SCADA/Network control | C35: 0.1 | D35: 2621.52439 | E35: 68.23835706
B36: Non-network general assets - IT | C36: 0.4 | D36: 8778.28108 | E36: 802.7819
B37: Non-network general assets - Other | C37: 0.1764705882 | D37: 5017.46242 | E37: 0
B38: RBPC - Excl Metering - TOTAL ADDITIONS | D38: =SUM(D30:D37) -> 170539.3357 | E38: =SUM(E30:E37) -> 5195.999343
B39: Capitalised Finance Charges | D39: Nil | E39: Nil
B41: Table 3 Metering
B43: Asset Class | C43: Tax Depreciation - Rate (Post Ralph 10 May 2006) | D43: Total Additions per Taxation Category Including Related Party Margin | E43: Additions per Taxation Category - Related Party Margin
B44: Meters and transformers (Group 1) (Unit cost < $1,000) | C44: 0.375 | D44: 1575.041248 | E44: 30.96448238
B45: Meters and transformers (Group 2) (Unit cost ≥ $1,000) | C45: 0.06 | D45: 132.8705623 | E45: 17.43940998
B46: IT | C46: 0.4 | D46: 2872.47056 | E46: 150.46629
B47: Communications | C47: 0.2142857143 | D47: 278.6796545 | E47: 20.15847627
B48: Other | C48: 0.1764705882 | D48: 0 | E48: 0
B49: Metering - TOTAL ADDITIONS | D49: =SUM(D44:D48) -> 4859.062024 | E49: =SUM(E44:E48) -> 219.0286586
B50: Capitalised Finance Charges | D50: Nil | E50: Nil

Sheet 6a. Maintenance - total
B1: CitiPower
B2: Maintenance Costs total
B3: =Cover!E26 -> 2014
E4: Colour coding:
B5: Dollar unit used in this sheet | E5: Yellow = Input cells
B6: nominal $'000 | E6: Grey = No inputs required
B8: This information is necessary for monitoring maintenance expenditure and will be used to inform the AER's assessment of maintenance expenditure and its underlying drivers at the next reset. It will also be used to assist in any comparative analysis undertaken by the AER within the current and future regulatory control periods.
B10: Instructions:
B11: Reported expenditure must INCLUDE any profit margins or management fees paid directly or indirectly to related party contractors (which is not an actual incurred cost of the related party contractor) for the regulatory reporting period.
B12: Forecast expenditure is to be taken from the 2011-15 distribution determination. This forecast is adjusted using the CPI calculations on the cover sheet.
B13: If allocating based on assumptions then provide method.
B14: All adjustments must be explained with supporting documentation attached.
B16: Table 1: Maintenance expenditure
B18: Statutory Account code or reference to account code | C18: Description | D18: Audited Statutory Accounts | E18: Adjustments | F18: Distribution business | G18: Standard Control Services | K18: AMI | L18: Public Lighting - Alternative Control | N18: Other Alternative Control Services | P18: Negotiated Services | Q18: Unregulated Services
G19: Forecast | H19: Adjusted Forecast | I19: Actual | J19: Difference | L19: Energy efficient | M19: Non energy efficient | N19: Fee based service | O19: Quoted service
C20: Routine | D20: 4698.434342 | E20: 0 | F20: 4698.434342 | G20: 7047.988453 | H20: =IF(Cover!$E$26=2014,((G20/Cover!$D$48)*Cover!$H$48),((G20/Cover!$D$49)*Cover!$I$49)) -> 7815.069603 | I20: 4698.434342 | J20: =IF(H20=0,1,((I20-H20)/H20)*1) -> -0.3987981451 | K20: 0 | L20: 0 | M20: 0 | N20: 0 | O20: 0 | P20: 0 | Q20: 0
C21: Condition based | D21: 17178.81141 | E21: 0 | F21: 17178.81141 | G21: 11040.33723 | H21: =IF(Cover!$E$26=2014,((G21/Cover!$D$48)*Cover!$H$48),((G21/Cover!$D$49)*Cover!$I$49)) -> 12241.9332 | I21: 17178.81141 | J21: 0.4032760287 | K21: 0 | L21: 0 | M21: 0 | N21: 0 | O21: 0 | P21: 0 | Q21: 0
C22: Emergency | D22: 5837.195889 | E22: 0 | F22: 5837.195889 | G22: 3751.973735 | H22: =IF(Cover!$E$26=2014,((G22/Cover!$D$48)*Cover!$H$48),((G22/Cover!$D$49)*Cover!$I$49)) -> 4160.326891 | I22: 5837.195889 | J22: 0.4030618368 | K22: 0 | L22: 0 | M22: 0 | N22: 0 | O22: 0 | P22: 0 | Q22: 0
C23: SCADA/Network Control | D23: 195.87558 | E23: 0 | F23: 195.87558 | G23: 32.72991423 | H23: =IF(Cover!$E$26=2014,((G23/Cover!$D$48)*Cover!$H$48),((G23/Cover!$D$49)*Cover!$I$49)) -> 36.29213633 | I23: 195.87558 | J23: 4.397190681 | K23: 0 | L23: 0 | M23: 0 | N23: 0 | O23: 0 | P23: 0 | Q23: 0
C24: Other - Standard Control Services | D24: 3161.366059 | E24: 0 | F24: 3161.366059 | G24: 2107.394823 | H24: =IF(Cover!$E$26=2014,((G24/Cover!$D$48)*Cover!$H$48),((G24/Cover!$D$49)*Cover!$I$49)) -> 2336.757123 | I24: 3161.366059 | J24: 0.3528860266 | K24: 0 | L24: 0 | M24: 0 | N24: 0 | O24: 0 | P24: 0 | Q24: 0
C25: AMI | D25: 912.8298254 | E25: 0 | F25: 912.8298254 | G25: 0 | H25: =IF(Cover!$E$26=2014,((G25/Cover!$D$48)*Cover!$H$48),((G25/Cover!$D$49)*Cover!$I$49)) -> 0 | I25: 0 | J25: 1 | K25: 912.8298254 | L25: 0 | M25: 0 | N25: 0 | O25: 0 | P25: 0 | Q25: 0
C26: Public Lighting | D26: 3162.875605 | E26: 0 | F26: 3162.875605 | G26: 0 | H26: =IF(Cover!$E$26=2014,((G26/Cover!$D$48)*Cover!$H$48),((G26/Cover!$D$49)*Cover!$I$49)) -> 0 | I26: -9.547918012e-15 | J26: 1 | K26: 0 | L26: 1046.280702 | M26: 2116.594902 | N26: 0 | O26: 0 | P26: 0 | Q26: 0
C27: Alternative control -other | D27: 3826.993527 | E27: 0 | F27: 3826.993527 | G27: 0 | H27: =IF(Cover!$E$26=2014,((G27/Cover!$D$48)*Cover!$H$48),((G27/Cover!$D$49)*Cover!$I$49)) -> 0 | I27: 0 | J27: 1 | K27: 0 | L27: 0 | M27: 0 | N27: 1930.550826 | O27: 1896.442701 | P27: 0 | Q27: 0
C28: Negotiated services | D28: 0 | E28: 0 | F28: 0 | G28: 0 | H28: =IF(Cover!$E$26=2014,((G28/Cover!$D$48)*Cover!$H$48),((G28/Cover!$D$49)*Cover!$I$49)) -> 0 | I28: 0 | J28: 1 | K28: 0 | L28: 0 | M28: 0 | N28: 0 | O28: 0 | P28: 0 | Q28: 0
C29: Sub Total | D29: =SUM(D20:D28) -> 38974.38224 | E29: 0 | F29: 38974.38224 | G29: =SUM(G20:G28) -> 23980.42415 | H29: =SUM(H20:H28) -> 26590.37896 | I29: =SUM(I20:I28) -> 31071.68328 | J29: 0.1685310439 | K29: =SUM(K20:K28) -> 912.8298254 | L29: 1046.280702 | M29: 2116.594902 | N29: 1930.550826 | O29: 1896.442701 | P29: 0 | Q29: 0
C30: Unregulated services | D30: 0 | E30: 0 | F30: 0 | G30: 0 | H30: =IF(Cover!$E$26=2014,((G30/Cover!$D$48)*Cover!$H$48),((G30/Cover!$D$49)*Cover!$I$49)) -> 0 | I30: 0 | J30: 1 | K30: 0 | L30: 0 | M30: 0 | N30: 0 | O30: 0 | P30: 0 | Q30: 0
C31: Total | D31: =D29+D30 -> 38974.38224 | E31: 0 | F31: 38974.38224 | G31: =G29+G30 -> 23980.42415 | H31: =H29+H30 -> 26590.37896 | I31: =I29+I30 -> 31071.68328 | J31: 0.1685310439 | K31: =SUM(K29:K30) -> 912.8298254 | L31: 1046.280702 | M31: 2116.594902 | N31: 1930.550826 | O31: 1896.442701 | P31: 0 | Q31: 0
B34: Table 2: Explanation of material difference
B36: Where the difference between forecast and actual expenditure shown in table 1, column J is greater than ±10 per cent, please explain the main factors driving the difference.
B38: Category | C38: Explanation
B39: Routine | C39: The absolute expenditure variance is not material.
B40: Condition based | C40: Actual volumes of work have increased in line with the general ageing of the network.
B41: Emergency | C41: Variance is not material in the context of uncontrollable nature of work volume.
B42: SCADA/Network Control | C42: Actual costs more reflective of the work volume than allowed in the 2011-15 EDPR.
B43: Other - Standard Control Services | C43: The absolute expenditure variance is not material.
B45: Table 3: Other network maintenance costs
B47: Note: List any items included in "other - standard control services' which are more than 5 per cent of the total standard control services maintenance costs
B49: Statutory account code or reference to account code | C49: Description | D49: Audited statutory accounts | E49: Adjustments | F49: Distribution business
C50: Underground cable locations | D50: 3161.366059 | E50: 0 | F50: 3161.366059
B58: Definitions
B59: Maintenance categories are as defined in the 2011-15 Distribution determination
B60: Forecast | C60: The forecast expenditure derived for the 2011-2015 Distribution determination.
B61: Adjusted Forecast | C61: The forecast adjusted to be in equivalent dollar terms to the actual expenditure for the relevant regulatory year
B62: Actual | C62: The expenditure reported for the relevant regulatory year.
B63: ABS CPI | C63: ABS CPI (Pub No: 6401.0, All groups, 8 Capital Cities, September)

Sheet 6b. Maintenance - margin
B1: CitiPower
B2: Maintenance Costs - Margin
B3: =Cover!E26 -> 2014
E4: Colour coding:
B5: Dollar unit used in this sheet | E5: Yellow = Input cells
B6: nominal $'000 | E6: Grey = No inputs required
B8: This information is necessary for monitoring maintenance expenditure and will be used to inform the AER's assessment of maintenance expenditure and its underlying drivers at the next reset. It will also be used to assist in any comparative analysis undertaken by the AER within the current and future regulatory control periods.
B10: Instructions:
B11: Reported expenditure must ONLY INCLUDE profit margins or management fees paid directly or indirectly to related party contractors (which is not an actual incurred cost of the related party contractor) for the regulatory reporting period.
B12: Forecast expenditure is to be taken from the 2011-15 distribution determination. This forecast is adjusted using the CPI calculations on the cover sheet.
B13: If allocating based on assumptions then provide method.
B14: All adjustments must be explained with supporting documentation attached.
B16: Table 1: Maintenance expenditure
B18: Statutory Account code or reference to account code | C18: Description | D18: Audited Statutory Accounts | E18: Adjustments | F18: Distribution business | G18: Standard Control Services | K18: AMI | L18: Public Lighting - Alternative Control | N18: Other Alternative Control Services | P18: Negotiated Services | Q18: Unregulated Services
G19: Forecast | H19: Adjusted Forecast | I19: Actual | J19: Difference | L19: Energy efficient | M19: Non energy efficient | N19: Fee based service | O19: Quoted service
C20: Routine | D20: 25.25295263 | E20: 0 | F20: 25.25295263 | G20: 0 | H20: =IF(Cover!$E$26=2014,((G20/Cover!$D$48)*Cover!$H$48),((G20/Cover!$D$49)*Cover!$I$49)) -> 0 | I20: 25.25295263 | J20: =IF(H20=0,1,((I20-H20)/H20)*1) -> 1 | K20: 0 | L20: 0 | M20: 0 | N20: 0 | O20: 0 | P20: 0 | Q20: 0
C21: Condition based | D21: 437.249783 | E21: 0 | F21: 437.249783 | G21: 0 | H21: =IF(Cover!$E$26=2014,((G21/Cover!$D$48)*Cover!$H$48),((G21/Cover!$D$49)*Cover!$I$49)) -> 0 | I21: 437.249783 | J21: 1 | K21: 0 | L21: 0 | M21: 0 | N21: 0 | O21: 0 | P21: 0 | Q21: 0
C22: Emergency | D22: 212.9196301 | E22: 0 | F22: 212.9196301 | G22: 0 | H22: =IF(Cover!$E$26=2014,((G22/Cover!$D$48)*Cover!$H$48),((G22/Cover!$D$49)*Cover!$I$49)) -> 0 | I22: 212.9196301 | J22: 1 | K22: 0 | L22: 0 | M22: 0 | N22: 0 | O22: 0 | P22: 0 | Q22: 0
C23: SCADA/Network Control | D23: 6.93909901 | E23: 0 | F23: 6.93909901 | G23: 0 | H23: =IF(Cover!$E$26=2014,((G23/Cover!$D$48)*Cover!$H$48),((G23/Cover!$D$49)*Cover!$I$49)) -> 0 | I23: 6.93909901 | J23: 1 | K23: 0 | L23: 0 | M23: 0 | N23: 0 | O23: 0 | P23: 0 | Q23: 0
C24: Other - Standard Control Services | D24: 98.98658635 | E24: 0 | F24: 98.98658635 | G24: 0 | H24: =IF(Cover!$E$26=2014,((G24/Cover!$D$48)*Cover!$H$48),((G24/Cover!$D$49)*Cover!$I$49)) -> 0 | I24: 98.98658635 | J24: 1 | K24: 0 | L24: 0 | M24: 0 | N24: 0 | O24: 0 | P24: 0 | Q24: 0
C25: AMI | D25: 31.65508068 | E25: 0 | F25: 31.65508068 | G25: 0 | H25: =IF(Cover!$E$26=2014,((G25/Cover!$D$48)*Cover!$H$48),((G25/Cover!$D$49)*Cover!$I$49)) -> 0 | I25: 0 | J25: 1 | K25: 31.65508068 | L25: 0 | M25: 0 | N25: 0 | O25: 0 | P25: 0 | Q25: 0
C26: Public Lighting | D26: 90.34446894 | E26: 0 | F26: 90.34446894 | G26: 0 | H26: =IF(Cover!$E$26=2014,((G26/Cover!$D$48)*Cover!$H$48),((G26/Cover!$D$49)*Cover!$I$49)) -> 0 | I26: 0 | J26: 1 | K26: 0 | L26: 29.88599181 | M26: 60.45847713 | N26: 0 | O26: 0 | P26: 0 | Q26: 0
C27: Alternative control -other | D27: 126.4920183 | E27: 0 | F27: 126.4920183 | G27: 0 | H27: =IF(Cover!$E$26=2014,((G27/Cover!$D$48)*Cover!$H$48),((G27/Cover!$D$49)*Cover!$I$49)) -> 0 | I27: 0 | J27: 1 | K27: 0 | L27: 0 | M27: 0 | N27: 61.82926784 | O27: 64.66275047 | P27: 0 | Q27: 0
C28: Negotiated services | D28: 0 | E28: 0 | F28: 0 | G28: 0 | H28: =IF(Cover!$E$26=2014,((G28/Cover!$D$48)*Cover!$H$48),((G28/Cover!$D$49)*Cover!$I$49)) -> 0 | I28: 0 | J28: 1 | K28: 0 | L28: 0 | M28: 0 | N28: 0 | O28: 0 | P28: 0 | Q28: 0
C29: Sub Total | D29: =SUM(D20:D28) -> 1029.839619 | E29: 0 | F29: 1029.839619 | G29: =SUM(G20:G28) -> 0 | H29: =SUM(H20:H28) -> 0 | I29: =SUM(I20:I28) -> 781.3480511 | J29: 1 | K29: =SUM(K20:K28) -> 31.65508068 | L29: 29.88599181 | M29: 60.45847713 | N29: 61.82926784 | O29: 64.66275047 | P29: 0 | Q29: 0
C30: Unregulated services | D30: 0 | E30: 0 | F30: 0 | G30: 0 | H30: =IF(Cover!$E$26=2014,((G30/Cover!$D$48)*Cover!$H$48),((G30/Cover!$D$49)*Cover!$I$49)) -> 0 | I30: 0 | J30: 1 | K30: 0 | L30: 0 | M30: 0 | N30: 0 | O30: 0 | P30: 0 | Q30: 0
C31: Total | D31: =D29+D30 -> 1029.839619 | E31: 0 | F31: 1029.839619 | G31: =G29+G30 -> 0 | H31: =H29+H30 -> 0 | I31: =I29+I30 -> 781.3480511 | J31: 1 | K31: =SUM(K29:K30) -> 31.65508068 | L31: 29.88599181 | M31: 60.45847713 | N31: 61.82926784 | O31: 64.66275047 | P31: 0 | Q31: 0
B34: Table 2: Explanation of material difference
B36: Where the difference between forecast and actual expenditure shown in table 1, column J is greater than ±10 per cent, please explain the main factors driving the difference.
B38: Category | C38: Explanation
C39: N/A
C40: N/A
C41: N/A
C42: N/A
B44: Table 3: Other network maintenance costs
B46: Note: List any items included in "other - standard control services' which are more than 5 per cent of the total standard control services maintenance costs
B48: Statutory account code or reference to account code | C48: Description | D48: Audited statutory accounts | E48: Adjustments | F48: Distribution business
C49: Underground cable locations | D49: 99 | E49: 0 | F49: 99
C50: N/A | D50: 0 | E50: 0 | F50: 0
C51: N/A | D51: 0 | E51: 0 | F51: 0
C52: N/A | D52: 0 | E52: 0 | F52: 0
C53: N/A | D53: 0 | E53: 0 | F53: 0
C54: N/A | D54: 0 | E54: 0 | F54: 0
B56: Definitions
B57: Maintenance categories are as defined in the 2011-15 Distribution determination

Sheet 8a. Operating Activities (T)
B1: =Cover!E22 -> CitiPower Pty
B2: Operating Activities - total
B3: =Cover!E26 -> 2014
E4: Colour coding:
B5: Dollar unit used in this sheet | E5: Yellow = Input cells
B6: nominal $'000 | E6: Grey = No inputs required
B8: This information is necessary for monitoring operating activities, and will be used to inform the AER’s assessment of operating costs and its underlying drivers at the next reset. It will also be used to assist in any comparative analysis undertaken by the AER within the current and future regulatory control periods.
B10: Instructions:
B11: Reported operating charges and costs must INCLUDE any profit margins or management fees paid directly or indirectly to related party contractors (which is not an actual incurred cost of the related party contractor) for the regulatory reporting period.
B12: Forecast expenditure is to be taken from the 2011-15 distribution determination. This forecast is adjusted using the CPI calculations on the cover sheet.
B13: If allocating based on assumptions then provide method.
B14: All adjustments must be explained with supporting documentation attached.
B16: Table 1 Operating charges and costs
B18: Account code or reference to account code | C18: Description | D18: Audited Statutory Accounts | E18: Adjustments | F18: Distribution Business | G18: Standard Control Services | K18: AMI | L18: Public Lighting - Alternative Control | N18: Other Alternative Control Services | P18: Negotiated Services | Q18: Unregulated Services
C19: Designated Pricing Proposal Charges: | G19: Forecast | H19: Adjusted Forecast | I19: Actual | J19: Difference | L19: Energy efficient | M19: Non-energy efficient | N19: Fee based service | O19: Quoted service
C20: Transmission Connection Fee | D20: 11679.14484 | E20: -11679.14484 | F20: 0 | G20: 0 | H20: =IF(Cover!$E$26=2014,((G20/Cover!$D$48)*Cover!$H$48),((G20/Cover!$D$49)*Cover!$I$49)) -> 0 | I20: 0 | J20: =IF(H20=0,1,((I20-H20)/H20)*1) -> 1 | K20: 0 | L20: 0 | M20: 0 | N20: 0 | O20: 0 | P20: 0 | Q20: 0
C21: Avoided TUoS charges/transmission costs | D21: 59076.14827 | E21: -59076.14827 | F21: 0 | G21: 0 | H21: =IF(Cover!$E$26=2014,((G21/Cover!$D$48)*Cover!$H$48),((G21/Cover!$D$49)*Cover!$I$49)) -> 0 | I21: 0 | J21: 1 | K21: 0 | L21: 0 | M21: 0 | N21: 0 | O21: 0 | P21: 0 | Q21: 0
C22: AEMO shared TUOS Charges | D22: 0 | E22: 0 | F22: 0 | G22: 0 | H22: =IF(Cover!$E$26=2014,((G22/Cover!$D$48)*Cover!$H$48),((G22/Cover!$D$49)*Cover!$I$49)) -> 0 | I22: 0 | J22: 1 | K22: 0 | L22: 0 | M22: 0 | N22: 0 | O22: 0 | P22: 0 | Q22: 0
C23: Net Cross Boundary Network Charges | D23: 3618.49768 | E23: -3618.49768 | F23: 0 | G23: 0 | H23: =IF(Cover!$E$26=2014,((G23/Cover!$D$48)*Cover!$H$48),((G23/Cover!$D$49)*Cover!$I$49)) -> 0 | I23: 0 | J23: 1 | K23: 0 | L23: 0 | M23: 0 | N23: 0 | O23: 0 | P23: 0 | Q23: 0
C24: Jurisdictional Scheme Amounts:
C25: Premium Feed In Tariff | D25: 2823.84083 | E25: -2823.84083 | F25: 0 | G25: 0 | H25: =IF(Cover!$E$26=2014,((G25/Cover!$D$48)*Cover!$H$48),((G25/Cover!$D$49)*Cover!$I$49)) -> 0 | I25: 0 | J25: =IF(H25=0,1,((I25-H25)/H25)*1) -> 1 | K25: 0 | L25: 0 | M25: 0 | N25: 0 | O25: 0 | P25: 0 | Q25: 0
C26: Transitional Feed In Tariff | D26: 0 | E26: 0 | F26: 0 | G26: 0 | H26: =IF(Cover!$E$26=2014,((G26/Cover!$D$48)*Cover!$H$48),((G26/Cover!$D$49)*Cover!$I$49)) -> 0 | I26: 0 | J26: 1 | K26: 0 | L26: 0 | M26: 0 | N26: 0 | O26: 0 | P26: 0 | Q26: 0
C27: <insert future jurisdictional scheme payment> | H27: =IF(Cover!$E$26=2014,((G27/Cover!$D$48)*Cover!$H$48),((G27/Cover!$D$49)*Cover!$I$49)) -> 0 | J27: 1 | K27: 0 | L27: 0 | M27: 0 | N27: 0 | O27: 0 | P27: 0 | Q27: 0
C28: Sub Total | D28: =SUM(D20:D27) -> 77197.63162 | E28: -77197.63162 | F28: 0 | G28: =SUM(G20:G27) -> 0 | H28: =SUM(H20:H27) -> 0 | I28: 0 | J28: 1 | K28: 0 | L28: 0 | M28: 0 | N28: 0 | O28: 0 | P28: 0 | Q28: 0
C29: Operating Costs
C30: Network Operating Costs | D30: 12257.14343 | E30: 2823.148016 | F30: 15080.29144 | G30: 12653.16712 | H30: =IF(Cover!$E$26=2014,((G30/Cover!$D$48)*Cover!$H$48),((G30/Cover!$D$49)*Cover!$I$49)) -> 14030.29849 | I30: 15080.29144 | J30: =IF(H30=0,1,((I30-H30)/H30)*1) -> 0.07483753465 | K30: 0 | L30: 0 | M30: 0 | N30: 0 | O30: 0 | P30: 0 | Q30: 0
C31: Billing & Revenue Collection | D31: 3327.466637 | E31: 0 | F31: 3327.466637 | G31: 2134.143436 | H31: =IF(Cover!$E$26=2014,((G31/Cover!$D$48)*Cover!$H$48),((G31/Cover!$D$49)*Cover!$I$49)) -> 2366.416972 | I31: 3327.466637 | J31: 0.4061201707 | K31: 0 | L31: 0 | M31: 0 | N31: 0 | O31: 0 | P31: 0 | Q31: 0
C32: Advertising/Marketing | D32: 5.618519925 | E32: 0 | F32: 5.618519925 | G32: 70.19157906 | H32: =IF(Cover!$E$26=2014,((G32/Cover!$D$48)*Cover!$H$48),((G32/Cover!$D$49)*Cover!$I$49)) -> 77.83101229 | I32: 5.618519925 | J32: -0.9278112958 | K32: 0 | L32: 0 | M32: 0 | N32: 0 | O32: 0 | P32: 0 | Q32: 0
C33: Customer Service | D33: 2875.601375 | E33: 0 | F33: 2875.601375 | G33: 2113.074453 | H33: =IF(Cover!$E$26=2014,((G33/Cover!$D$48)*Cover!$H$48),((G33/Cover!$D$49)*Cover!$I$49)) -> 2343.054906 | I33: 2875.601375 | J33: 0.2272872341 | K33: 0 | L33: 0 | M33: 0 | N33: 0 | O33: 0 | P33: 0 | Q33: 0
C34: Regulatory | D34: 0 | E34: 0 | F34: 0 | G34: 0 | H34: =IF(Cover!$E$26=2014,((G34/Cover!$D$48)*Cover!$H$48),((G34/Cover!$D$49)*Cover!$I$49)) -> 0 | I34: 0 | J34: 1 | K34: 0 | L34: 0 | M34: 0 | N34: 0 | O34: 0 | P34: 0 | Q34: 0
C35: Regulatory Reset | D35: 469.92144 | E35: 0 | F35: 469.92144 | G35: 953.5217345 | H35: =IF(Cover!$E$26=2014,((G35/Cover!$D$48)*Cover!$H$48),((G35/Cover!$D$49)*Cover!$I$49)) -> 1057.300075 | I35: 469.92144 | J35: -0.5555458181 | K35: 0 | L35: 0 | M35: 0 | N35: 0 | O35: 0 | P35: 0 | Q35: 0
C36: IT | D36: 0 | E36: 0 | F36: 0 | G36: 0 | H36: =IF(Cover!$E$26=2014,((G36/Cover!$D$48)*Cover!$H$48),((G36/Cover!$D$49)*Cover!$I$49)) -> 0 | I36: 0 | J36: 1 | K36: 0 | L36: 0 | M36: 0 | N36: 0 | O36: 0 | P36: 0 | Q36: 0
C37: Licence fee | D37: 6.8445 | E37: 0 | F37: 6.8445 | G37: 0 | H37: =IF(Cover!$E$26=2014,((G37/Cover!$D$48)*Cover!$H$48),((G37/Cover!$D$49)*Cover!$I$49)) -> 0 | I37: 6.8445 | J37: 1 | K37: 0 | L37: 0 | M37: 0 | N37: 0 | O37: 0 | P37: 0 | Q37: 0
C38: GSL payments | D38: 77.11 | E38: 0 | F38: 77.11 | G38: 13.97417966 | H38: =IF(Cover!$E$26=2014,((G38/Cover!$D$48)*Cover!$H$48),((G38/Cover!$D$49)*Cover!$I$49)) -> 15.49508592 | I38: 77.11 | J38: 3.976416419 | K38: 0 | L38: 0 | M38: 0 | N38: 0 | O38: 0 | P38: 0 | Q38: 0
C39: Non-network alternatives costs | D39: 0 | E39: 0 | F39: 0 | G39: 0 | H39: =IF(Cover!$E$26=2014,((G39/Cover!$D$48)*Cover!$H$48),((G39/Cover!$D$49)*Cover!$I$49)) -> 0 | I39: 0 | J39: 1 | K39: 0 | L39: 0 | M39: 0 | N39: 0 | O39: 0 | P39: 0 | Q39: 0
C40: Debt raising costs | D40: 0 | E40: 0 | F40: 0 | G40: 831.3829089 | H40: =IF(Cover!$E$26=2014,((G40/Cover!$D$48)*Cover!$H$48),((G40/Cover!$D$49)*Cover!$I$49)) -> 921.8680398 | I40: 0 | J40: -1 | K40: 0 | L40: 0 | M40: 0 | N40: 0 | O40: 0 | P40: 0 | Q40: 0
C41: Other - Standard Control Services | D41: 31012.78926 | E41: -26945.03671 | F41: 4067.752549 | G41: 4976.838051 | H41: =IF(Cover!$E$26=2014,((G41/Cover!$D$48)*Cover!$H$48),((G41/Cover!$D$49)*Cover!$I$49)) -> 5518.501631 | I41: 4067.752549 | J41: -0.262888222 | K41: 0 | L41: 0 | M41: 0 | N41: 0 | O41: 0 | P41: 0 | Q41: 0
C42: AMI | D42: 8648.352319 | E42: 0 | F42: 8648.352319 | G42: 0 | H42: =IF(Cover!$E$26=2014,((G42/Cover!$D$48)*Cover!$H$48),((G42/Cover!$D$49)*Cover!$I$49)) -> 0 | I42: 0 | J42: 1 | K42: 8648.352319 | L42: 0 | M42: 0 | N42: 0 | O42: 0 | P42: 0 | Q42: 0
C43: Public Lighting | D43: 83.8868492 | E43: 0 | F43: 83.8868492 | G43: 0 | H43: =IF(Cover!$E$26=2014,((G43/Cover!$D$48)*Cover!$H$48),((G43/Cover!$D$49)*Cover!$I$49)) -> 0 | I43: 0 | J43: 1 | K43: 0 | L43: 27.74980823 | M43: 56.13704097 | N43: 0 | O43: 0 | P43: 0 | Q43: 0
C44: Alternative control -other | D44: 5967.476007 | E44: 0 | F44: 5967.476007 | G44: 0 | H44: =IF(Cover!$E$26=2014,((G44/Cover!$D$48)*Cover!$H$48),((G44/Cover!$D$49)*Cover!$I$49)) -> 0 | I44: 0 | J44: 1 | K44: 0 | L44: 0 | M44: 0 | N44: 3185.425877 | O44: 2782.05013 | P44: 0 | Q44: 0
C45: Negotiated services | D45: 0 | E45: 0 | F45: 0 | G45: 0 | H45: =IF(Cover!$E$26=2014,((G45/Cover!$D$48)*Cover!$H$48),((G45/Cover!$D$49)*Cover!$I$49)) -> 0 | I45: 0 | J45: 1 | K45: 0 | L45: 0 | M45: 0 | N45: 0 | O45: 0 | P45: 0 | Q45: 0
C46: Sub Total | D46: =SUM(D30:D45) -> 64732.21033 | E46: -24121.88869 | F46: 40610.32164 | G46: =SUM(G30:G45) -> 23746.29347 | H46: =SUM(H30:H45) -> 26330.76622 | I46: =SUM(I30:I45) -> 25910.60646 | J46: -0.0159569892 | K46: 8648.352319 | L46: 27.74980823 | M46: 56.13704097 | N46: 3185.425877 | O46: 2782.05013 | P46: 0 | Q46: 0
C47: Unregulated services | D47: 0 | E47: 0 | F47: 0 | G47: 0 | H47: =IF(Cover!$E$26=2014,((G47/Cover!$D$48)*Cover!$H$48),((G47/Cover!$D$49)*Cover!$I$49)) -> 0 | I47: 0 | J47: 1 | K47: 0 | L47: 0 | M47: 0 | N47: 0 | O47: 0 | P47: 0 | Q47: 0
C48: Total | D48: =SUM(D28, D46:D47) -> 141929.842 | E48: -101319.5203 | F48: 40610.32164 | G48: 23746.29347 | H48: 26330.76622 | I48: 25910.60646 | J48: -0.0159569892 | K48: =SUM(K28, K46:K47) -> 8648.352319 | L48: 27.74980823 | M48: 56.13704097 | N48: 3185.425877 | O48: 2782.05013 | P48: 0 | Q48: 0
B50: Table 2: Explanation of material difference
B52: Where the difference between forecast and actual expenditure shown in table 1, column J is greater than ±10 per cent, please explain the main factors driving the difference.
B54: Category | C54: Explanation
B55: Billing & Revenue Collection | C55: Impact of internal mapping of expenditure. Sum of Billing & Revenue, Advertising, Customer Service & Other - Standard Control Services is in line with forecast. | D55: 0 | E55: 0 | F55: 0
B56: Advertising/Marketing | C56: Impact of internal mapping of expenditure. Sum of Billing & Revenue, Advertising, Customer Service & Other - Standard Control Services is in line with forecast. | D56: 0 | E56: 0 | F56: 0
B57: Customer Service | C57: Impact of internal mapping of expenditure. Sum of Billing & Revenue, Advertising, Customer Service & Other - Standard Control Services is in line with forecast. | D57: 0 | E57: 0 | F57: 0
B58: Regulatory Reset | C58: Lower incremental expenditure due to reduced use of external consultancies. Efficiencies through internalisation. | D58: 0 | E58: 0 | F58: 0
B59: Licence fee | C59: The absolute expenditure variance is not material. | D59: 0 | E59: 0 | F59: 0
B60: GSL payments | C60: The absolute expenditure variance is not material. | D60: 0 | E60: 0 | F60: 0
B61: Debt raising costs | C61: Costs incurred by a higher entity and not against the distribution business entity. | D61: 0 | E61: 0 | F61: 0
B62: Other - Standard Control Services | C62: Impact of internal mapping of expenditure. Sum of Billing & Revenue, Advertising, Customer Service & Other - Standard Control Services is in line with forecast. | D62: 0 | E62: 0 | F62: 0
B64: Table 3: Other network operating costs
B66: Note: List any items included in "other - standard control services' which are more than 5 per cent of the total standard control services operating costs.
B68: Statutory Account code or reference to account code | C68: Description | D68: Audited statutory accounts | E68: Adjustments | F68: Distribution business | G68: Standard Control Services
C69: N/A | D69: 0 | E69: 0 | F69: 0 | G69: 0
C70: N/A | D70: 0 | E70: 0 | F70: 0 | G70: 0
C71: N/A | D71: 0 | E71: 0 | F71: 0 | G71: 0
C72: N/A | D72: 0 | E72: 0 | F72: 0 | G72: 0
C73: N/A | D73: 0 | E73: 0 | F73: 0 | G73: 0
C74: N/A | D74: 0 | E74: 0 | F74: 0 | G74: 0
B76: Table 4 Operating Expenditure - Non-Recurrent Network Operating Costs
B78: Note: List any items that are more than 5 per cent of the total standard control services operating costs.
B80: Statutory Account code or reference to account code | C80: Description | D80: Audited Statutory Financial Statements | E80: Adjustments | F80: Distribution business | G80: Standard Control Services
C81: N/A | D81: 0 | E81: 0 | F81: 0 | G81: 0
C82: N/A | D82: 0 | E82: 0 | F82: 0 | G82: 0
C83: N/A | D83: 0 | E83: 0 | F83: 0 | G83: 0
C84: N/A | D84: 0 | E84: 0 | F84: 0 | G84: 0
C85: N/A | D85: 0 | E85: 0 | F85: 0 | G85: 0
B88: Definitions
B89: Operating expenditure categories are as defined in the 2011-15 Distribution determination
B90: Forecast | C90: The forecast expenditure derived for the 2011-2015 Distribution determination.
B91: Adjusted Forecast | C91: The forecast adjusted to be in equivalent dollar terms to the actual expenditure for the relevant regulatory year
B92: Actual | C92: The expenditure reported for the relevant regulatory year.
B93: ABS CPI | C93: ABS CPI (Pub No: 6401.0, All groups, 8 Capital Cities, September)

Sheet 8b. Operating Activities (M)
B1: =Cover!E22 -> CitiPower Pty
B2: Operating Activities - margin
B3: =Cover!E26 -> 2014
E4: Colour coding:
B5: Dollar unit used in this sheet | E5: Yellow = Input cells
B6: nominal $'000 | E6: Grey = No inputs required
B8: This information is necessary for monitoring operating activities, and will be used to inform the AER’s assessment of operating costs and its underlying drivers at the next reset. It will also be used to assist in any comparative analysis undertaken by the AER within the current and future regulatory control periods.
B10: Instructions:
B11: Reported expenditure must ONLY INCLUDE profit margins or management fees paid directly or indirectly to related party contractors (which is not an actual incurred cost of the related party contractor) for the regulatory reporting period.
B12: Forecast expenditure is to be taken from the 2011-15 distribution determination. This forecast is adjusted using the CPI calculations on the cover sheet.
B13: If allocating based on assumptions then provide method.
B14: All adjustments must be explained with supporting documentation attached.
B16: Table 1 Operating charges and costs
B18: Account code or reference to account code | C18: Description | D18: Audited Statutory Accounts | E18: Adjustments | F18: Distribution Business | G18: Standard Control Services | K18: AMI | L18: Public Lighting - Alternative Control | N18: Other Alternative Control Services | P18: Negotiated Services | Q18: Unregulated Services
C19: Designated Pricing Proposal Charges: | G19: Forecast | H19: Adjusted Forecast | I19: Actual | J19: Difference | L19: Energy efficient | M19: Non efficient | N19: Fee based service | O19: Quoted service
C20: Transmission Connection Fee | D20: 0 | E20: 0 | F20: 0 | G20: 0 | H20: =IF(Cover!$E$26=2014,((G20/Cover!$D$48)*Cover!$H$48),((G20/Cover!$D$49)*Cover!$I$49)) -> 0 | I20: 0 | J20: =IF(H20=0,1,((I20-H20)/H20)*1) -> 1 | K20: 0 | L20: 0 | M20: 0 | N20: 0 | O20: 0 | P20: 0 | Q20: 0
C21: Avoided TUoS charges/transmission costs | D21: 0 | E21: 0 | F21: 0 | G21: 0 | H21: =IF(Cover!$E$26=2014,((G21/Cover!$D$48)*Cover!$H$48),((G21/Cover!$D$49)*Cover!$I$49)) -> 0 | I21: 0 | J21: 1 | K21: 0 | L21: 0 | M21: 0 | N21: 0 | O21: 0 | P21: 0 | Q21: 0
C22: AEMO shared TUOS Charges | D22: 0 | E22: 0 | F22: 0 | G22: 0 | H22: =IF(Cover!$E$26=2014,((G22/Cover!$D$48)*Cover!$H$48),((G22/Cover!$D$49)*Cover!$I$49)) -> 0 | I22: 0 | J22: 1 | K22: 0 | L22: 0 | M22: 0 | N22: 0 | O22: 0 | P22: 0 | Q22: 0
C23: Net Cross Boundary Network Charges | D23: 0 | E23: 0 | F23: 0 | G23: 0 | H23: =IF(Cover!$E$26=2014,((G23/Cover!$D$48)*Cover!$H$48),((G23/Cover!$D$49)*Cover!$I$49)) -> 0 | I23: 0 | J23: 1 | K23: 0 | L23: 0 | M23: 0 | N23: 0 | O23: 0 | P23: 0 | Q23: 0
C24: Jurisdictional Scheme Amounts:
C25: Premium Feed In Tariff | D25: 0 | E25: 0 | F25: 0 | G25: 0 | H25: =IF(Cover!$E$26=2014,((G25/Cover!$D$48)*Cover!$H$48),((G25/Cover!$D$49)*Cover!$I$49)) -> 0 | I25: 0 | J25: =IF(H25=0,1,((I25-H25)/H25)*1) -> 1 | K25: 0 | L25: 0 | M25: 0 | N25: 0 | O25: 0 | P25: 0 | Q25: 0
C26: Transitional Feed In Tariff | D26: 0 | E26: 0 | F26: 0 | G26: 0 | H26: =IF(Cover!$E$26=2014,((G26/Cover!$D$48)*Cover!$H$48),((G26/Cover!$D$49)*Cover!$I$49)) -> 0 | I26: 0 | J26: 1 | K26: 0 | L26: 0 | M26: 0 | N26: 0 | O26: 0 | P26: 0 | Q26: 0
C27: <insert future jurisdictional scheme payment> | H27: =IF(Cover!$E$26=2014,((G27/Cover!$D$48)*Cover!$H$48),((G27/Cover!$D$49)*Cover!$I$49)) -> 0 | J27: =IF(H27=0,1,((I27-H27)/H27)*1) -> 1
C28: Sub Total | D28: =SUM(D20:D27) -> 0 | E28: 0 | F28: 0 | G28: 0 | H28: =SUM(H20:H27) -> 0 | I28: 0 | J28: 1 | K28: 0 | L28: 0 | M28: 0 | N28: 0 | O28: 0 | P28: 0 | Q28: 0
C29: Operating Costs
C30: Network Operating Costs | D30: 0 | E30: 36.15433822 | F30: 36.15433822 | G30: 0 | H30: =IF(Cover!$E$26=2014,((G30/Cover!$D$48)*Cover!$H$48),((G30/Cover!$D$49)*Cover!$I$49)) -> 0 | I30: 36.15433822 | J30: =IF(H30=0,1,((I30-H30)/H30)*1) -> 1 | K30: 0 | L30: 0 | M30: 0 | N30: 0 | O30: 0 | P30: 0 | Q30: 0
C31: Billing & Revenue Collection | D31: 0 | E31: -73.89979954 | F31: -73.89979954 | G31: 0 | H31: =IF(Cover!$E$26=2014,((G31/Cover!$D$48)*Cover!$H$48),((G31/Cover!$D$49)*Cover!$I$49)) -> 0 | I31: -73.89979954 | J31: 1 | K31: 0 | L31: 0 | M31: 0 | N31: 0 | O31: 0 | P31: 0 | Q31: 0
C32: Advertising/Marketing | D32: 0 | E32: -28.63394592 | F32: -28.63394592 | G32: 0 | H32: =IF(Cover!$E$26=2014,((G32/Cover!$D$48)*Cover!$H$48),((G32/Cover!$D$49)*Cover!$I$49)) -> 0 | I32: -28.63394592 | J32: 1 | K32: 0 | L32: 0 | M32: 0 | N32: 0 | O32: 0 | P32: 0 | Q32: 0
C33: Customer Service | D33: 0 | E33: 440.796639 | F33: 440.796639 | G33: 0 | H33: =IF(Cover!$E$26=2014,((G33/Cover!$D$48)*Cover!$H$48),((G33/Cover!$D$49)*Cover!$I$49)) -> 0 | I33: 440.796639 | J33: 1 | K33: 0 | L33: 0 | M33: 0 | N33: 0 | O33: 0 | P33: 0 | Q33: 0
C34: Regulatory | D34: 0 | E34: 0 | F34: 0 | G34: 0 | H34: =IF(Cover!$E$26=2014,((G34/Cover!$D$48)*Cover!$H$48),((G34/Cover!$D$49)*Cover!$I$49)) -> 0 | I34: 0 | J34: 1 | K34: 0 | L34: 0 | M34: 0 | N34: 0 | O34: 0 | P34: 0 | Q34: 0
C35: Regulatory Reset | D35: 0 | E35: 0 | F35: 0 | G35: 0 | H35: =IF(Cover!$E$26=2014,((G35/Cover!$D$48)*Cover!$H$48),((G35/Cover!$D$49)*Cover!$I$49)) -> 0 | I35: 0 | J35: 1 | K35: 0 | L35: 0 | M35: 0 | N35: 0 | O35: 0 | P35: 0 | Q35: 0
C36: IT | D36: 0 | E36: 0 | F36: 0 | G36: 0 | H36: =IF(Cover!$E$26=2014,((G36/Cover!$D$48)*Cover!$H$48),((G36/Cover!$D$49)*Cover!$I$49)) -> 0 | I36: 0 | J36: 1 | K36: 0 | L36: 0 | M36: 0 | N36: 0 | O36: 0 | P36: 0 | Q36: 0
C37: Licence fee | D37: 0 | E37: 0 | F37: 0 | G37: 0 | H37: =IF(Cover!$E$26=2014,((G37/Cover!$D$48)*Cover!$H$48),((G37/Cover!$D$49)*Cover!$I$49)) -> 0 | I37: 0 | J37: 1 | K37: 0 | L37: 0 | M37: 0 | N37: 0 | O37: 0 | P37: 0 | Q37: 0
C38: GSL payments | D38: 0 | E38: 0 | F38: 0 | G38: 0 | H38: =IF(Cover!$E$26=2014,((G38/Cover!$D$48)*Cover!$H$48),((G38/Cover!$D$49)*Cover!$I$49)) -> 0 | I38: 0 | J38: 1 | K38: 0 | L38: 0 | M38: 0 | N38: 0 | O38: 0 | P38: 0 | Q38: 0
C39: Non-network alternatives costs | D39: 0 | E39: 0 | F39: 0 | G39: 0 | H39: =IF(Cover!$E$26=2014,((G39/Cover!$D$48)*Cover!$H$48),((G39/Cover!$D$49)*Cover!$I$49)) -> 0 | I39: 0 | J39: 1 | K39: 0 | L39: 0 | M39: 0 | N39: 0 | O39: 0 | P39: 0 | Q39: 0
C40: Debt raising costs | D40: 0 | E40: 0 | F40: 0 | G40: 0 | H40: =IF(Cover!$E$26=2014,((G40/Cover!$D$48)*Cover!$H$48),((G40/Cover!$D$49)*Cover!$I$49)) -> 0 | I40: 0 | J40: 1 | K40: 0 | L40: 0 | M40: 0 | N40: 0 | O40: 0 | P40: 0 | Q40: 0
C41: Other - Standard Control Services (a,b) | D41: 0 | E41: 649.550088 | F41: 649.550088 | G41: 0 | H41: =IF(Cover!$E$26=2014,((G41/Cover!$D$48)*Cover!$H$48),((G41/Cover!$D$49)*Cover!$I$49)) -> 0 | I41: 649.550088 | J41: 1 | K41: 0 | L41: 0 | M41: 0 | N41: 0 | O41: 0 | P41: 0 | Q41: 0
C42: AMI | D42: 0 | E42: 389.1233251 | F42: 389.1233251 | G42: 0 | H42: =IF(Cover!$E$26=2014,((G42/Cover!$D$48)*Cover!$H$48),((G42/Cover!$D$49)*Cover!$I$49)) -> 0 | I42: 0 | J42: 1 | K42: 389.1233251 | L42: 0 | M42: 0 | N42: 0 | O42: 0 | P42: 0 | Q42: 0
C43: Public Lighting | D43: 0 | E43: 12.7555918 | F43: 12.7555918 | G43: 0 | H43: =IF(Cover!$E$26=2014,((G43/Cover!$D$48)*Cover!$H$48),((G43/Cover!$D$49)*Cover!$I$49)) -> 0 | I43: 0 | J43: 1 | K43: 0 | L43: 4.219555623 | M43: 8.536036174 | N43: 0 | O43: 0 | P43: 0 | Q43: 0
C44: Alternative control -other | D44: 0 | E44: 327.1713385 | F44: 327.1713385 | G44: 0 | H44: =IF(Cover!$E$26=2014,((G44/Cover!$D$48)*Cover!$H$48),((G44/Cover!$D$49)*Cover!$I$49)) -> 0 | I44: 0 | J44: 1 | K44: 0 | L44: 0 | M44: 0 | N44: 218.6726029 | O44: 108.4987356 | P44: 0 | Q44: 0
C45: Negotiated services | D45: 0 | E45: 0 | F45: 0 | G45: 0 | H45: =IF(Cover!$E$26=2014,((G45/Cover!$D$48)*Cover!$H$48),((G45/Cover!$D$49)*Cover!$I$49)) -> 0 | I45: 0 | J45: 1 | K45: 0 | L45: 0 | M45: 0 | N45: 0 | O45: 0 | P45: 0 | Q45: 0
C46: Sub Total | D46: =SUM(D30:D45) -> 0 | E46: 1753.017575 | F46: 1753.017575 | G46: 0 | H46: =SUM(H30:H45) -> 0 | I46: =SUM(I30:I45) -> 1023.96732 | J46: =IF(H46=0,1,((I46-H46)/H46)*1) -> 1 | K46: =SUM(K30:K45) -> 389.1233251 | L46: 4.219555623 | M46: 8.536036174 | N46: 218.6726029 | O46: 108.4987356 | P46: 0 | Q46: 0
C47: Unregulated services | D47: 0 | E47: 0 | F47: 0 | G47: 0 | H47: =IF(Cover!$E$26=2014,((G47/Cover!$D$48)*Cover!$H$48),((G47/Cover!$D$49)*Cover!$I$49)) -> 0 | I47: 0 | J47: 1 | K47: 0 | L47: 0 | M47: 0 | N47: 0 | O47: 0 | P47: 0 | Q47: 0
C48: Total | D48: =SUM(D28, D46:D47) -> 0 | E48: 1753.017575 | F48: 1753.017575 | G48: 0 | H48: 0 | I48: 1023.96732 | J48: 1 | K48: =SUM(K28, K46:K47) -> 389.1233251 | L48: 4.219555623 | M48: 8.536036174 | N48: 218.6726029 | O48: 108.4987356 | P48: 0 | Q48: 0
B50: Table 2: Explanation of material difference
B52: Where the difference between forecast and actual expenditure shown in table 1, column J is greater than ±10 per cent, please explain the main factors driving the difference.
B54: Category | C54: Explanation
B55: 0 | C55: 0 | D55: 0 | E55: 0 | F55: 0
B56: 0 | C56: 0 | D56: 0 | E56: 0 | F56: 0
B57: 0 | C57: 0 | D57: 0 | E57: 0 | F57: 0
B59: Table 3 Operating costs - Other standard control services
B61: Note: List any items included in "other - standard control services' which are more than 5 per cent of the total standard control services operating costs
B63: Statutory Account code or reference to account code | C63: Description | D63: Audited Statutory Accounts | E63: Adjustments | F63: Distribution Business | G63: Standard Control Services
C64: N/A | D64: 0 | E64: 0 | F64: 0 | G64: 0
C65: N/A | D65: 0 | E65: 0 | F65: 0 | G65: 0
C66: N/A | D66: 0 | E66: 0 | F66: 0 | G66: 0
C67: N/A | D67: 0 | E67: 0 | F67: 0 | G67: 0
C68: N/A | D68: 0 | E68: 0 | F68: 0 | G68: 0
C69: N/A | D69: 0 | E69: 0 | F69: 0 | G69: 0
C70: N/A | D70: 0 | E70: 0 | F70: 0 | G70: 0
B72: Table 3 Operating Expenditure - Non-Recurrent Network Operating Costs
B74: Note: List any non-recurrent cost items included in "network operating costs" that are more than 5 per cent of the total standard control services operating costs.
B76: Statutory Account code or reference to account code | C76: Description | D76: Audited Statutory Accounts | E76: Adjustments | F76: Distribution Business | G76: Standard Control Services
C77: N/A | D77: 0 | E77: 0 | F77: 0 | G77: 0
C78: N/A | D78: 0 | E78: 0 | F78: 0 | G78: 0
C79: N/A | D79: 0 | E79: 0 | F79: 0 | G79: 0
C80: N/A | D80: 0 | E80: 0 | F80: 0 | G80: 0
C81: N/A | D81: 0 | E81: 0 | F81: 0 | G81: 0
C82: N/A | D82: 0 | E82: 0 | F82: 0 | G82: 0
C83: N/A | D83: 0 | E83: 0 | F83: 0 | G83: 0
B85: Definitions
B86: Operating activities are as defined in Appndix G of the RIN, or the 2011-15 distribution determination

Sheet 13. Avoided Cost Payments
B1: =Cover!E22 -> CitiPower Pty | D1: Colour coding:
B2: Avoided Cost Payments | D2: Yellow = Input cells
B3: =Cover!E26 -> 2014 | D3: Grey = No inputs required
B5: Dollar unit used in this sheet
B6: nominal $'000
B8: This information is necessary for monitoring avoided cost payments, and will be used to inform the AER’s assessment of expenditure and its underlying drivers at the next reset. It will also be used to assist in any comparative analysis undertaken by the AER within the current and future regulatory control periods.
B10: Statutory Account code or reference to account code | C10: Description | D10: Avoided Cost Payment | E10: Number of Projects
C11: Deferral of Augmentation to Transmission Networks
C12: Embedded generators | D12: 57.83514 | E12: 3
C13: Related party embedded generators | D13: 0 | E13: 0
C14: Customers | D14: 0 | E14: 0
C15: Avoided TUOS | D15: 0 | E15: 0
C16: Sub Total | D16: =SUM(D12:D15) -> 57.83514 | E16: =SUM(E12:E15) -> 3
C17: Deferral of Augmentation to Distribution Networks
C18: Embedded generators | D18: 0 | E18: 0
C19: Related party embedded generators | D19: 0 | E19: 0
C20: Customers | D20: 0 | E20: 0
C21: Sub Total | D21: =SUM(D18:D20) -> 0 | E21: =SUM(E18:E20) -> 0
C22: TOTAL | D22: =D21+D16 -> 57.83514 | E22: =E21+E16 -> 3
B24: Definition
B25: Avoided cost payments | C25: The payments made by CitiPower to represent costs that CitiPower would have incurred in the provision of distribution services, but for the actions of another party, which may include a Related Party, embedded generator, third party or customer.
B26: Embedded generators | C26: A person that owns, controls or operates an embedded generating unit.
B27: Related party embedded generators | C27: A related party that owns, controls or operates an embedded generating unit.
B28: Customers | C28: A Distribution Customer (with active and/or inactive accounts) with an active National Metering Identifier (NMI).
B29: Avoided TUOS | C29: Cost of using another distribution network service provider’s distribution network.

Sheet 14. Alt Control&Others
B1: =Cover!E22 -> CitiPower Pty | E1: Colour coding:
B2: Alternative Control Services and Other Services | E2: Yellow = Input cells
B3: =Cover!E26 -> 2014 | E3: Grey = No inputs required
B4: Dollar unit used in this sheet
B5: nominal $'000
B7: This information is necessary for monitoring Alternative control & other services, and will be used to inform the AER’s assessment of expenditure and its underlying drivers at the next reset. It will also be used to assist in any comparative analysis undertaken by the AER within the current and future regulatory control periods.
B10: Statutory Account code or reference to account code | C10: Description | D10: Direct O&M Costs | E10: Indirect O&M costs | F10: Direct Capex | G10: Indirect Capex | H10: Total expenditure | I10: Revenue
C11: Alternative Control Services - Fee Based
C12: Meter investigation | D12: 80.519141 | E12: 13.48324166 | F12: 0 | G12: 0 | H12: =SUM(D12:G12) -> 94.00238266 | I12: -21.4884
C13: Meter Testing | D13: 87.575189 | E13: 14.6648042 | F13: 0 | G13: 0 | H13: =SUM(D13:G13) -> 102.2399932 | I13: -28.28663
C14: De-energisation of existing connections | D14: 379.63952 | E14: 11.07305549 | F14: 0 | G14: 0 | H14: 390.7125755 | I14: -538.0212929
C15: Energisation of existing connections | D15: 602.4396465 | E15: 17.57153111 | F15: 0 | G15: 0 | H15: 620.0111776 | I15: -853.7713817
C16: Special meter reading | D16: 12.61788413 | E16: 0.3680294695 | F16: 0 | G16: 0 | H16: 12.9859136 | I16: -17.88193793
C17: Re-test of type 5 and 6 metering installations for first tier customers with annual consumption greater than 160 MWh | D17: 0 | E17: 0 | F17: 0 | G17: 0 | H17: 0 | I17: 0
C18: Operation, repair, replacement and maintenance of DNSP public lighting assets | D18: 2781.863854 | E18: 464.8985999 | F18: 1928.309526 | G18: 246.7521323 | H18: 5421.824112 | I18: -4524.28558
C19: Fault response - not DNSP fault | D19: 0 | E19: 0 | F19: 0 | G19: 0 | H19: 0 | I19: 0
C20: Temporary disconnect/reconnect services | D20: 0 | E20: 0 | F20: 0 | G20: 0 | H20: 0 | I20: 0
C21: Wasted attendance - not DNSP fault | D21: 290.1917187 | E21: 48.4018729 | F21: 0 | G21: 0 | H21: 338.5935916 | I21: -28.14987
C22: Service truck visits | D22: 654.589508 | E22: 108.5165373 | F22: 0 | G22: 0 | H22: 763.1060453 | I22: -1098.36947
C23: Reserve feeder | D23: 247.1676617 | E23: 7.209210552 | F23: 0 | G23: 0 | H23: 254.3768722 | I23: -195.88531
C24: PV installation | D24: 191.7321558 | E24: 5.592307146 | F24: 0 | G24: 0 | H24: 197.3244629 | I24: -263.53755
C25: Routine connections - customers below 100 amps | D25: 1985.157692 | E25: 357.4660228 | F25: 0 | G25: 0 | H25: 2342.623715 | I25: -2926.88822
C26: Temporary supply services | D26: 0 | E26: 0 | F26: 0 | G26: 0 | H26: 0 | I26: 0
C27: Remote meter re-configuration | D27: 0 | E27: 0 | F27: 0 | G27: 0 | H27: 0 | I27: 0
C28: Remote de-energisation | D28: 0 | E28: 0 | F28: 0 | G28: 0 | H28: 0 | I28: 0
C29: Remote re-energisation | D29: 0 | E29: 0 | F29: 0 | G29: 0 | H29: 0 | I29: 0
C30: Total fee based alternative control services | D30: =SUM(D12:D29) -> 7313.493971 | E30: 1049.245213 | F30: 1928.309526 | G30: 246.7521323 | H30: 10537.80084 | I30: -10496.56564
C31: Alternative Control Services - Quoted
C32: Rearrangement of network assets at customer request, excluding alteration and relocation of existing public lighting assets | D32: 0 | E32: 0 | F32: 0 | G32: 0 | H32: =SUM(D32:G32) -> 0 | I32: 0
C33: Supply enhancement at customer request | D33: 0 | E33: 0 | F33: 0 | G33: 0 | H33: 0 | I33: 0
C34: Supply abolishment | D34: 646.0166853 | E34: 110.9153711 | F34: 0 | G34: 0 | H34: 756.9320564 | I34: -393.72079
C35: Emergency recoverable works (that is, emergency works where customer is at fault and immediate action needs to be taken by the DNSP) | D35: 1287.95513 | E35: 195.9782864 | F35: 0 | G35: 0 | H35: 1483.933416 | I35: -820.40459
C36: Auditing of design and construction | D36: 22.92230223 | E36: 3.483489196 | F36: 0 | G36: 0 | H36: 26.40579142 | I36: 0
C37: Specification and design enquiry fees | D37: 1060.589308 | E37: 161.1771522 | F37: 0 | G37: 0 | H37: 1221.76646 | I37: -902.34456
C38: Elective underground service where an existing overhead service exists | D38: 0 | E38: 0 | F38: 0 | G38: 0 | H38: 0 | I38: 0
C39: Damage to overhead service cables pulled down by high load vehicles | D39: 0 | E39: 0 | F39: 0 | G39: 0 | H39: 0 | I39: 0
C40: High load escorts—lifting overhead lines | D40: 0 | E40: 0 | F40: 0 | G40: 0 | H40: 0 | I40: -0.2951
C41: Covering of low voltage mains for safety reasons | D41: 984.1730852 | E41: 159.1051716 | F41: 0 | G41: 0 | H41: 1143.278257 | I41: -1239.70837
C42: Routine connections, for customers > 100amps | D42: 0 | E42: 0 | F42: 0 | G42: 0 | H42: 0 | I42: 0
C43: After hours truck by appointment | D43: 39.55065323 | E43: 6.626196508 | F43: 0 | G43: 0 | H43: 46.17684974 | I43: -99.99417
C44: Total quoted alternative control services | D44: =SUM(D32:D43) -> 4041.207164 | E44: =SUM(E32:E43) -> 637.285667 | F44: =SUM(F32:F43) -> 0 | G44: 0 | H44: 4678.492831 | I44: -3456.46758
C45: Other Activities - Non Regulated
C46: Pole, Duct, Fibre & Property Rental | D46: 0 | E46: 0 | F46: 0 | G46: 0 | H46: =SUM(D46:G46) -> 0 | I46: -2785.76571
D47: 0 | E47: 0 | F47: 0 | G47: 0 | H47: =SUM(D47:G47) -> 0 | I47: 0
C48: Total non - regulated | D48: =SUM(D46:D47) -> 0 | E48: =SUM(E46:E47) -> 0 | F48: 0 | G48: 0 | H48: =SUM(D48:G48) -> 0 | I48: =SUM(I46:I47) -> -2785.76571
C49: TOTAL | D49: =SUM(D30,D44,D48) -> 11354.70113 | E49: =SUM(E30,E44,E48) -> 1686.53088 | F49: 1928.309526 | G49: 246.7521323 | H49: 15216.29367 | I49: -16738.79893
C50: Public Lighting (amounts also included above)
C51: Efficient luminaires | D51: 920.2418403 | E51: 153.7886703 | F51: 609.0287658 | G51: 77.93310386 | H51: =SUM(D51:G51) -> 1760.99238 | I51: -1771.474078
C52: Non-energy efficient luminaires | D52: 1861.622014 | E52: 311.1099296 | F52: 1319.28076 | G52: 168.8190284 | H52: =SUM(D52:G52) -> 3660.831732 | I52: -2752.811502
C53: Total public lighting | D53: =SUM(D51:D52) -> 2781.863854 | E53: =SUM(E51:E52) -> 464.8985999 | F53: =SUM(F51:F52) -> 1928.309526 | G53: =SUM(G51:G52) -> 246.7521323 | H53: =SUM(D53:G53) -> 5421.824112 | I53: =SUM(I51:I52) -> -4524.28558
B57: Definitions
B58: Alternative control services are as defined in Citipower's approved CAM.

Sheet 15. EBSS
B1: =Cover!E22 -> CitiPower Pty
B2: Efficiency Benefits Sharing Schemes
B3: =Cover!E26 -> 2014
D4: Colour coding:
B5: Dollar unit used in this sheet | D5: Yellow = Input cells
B6: nominal $'000 | D6: Grey = No inputs required
B8: EBSS information is used by the AER to monitor EBSS scheme throughout the regulatory control period.
B11: Table 1 Opex for EBSS Purposes
B13: Note: a) Only superannuation costs related to defined benefit schemes are to be reported
B14: b) Only self insurance cost categories approved in the AER's determination are to be reported
B16: Total Actual Opex | C16: ='6a. Maintenance - total '!I31+'8a. Operating Activities (T)'!I48 -> 56982.28974
B17: Debt raising costs | C17: 0
B18: Self insurance | C18: 0
B19: Superannuation defined benefit schemes | C19: 1048
B20: Non network alternatives costs | C20: 0
B21: DMIA costs | C21: 403.9303106
B22: Pass through event costs | C22: 0
B23: GSL payments | C23: 77.11
B24: Total opex adjustment for EBSS purposes | C24: =SUM(C17:C23) -> 1529.040311
B25: Total opex for EBSS purposes | C25: =C16-C24 -> 55453.24943
B27: Note: Total opex for EBSS purposes has not been adjusted for movement in provisions
B29: Table 2 Explanation of Capitalisation Policy Changes
B31: Note: This should include a description of any items that have previously been considered as opex items, but are now being considered capex items.
B33: Capitalisation Policy Change | C33: Impact on forecast opex | D33: Description
B34: 0 | C34: 0 | D34: 0 | E34: 0 | F34: 0 | G34: 0 | H34: 0 | I34: 0 | J34: 0 | K34: 0
B35: 0 | C35: 0 | D35: 0 | E35: 0 | F35: 0 | G35: 0 | H35: 0 | I35: 0 | J35: 0 | K35: 0
B36: 0 | C36: 0 | D36: 0 | E36: 0 | F36: 0 | G36: 0 | H36: 0 | I36: 0 | J36: 0 | K36: 0
B37: 0 | C37: 0 | D37: 0 | E37: 0 | F37: 0 | G37: 0 | H37: 0 | I37: 0 | J37: 0 | K37: 0
B38: Total | C38: =SUM(C34:C37) -> 0
B41: Definitions
B42: EBSS exclusions have the meaning used in the 2011-15 Distribution determination

Sheet 16. Juris Scheme
B1: =Cover!E22 -> CitiPower Pty
B2: Jurisdictional Scheme Payments
B3: =Cover!E26 -> 2014
D5: Colour coding:
B6: Dollar unit used in this sheet | D6: Yellow = Input cells
B7: nominal $'000 | D7: Grey = No inputs required
B9: Jurisdictional scheme information is used by the AER to monitor approved Jurisdictional schemes throughout the regulatory control period.
B12: Scheme Payment Name | C12: Description | D12: Date DNSP Became Subject to Scheme | E12: Description of Cost Recovery Method | F12: Total Scheme Payments
B13: Premium Solar Feed-in Tariff & Transitional feed-in tariff payments | C13: Credit per kWh paid for excess electricity fed back into the grid | D13: 1 November 2009 | E13: Appendix F3 of the Final Decision Distribution determination 2011-2015 | F13: 3106.32169
D17: Total jurisdictional scheme payments | F17: =SUM(F13:F16) -> 3106.32169
B19: Definitions
B20: Jurisdictional Scheme Payment | C20: In respect of a Jurisdictional Scheme, the amounts a DNSP is required under the Jurisdictional Scheme obligations to: (a) pay to a person (b) pay into a fund established under an Act of a participating jurisdiction (c) credit against charges payable by a person (d) reimburse a person less any amounts recovered by the DNSP from any person in respect of those amounts other than under the NER.
B21: Jurisdictional Scheme | C21: Jurisdictional scheme has the meaning given in clause 6.18.7A(d) of the NER.

Sheet 17.DMIS-DMIA
B1: =Cover!E22 -> CitiPower Pty
B2: Demand management incentive scheme
B3: =Cover!E26 -> 2014
D5: Colour coding:
B6: Dollar unit used in this sheet | D6: Yellow = Input cells
B7: nominal $'000 | D7: Grey = No inputs required
B10: This information will form the basis of the AER’s assessment of the DNSP’s compliance with the DMIS, and its entitlement to recover expenditure under the DMIS. The information will also assist the AER in assessing proposals for demand management expenditure in opex and capex forecasts submitted in a DNSP’s regulatory proposals, and in the development and implementation of DMEGCIS, in future regulatory control periods.
B13: Table 1 DMIA expenditure in the regulatory reporting year
B15: Name of project | C15: =B3 -> 2014
C16: Operating expenditure | D16: Capital expenditure | E16: Total expenditure
B17: DMIA JACOBS Scope #1 | C17: 95.804 | D17: 0 | E17: =SUM(C17:D17) -> 95.804
B18: AEMO Data Provision [Supports Scope #1] | C18: 1.9 | D18: 0 | E18: 1.9
B19: DMIA JACOBS Scope #2 | C19: 138.9 | D19: 0 | E19: 138.9
B20: Network Support WMTS 2014 | C20: 105 | D20: 0 | E20: 105
B21: Storage Investment Framework Design and Analysis | C21: 62.32631056 | D21: 0 | E21: 62.32631056
B22: 0 | C22: 0 | D22: 0 | E22: 0
B23: Total | C23: =SUM(C17:C22) -> 403.9303106 | D23: =SUM(D17:D22) -> 0 | E23: =SUM(E17:E22) -> 403.9303106
B25: Table 2 DMIA expenditure in the previous reporting year
B27: Name of project | C27: =B3-1 -> 2013
C28: Operating expenditure | D28: Capital expenditure | E28: Total expenditure
B29: 0 | C29: 0 | D29: 0 | E29: =SUM(C29:D29) -> 0
B30: 0 | C30: 0 | D30: 0 | E30: =SUM(C30:D30) -> 0
B31: 0 | C31: 0 | D31: 0 | E31: =SUM(C31:D31) -> 0
B32: Total | C32: =SUM(C29:C31) -> 0 | D32: =SUM(D29:D31) -> 0 | E32: =SUM(E29:E31) -> 0
B34: Table 3 Foregone revenue in the regulatory reporting year
B36: Name of project | C36: =B3 -> 2014
C37: Forecast quantity | D37: Actual quantity | E37: Forgone quantity | F37: Price
B38: 0 | C38: 0 | D38: 0 | E38: =C38-D38 -> 0 | F38: 0
B39: 0 | C39: 0 | D39: 0 | E39: =C39-D39 -> 0 | F39: 0
B40: 0 | C40: 0 | D40: 0 | E40: 0 | F40: 0
B41: 0 | C41: 0 | D41: 0 | E41: 0 | F41: 0
B42: 0 | C42: 0 | D42: 0 | E42: 0 | F42: 0
B43: 0 | C43: 0 | D43: 0 | E43: 0 | F43: 0
B44: Total | C44: =SUM(C38:C43) -> 0 | D44: =SUM(D38:D43) -> 0 | E44: 0
B47: Definitions
B48: Demand management incentive scheme | C48: The AER’s Demand Management Incentive Scheme – CitiPower, Powercor, Jemena, SP AusNet and United Energy 2011–15: Part A – Demand Management Innovation Allowance, dated April 2009.
B49: The terms used in this template have the same meaning as in the Demand management incentive scheme

Sheet 18. Self Insurance
B1: =Cover!E22 -> CitiPower Pty
B2: Self Insurance
B3: =Cover!E26 -> 2014
D4: Colour coding:
B5: Dollar unit used in this sheet | D5: Yellow = Input cells
B6: nominal $'000 | D6: Grey = No inputs required
B8: Information on actual, audited costs incurred by DNSPs on self insurance events (collected annually) will assist the AER with determining an appropriate self insurance allowance for DNSPs at the next regulatory reset. The information is required to be reported annually so that DNSPs can clearly demonstrate (to the AER) that their business processes and reporting systems properly account for self insurance events. This includes correctly accounting for the risks insured and costs to the DNSP.
B11: Table 1 Self Insurance Events with an Incurred Cost of Greater than $100 000 per Event.
B13: Type of Self Insurance Event | C13: Date of Event | D13: Description of Event | H13: Cost of the Event that Relates to Regulated Assets | J13: Other Costs (eg Costs Related to Non-regulated Assets) | L13: Total Cost of Self Insurance Event | N13: Costs Covered by External Funding | P13: Costs to be passed through | R13: Is information held that verifies the event?
B14: [eg. Liability, fire etc]
D22: Total actual cost of self insurance | H22: =SUM(H14:I21) -> 0 | J22: =SUM(J14:K21) -> 0 | L22: =SUM(L14:M21) -> 0 | N22: =SUM(N14:O21) -> 0 | P22: =SUM(P14:Q21) -> 0
B24: Table 2 Self insurance events with an incurred cost of less than $100 000 per event
B26: Number of events | C26: Costs of the events that relate to regulated assets | F26: Costs covered by external funding | I26: Costs that do not relate to regulated assets
B30: Table 3 Total self insurance that relate to regulated assets
B32: Total self insurance | D32: =H22+C27+C28 -> 0
B34: Note: This section is not intended to reconcile with EBSS data
B36: Definition
B37: Self Insurance event | C37: Meaning is the same as used in the 2011-15 Distribution Determination

Sheet 19. CHAP
B1: =Cover!E22 -> CitiPower Pty | D1: Colour coding:
B2: Change of Accounting Policy | D2: Yellow = Input cells
B3: =Cover!E26 -> 2014 | D3: Grey = No inputs required
B5: Dollar unit used in this sheet
B6: nominal $'000
B8: This information is required by the AER to assess forecast expenditure proposed by DNSPs at their next reset. It captures changes in accounting policies made from year to year and the effect on the Financial Statements. This information will increase transparency and accountability to stakeholders.
B10: Note: a) Only list those items where the adjustment amount for the item meets the materiality threshold applied in the statutory financial accounts b) Tables 1 and 2 capture both the changes in the application of accounting standards and changes in the accounting standards themselves.
B12: Table 1 The aggregate effect of the change in accounting policy on the balance sheet and income statements
B14: Statutory Account code or reference to account code | C14: CitiPower Category | D14: Previously Stated | E14: Adjustment | F14: Restated
C15: Balance Sheet
C16: <Item> | E16: =F16-D16 -> 0
C17: <Item> | E17: =F17-D17 -> 0
C18: <Item> | E18: =F18-D18 -> 0
C19: Income Statement
C20: <Item> | E20: 0
C21: <Item> | E21: 0
C22: <Item> | E22: 0
B24: Table 2: Description and reason for the change in accounting policy
B26: Statutory account code or reference to account code | C26: Description of change | D26: Reason for the change of accounting policy | G26: Items impacted
G27: <Item>
G28: <Item>
G29: <Item>
G30: <Item>

Sheet 20. Related Party
B1: =Cover!E22 -> CitiPower Pty | D1: Colour coding:
B2: Related Party Transactions | D2: Yellow = Input cells
B3: =Cover!E26 -> 2014 | D3: Grey = No inputs required
B4: Dollar unit used in this sheet
B5: nominal $'000
B7: The AER will use information on related party transactions to understand of the financial impacts of the such transactions on the costs of the DNSP and will be used to inform the AER’s assessment of expenditure and its underlying drivers at the next reset.
B10: Table 1. Payments made by CitiPower to Related Party under CONTROL or INFLUENCING Ownership
B11: Note: for transactions with a Related Party that is related to the provision of standard control services, alternative control services, Advanced Metering Infrastructure or negotiated distribution services and greater than $500,000
B13: Name of related party | C13: Services Provided | D13: Contract Charge | F13: Actual Cost | H13: Margin | J13: Description of how this transaction amount was determined | K13: Description of how this amount is reflected in the Regulatory Accounting Statements, including the asset class or cost category | L13: Where the related party costs have been allocated to different asset classes or cost categories, the description of the basis of allocation and the quantum of the allocator
D14: Capex | E14: Opex | F14: Capex | G14: Opex | H14: Capex | I14: Opex
B15: CHED Services | C15: Corporate Services - management, administration, back office and other business functions | D15: x | E15: x | F15: x | G15: x | H15: x | I15: x | J15: The services fee amount is based on an arms length negotiated price. The actual incurred cost of the individual services was determined by the related party. | K15: The contract price / actual cost is included in operating expenses, maintenance and capital expenditure, allocated between Standard Control and AMI | L15: Refer to the Services Fee Allocation workpaper for details of the amount and the method of its allocation.
B16: CHED Services | C16: Infill Insurance Premium | D16: x | E16: x | F16: x | G16: x | H16: x | I16: x | J16: The fee amount is in accordance with external assessment and advice for these services. | K16: The contract price / actual cost is included in Operating Expenses as a directly attributable cost to Standard Control | L16: No costs are allocated
B17: CHED Services | C17: AMI Project Services | D17: x | E17: x | F17: x | G17: x | H17: x | I17: x | J17: The actual incurred cost was determined by the related party. | K17: The contract price actual cost has been directly attributed to AMI capital and operating expenses | L17: No costs are allocated
B18: CHED Services | C18: Metering and Servicing Activities | D18: x | E18: x | F18: x | G18: x | H18: x | I18: x | J18: The fee amount is based on an arms length negotiated price. The actual incurred cost was determined by the related party. | K18: The contract price / actual cost is included in operating, maintenance and capital expenditure as a directly attributable cost to AMI and ACS. | L18: No costs are allocated
B19: CHED Services | C19: IT AMI Support Services | D19: x | E19: x | F19: x | G19: x | H19: x | I19: x | J19: The fee amount is based on an arms length negotiated price. The actual incurred cost was determined by the related party | K19: The contract price / actual cost is included in operating expenses as an ACS. | L19: No costs are allocated
B20: Powercor Network Services | C20: Network Services - construction, maintenance, faults, emergency and related services | D20: x | E20: x | F20: x | G20: x | H20: x | I20: x | J20: The fee amount is based on an arms length negotiated price and the actual cost incurred was determined by the related party. | K20: The contract price /actual cost is directly attributable to Standard Control, AMI and ACS capital, maintenance and operating expenditure. | L20: No costs are allocated
B21: CHED Services | C21: IT System Enhancements | D21: x | E21: x | F21: x | G21: x | H21: x | I21: x | J21: The fee amount is based on an arms length negotiated price. The actual incurred cost was determined by the related party | K21: The contract price / actual cost is included in capital expenses and is allocated directly to Standard Control and AMI | L21: No costs are allocated
B23: Table 2. Composition of margins in relation to table 1.
B25: Name of related party | C25: Services Provided | D25: Margins | H25: Total
D26: Overhead | F26: Residual
B27: CHED Services | C27: Corporate Services - management, administration, back office and other business functions | D27: x | F27: x | H27: x
B28: CHED Services | C28: Infill Insurance Premium | D28: x | F28: x | H28: x
B29: CHED Services | C29: AMI Project Services | D29: x | F29: x | H29: x
B30: CHED Services | C30: Metering and Servicing Activities | D30: x | F30: x | H30: x
B31: CHED Services | C31: IT AMI Support Services | D31: x | F31: x | H31: x
B32: Powercor Network Services | C32: Network Services - construction, maintenance, faults, emergency and related services | D32: x | F32: x | H32: x
B33: CHED Services | C33: IT System Enhancements | D33: x | F33: x | H33: x
B35: Note: Provide, if separately identifiable the proportion of margins related to overhead costs and the proportion if any, that is related to assets used but not in the Distribution Businesses regulatory asset base.
B37: Definition
B38: Related Party Transaction | C38: Any transaction between the related party and the regulated distribution business.
B39: Related Party Transaction - Actual Cost | C39: The actual cost of the related party transaction
B40: Related Party Transaction - Contract Charge | C40: The charge specified in the contract for the related party transaction
B41: Related party | C41: In relation to the provision of distribution services by CitiPower, any other Entity that, at any time during each Relevant Regulatory Year: (a) has control or significant influence over CitiPower; (b) is subject to control or significant influence by CitiPower; (c) is controlled by the same Entity that controls or which has common control over, CitiPower; (d) is controlled by the same Entity that significantly influences CitiPower; (e) is significantly influenced by the same Entity that controls CitiPower; or (f) has been novated or assigned a contract or arrangement by CitiPower with any of the Entities identified in subparagraphs (a)–(e), and includes: (i) CKI/HEI Electricity Distribution Holdings (Australia) Pty Ltd (ACN 101 392161); (ii) CHED Services Pty Ltd (ACN 112 304 622); (iii) Powercor Network Services Pty Ltd (ACN 123 230 240); (iv) CKI/HEI Electricity Distribution Pty Ltd (ACN 093 830 632) and each of its subsidiaries; (v) CKI/HEI Electricity Distribution Two Pty Ltd (ACN 101 064 304) and each of its subsidiaries including the trustees of The CitiPower Trust; and but excludes any other where the relationship arises solely from normal dealings with the following Entities: (a) financial institutions; (b) authorised trustee corporations; (c) fund managers; (d) trade unions; (e) statutory authorities; (f) government departments; or (g) local governments

Sheet 21. AMI
B1: =Cover!E22 -> CitiPower Pty | D1: Colour coding:
B2: Advanced Metering Infrastructure | D2: Yellow = Input cells
B3: =Cover!E26 -> 2014 | D3: Grey = No inputs required
B4: Dollar unit used in this sheet
B5: nominal $'000
B7: AMI information is used by the AER to monitor AMI throughout the regulatory control period.
B10: Table 1 Standard control asset base - metering
C12: Opening value | D12: Actual capital expenditure – as incurred | E12: Actual asset disposals – as incurred | F12: Actual capital contributions – as incurred | G12: Actual net capital expenditure – as incurred
B13: Accumulation meters | C13: 0 | D13: 0 | E13: 0 | F13: 0 | G13: =D13-E13-F13 -> 0
B14: Manually read interval meters | C14: 0 | D14: 14.06803 | E14: 0 | F14: 0 | G14: 14.06803
B15: Remotely read interval meters and transformers | C15: 0 | D15: 1693.84378 | E15: 0 | F15: 0 | G15: 1693.84378
B16: IT | C16: 0 | D16: 2872.47056 | E16: 0 | F16: 0 | G16: 2872.47056
B17: Communications | C17: 0 | D17: 278.6796545 | E17: 0 | F17: 0 | G17: 278.6796545
B18: Other | C18: 0 | D18: 0 | E18: 0 | F18: 0 | G18: 0
B19: Total | C19: =SUM(C13:C18) -> 0 | D19: =SUM(D13:D18) -> 4859.062024 | E19: =SUM(E13:E18) -> 0 | F19: =SUM(F13:F18) -> 0 | G19: 4859.062024
B21: Table 2a Number of meters installed
C22: =$B$3 -> 2014 | D22: =$B$3-1 -> 2013
B23: Accumulation meters
B24: Single phase non off peak | C24: 0 | D24: 2
B25: Single phase off peak | C25: 0 | D25: 3
B26: Multi phase direct connect | C26: 0 | D26: 7
B27: Multi phase current transformers | C27: 0 | D27: 0
B28: Total accumulation meters installed | C28: =SUM(C24:C27) -> 0 | D28: =SUM(D24:D27) -> 12
B29: MRIM meters
B30: Single phase non off peak | C30: 0 | D30: 4
B31: Single phase off peak | C31: 0 | D31: 1
B32: Multi phase direct connect | C32: 0 | D32: 0
B33: Multi phase current transformers | C33: 0 | D33: 3
B34: Total MRIM meters installed | C34: =SUM(C30:C33) -> 0 | D34: =SUM(D30:D33) -> 8
B35: AMI meters
B36: Single phase single element | C36: 5060 | D36: 39508
B37: Single phase single element with contactor | C37: 173 | D37: 2381
B38: Single phase two element with contactor | C38: 274 | D38: 7908
B39: Three phase | C39: 2754 | D39: 18340
B40: Three phase direct connected meter | C40: 98 | D40: 716
B41: Three phase direct connected meter with contactor | C41: 0 | D41: 0
B42: Three phase Current transformer connected meter | C42: 253 | D42: 1552
B43: Total AMI meters installed | C43: =SUM(C36:C42) -> 8612 | D43: =SUM(D36:D42) -> 70405
B45: Total meters installed | C45: =SUM(C28,C34,C43) -> 8612 | D45: =SUM(D28,D34,D43) -> 70425
B47: Table 2b Cumulative number of meters
C48: =$B$3 -> 2014 | D48: =$B$3-1 -> 2013
B49: Accumulation meters
B50: Single phase non off peak | C50: 5041 | D50: 6208
B51: Single phase off peak | C51: 2286 | D51: 2878
B52: Multi phase direct connect | C52: 3919 | D52: 5165
B53: Multi phase current transformers | C53: 68 | D53: 99
B54: Total accumulation meters | C54: =SUM(C50:C53) -> 11314 | D54: =SUM(D50:D53) -> 14350
B55: MRIM meters
B56: Single phase non off peak | C56: 277 | D56: 312
B57: Single phase off peak | C57: 128 | D57: 199
B58: Multi phase direct connect | C58: 126 | D58: 186
B59: Multi phase current transformers | C59: 64 | D59: 82
B60: Total MRIM meters | C60: =SUM(C56:C59) -> 595 | D60: =SUM(D56:D59) -> 779
B61: AMI meters
B62: Single phase single element | C62: 221292 | D62: 218239
B63: Single phase single element with contactor | C63: 7695 | D63: 7647
B64: Single phase two element with contactor | C64: 33102 | D64: 33107
B65: Three phase | C65: 57594 | D65: 55660
B66: Three phase direct connected meter | C66: 1492 | D66: 1425
B67: Three phase direct connected meter with contactor | C67: 0 | D67: 0
B68: Three phase Current transformer connected meter | C68: 2433 | D68: 2292
B69: Total AMI meters | C69: =SUM(C62:C68) -> 323608 | D69: =SUM(D62:D68) -> 318370
B71: Total meters | C71: =SUM(C54,C60,C69) -> 335517 | D71: =SUM(D54,D60,D69) -> 333499
B73: Table 3 AMI meter reconciliation
C74: =$B$3 -> 2014 | D74: =$B$3-1 -> 2013
B75: Opening number of meters | C75: 318370 | D75: 251368.0012
B76: Installs | C76: =C43 -> 8612 | D76: =D43 -> 70405
B77: Abolishments | C77: 2145 | D77: 1681
B78: AMI meter for AMI meter replacements | C78: 1229 | D78: 1722
B79: Closing number of meters | C79: =(C75+C76)-(C77+C78) -> 323608 | D79: =(D75+D76)-(D77+D78) -> 318370.0012
B82: Table 4 Number of meter read quantity - end of year
C83: =$B$3 -> 2014
B84: Number of meters read monthly - accumulation | C84: 1061
B85: Number of meters read quarterly - accumulation | C85: 10786
B86: Number of meters read monthly - interval | C86: 647
B87: Number of meters read quarterly - interval | C87: 1550
B88: Number of meters read remotely | C88: 321612
B89: Total | C89: =SUM(C84:C88) -> 335656
B92: Definitions
B93: AMI services and assets are as defined in Citipower's approved CAM.

Sheet 22. Safety and Bushfire
B1: CitiPower
B2: Safety and Bushfire Related Expenditure | C2: Colour coding:
B3: =Cover!E26 -> 2014 | C3: Yellow = Input cells
C4: Grey = No inputs required
B7: Bushfire and safety related expenditure information is used by the AER to monitor the expenditures throughout the regulatory control period.
B9: Instructions
B10: Please populate table 1 where the asset categories definitions differ from the "Asset Installation"' worksheet.
B11: The definitions in table 1 are not limited or restricted. Please include additional definitions where necessary.
B12: Median unit costs should be used. Where unit costs are not recorded at the asset category level - provide the best estimates of the unit cost using the cost allocation method outlined in table 1. As a transitional measure, the unit cost may be based on a statistically significant annual sample of actual work orders at a 5 per cent or better confidence interval.
B13: Provide basis of allocation where applicable
B14: AER expected expenditure ($2010) means ESL and non ESL, ESMS related expected expenditure as approved under the AER Determination for 2011-15
B15: AER expected expenditure ($2010) means bushfire related expenditure as approved under the pass through application
B16: AER expected volumes means the bushfire related expenditure volumes approved under pass through applications.
B17: AER expected volumes means the ESL and non ESL and ESMS related volumes as approved under the AER Determination for 2011-15
B18: Replacement information to be reported concern the asset that has replaced an existing asset for bushfire and safety purposes.
B19: CPI applied to convert expenditure in real $2010 to nominal based on lagged September CPI index | C19: 1.108836891
B21: Table 1 Asset groups: Definitions, cost-allocation basis and methodology
B23: Asset group | C23: Category i.e., bushfire, ESMS, ESL or non-ESL | D23: Definitions | H23: Basis for allocation of cost to asset group or category
B24: Pole replacements (FC148) - subtransmission | C24: ESL | H24: Actual costs are captured at a composite project level including these and other physicals. Costs are allocated to function codes for settlement based on allocation rules. Allocation to voltages for poles is based on actual physicals completed.
B25: Pole replacements (FC148) - HV | C25: ESL
B26: Pole replacements (FC148) - LV | C26: ESL
B27: Pole replacements (FC148) - pole and stay | C27: ESL
B28: Pole replacements (FC149) - staked | C28: ESL
B29: Crossarm replacements (FC155) | C29: ESL
B30: HV overhead conductor replacements | C30: ESL | H30: Actual costs are captured at a function code level. Allocation to voltages is based on value of asset additions to various voltages
B31: LV overhead conductor replacements | C31: ESL
B32: Replacement of SWER with ABC/underground cabling | C32: 0
B33: Replacement of 22kV distribution feeders with ABC/underground cabling | C33: 0
B34: <DNSP to input as appropriate>
B37: Table 2 Bushfire-related expenditure - approved under pass-through applications (volumes)
B39: Asset group | C39: Units | D39: As approved under pass through applications | E39: Actual Units | F39: Difference | G39: Reasons for difference
B40: Pole replacements (FC148) - subtransmission | C40: no. of poles | F40: =E40-D40 -> 0
B41: Pole replacements (FC148) - HV | C41: no. of poles | F41: 0
B42: Pole replacements (FC148) - LV | C42: no. of poles | F42: 0
B43: Pole replacements (FC148) - pole and stay | C43: no. of poles | F43: 0
B44: Pole replacements (FC149) - staked | C44: no. of poles | F44: 0
B45: Crossarm replacements (FC155) | C45: no. of crossarms | F45: 0
B46: HV overhead conductor replacements | C46: no. of km | F46: 0
B47: LV overhead conductor replacements | C47: no. of km | F47: 0
B48: Replacement of SWER with ABC/underground cabling | C48: no. of km | F48: 0
B49: Replacement of 22kV distribution feeders with ABC/underground cabling | C49: no. of feeders | F49: 0
B50: <DNSP to input as appropriate> | C50: <DNSP to input as appropriate> | F50: 0
B53: Table 3 Safety related other - ESL, non ESL and ESMS (volumes) - approved under AER determination for 2011-15
B55: Asset group | C55: Units | D55: AER expected volumes | E55: Actual Units | F55: Difference | G55: Reasons for difference
B56: Pole replacements (FC148) - subtransmission | C56: no. of poles | D56: 11.1 | E56: 7 | F56: =E56-D56 -> -4.1 | G56: Actuals driven by the Asset Inspection Program - EPDR values are estimates only
B57: Pole replacements (FC148) - HV | C57: no. of poles | D57: 46.25 | E57: 21 | F57: =E57-D57 -> -25.25 | G57: Actuals driven by the Asset Inspection Program - EPDR values are estimates only
B58: Pole replacements (FC148) - LV | C58: no. of poles | D58: 114.7 | E58: 85 | F58: -29.7 | G58: Actuals driven by the Asset Inspection Program - EPDR values are estimates only
B59: Pole replacements (FC148) - pole and stay | C59: no. of poles | D59: 12.95 | E59: 0 | F59: -12.95 | G59: Actuals driven by the Asset Inspection Program - EPDR values are estimates only
B60: Pole replacements (FC149) - staked | C60: no. of poles | D60: 265 | E60: 620 | F60: 355 | G60: Actuals driven by the Asset Inspection Program - EPDR values are estimates only
B61: Crossarm replacements (FC155) | C61: no. of crossarms | D61: 700 | E61: 824 | F61: 124 | G61: Actuals driven by the Asset Inspection Program - EPDR values are estimates only
B62: HV overhead conductor replacements | C62: no. of km | D62: 2.5 | E62: 0 | F62: -2.5 | G62: Actual units not available from corporate systems
B63: LV overhead conductor replacements | C63: no. of km | D63: 0.5 | E63: 0 | F63: -0.5 | G63: Actual units not available from corporate systems
B64: Replacement of SWER with ABC/underground cabling | C64: no. of km | D64: 0 | E64: 0 | F64: 0 | G64: Not Applicable
B65: Replacement of 22kV distribution feeders with ABC/underground cabling | C65: no. of feeders | D65: 0 | E65: 0 | F65: 0 | G65: Not Applicable
B66: <DNSP to input as appropriate> | C66: <DNSP to input as appropriate> | F66: 0
B69: Table 4 Bushfire-related expenditure pass-through applications ($ nominal - excluding margins and overheads)
B71: Asset group | C71: As approved under pass through applications | D71: Actual | E71: Difference | F71: Reasons for difference
B72: Pole replacements (FC148) - subtransmission | E72: =C72-D72 -> 0
B73: Pole replacements (FC148) - HV | E73: =C73-D73 -> 0
B74: Pole replacements (FC148) - LV | E74: 0
B75: Pole replacements (FC148) - pole and stay | E75: 0
B76: Pole replacements (FC149) - staked | E76: 0
B77: Crossarm replacements (FC155) | E77: 0
B78: HV overhead conductor replacements | E78: 0
B79: LV overhead conductor replacements | E79: 0
B80: Replacement of SWER with ABC/underground cabling | E80: 0
B81: Replacement of 22kV distribution feeders with ABC/underground cabling | E81: 0
B82: <DNSP to input as appropriate> | E82: 0
B84: Note - Reported expenditure is to be entered EXCLUDING any overheads, profit margins or management fees paid directly or indirectly to related party contractors for the report period.
B86: Table 5 Safety related other - ESL, non ESL and ESMS ($ nominal - excluding margins and overheads)
B88: Asset group | C88: Category i.e., ESMS, ESL or non-ESL | D88: AER expected expenditure ($'000 2010) | E88: Actual | F88: Difference | G88: Reasons for difference
B89: Pole replacements (FC148) - subtransmission | C89: ESL | D89: 95.92196909 | E89: 170.1346971 | F89: =D89*$C$19-E89 -> -63.77287911 | G89: As per reasons provided in Tables 3 and 9
B90: Pole replacements (FC148) - HV | C90: ESL | D90: 399.6748712 | E90: 510.4040912 | F90: =D90*$C$19-E90 -> -67.22984969 | G90: As per reasons provided in Tables 3 and 9
B91: Pole replacements (FC148) - LV | C91: ESL | D91: 991.1936806 | E91: 2065.921322 | F91: -966.8492026 | G91: As per reasons provided in Tables 3 and 9
B92: Pole replacements (FC148) - pole and stay | C92: ESL | D92: 111.9089639 | E92: 0 | F92: 124.0887876 | G92: As per reasons provided in Tables 3 and 9
B93: Pole replacements (FC149) - staked | C93: ESL | D93: 312.218087 | E93: 442.78284 | F93: -96.5839071 | G93: As per reasons provided in Tables 3 and 9
B94: Crossarm replacements (FC155) | C94: ESL | D94: 1935.332602 | E94: 2995.25858 | F94: -849.2903944 | G94: As per reasons provided in Tables 3 and 9
B95: HV overhead conductor replacements | C95: ESL | D95: 612.6502806 | E95: 594.2606489 | F95: 85.06858341 | G95: Actuals driven by the Asset Inspection Program - EPDR values are estimates only
B96: LV overhead conductor replacements | C96: ESL | D96: 122.5300561 | E96: 229.1761111 | F96: -93.31026467 | G96: Actuals driven by the Asset Inspection Program - EPDR values are estimates only
B97: Replacement of SWER with ABC/underground cabling | C97: 0 | D97: 0 | E97: 0 | F97: 0 | G97: Not Applicable
B98: Replacement of 22kV distribution feeders with ABC/underground cabling | C98: 0 | D98: 0 | E98: 0 | F98: 0 | G98: Not Applicable
B99: <DNSP to input as appropriate> | C99: <DNSP to input as appropriate> | F99: 0
B101: Note - Reported expenditure is to be entered EXCLUDING any overheads, profit margins or management fees paid directly or indirectly to related party contractors for the report period.
B103: Table 6 Bushfire-related expenditure pass-through applications ($ nominal - margins and overheads)
B105: Asset group | C105: As approved under pass through applications | D105: Actual | E105: Difference | F105: Reasons for difference
B106: Pole replacements (FC148) - subtransmission | E106: =C106-D106 -> 0
B107: Pole replacements (FC148) - HV | E107: =C107-D107 -> 0
B108: Pole replacements (FC148) - LV | E108: 0
B109: Pole replacements (FC148) - pole and stay | E109: 0
B110: Pole replacements (FC149) - staked | E110: 0
B111: Crossarm replacements (FC155) | E111: 0
B112: HV overhead conductor replacements | E112: 0
B113: LV overhead conductor replacements | E113: 0
B114: Replacement of SWER with ABC/underground cabling | E114: 0
B115: Replacement of 22kV distribution feeders with ABC/underground cabling | E115: 0
B116: <DNSP to input as appropriate> | E116: 0
B118: Note -Reported expenditure to be entered is the sum of overheads, profit margins or management fees paid directly or indirectly to related party contractors for the report period.
B120: Table 7 Safety related other - ESL, non ESL and ESMS ($ nominal - margins and overheads)
B122: Asset group | C122: Category i.e., ESMS, ESL or non-ESL | D122: AER expected expenditure ($ 2010) | E122: Actual | F122: Difference | G122: Reasons for difference
B123: Pole replacements (FC148) - subtransmission | C123: ESL | D123: 19.68265486 | E123: 45.31298416 | F123: =D123*$C$19-E123 -> -23.48813034 | G123: As per reasons provided in Tables 3 and 9
B124: Pole replacements (FC148) - HV | C124: ESL | D124: 82.01106192 | E124: 135.9389525 | F124: =D124*$C$19-E124 -> -45.00206156 | G124: As per reasons provided in Tables 3 and 9
B125: Pole replacements (FC148) - LV | C125: ESL | D125: 203.3874336 | E125: 550.2290934 | F125: -324.7056039 | G125: As per reasons provided in Tables 3 and 9
B126: Pole replacements (FC148) - pole and stay | C126: ESL | D126: 22.96309734 | E126: 0 | F126: 25.46232946 | G126: As per reasons provided in Tables 3 and 9
B127: Pole replacements (FC149) - staked | C127: ESL | D127: 67.19485501 | E127: 125.82576 | F127: -51.31762589 | G127: As per reasons provided in Tables 3 and 9
B128: Crossarm replacements (FC155) | C128: ESL | D128: 402.1769681 | E128: 807.02791 | F128: -361.0792511 | G128: As per reasons provided in Tables 3 and 9
B129: HV overhead conductor replacements | C129: ESL | D129: 137.5291573 | E129: 134.0687942 | F129: 18.42860904 | G129: Actuals driven by the Asset Inspection Program - EPDR values are estimates only
B130: LV overhead conductor replacements | C130: ESL | D130: 27.50583146 | E130: 51.70351584 | F130: -21.2040352 | G130: Actuals driven by the Asset Inspection Program - EPDR values are estimates only
B131: Replacement of SWER with ABC/underground cabling | C131: 0 | D131: 0 | E131: 0 | F131: 0 | G131: Not Applicable
B132: Replacement of 22kV distribution feeders with ABC/underground cabling | C132: 0 | D132: 0 | E132: 0 | F132: 0 | G132: Not Applicable
B133: <DNSP to input as appropriate> | C133: <DNSP to input as appropriate> | F133: 0
B135: Note -Reported expenditure to be entered is the sum of overheads, profit margins or management fees paid directly or indirectly to related party contractors for the report period.
B137: Table 8 Bushfire-related expenditure including approved pass-through applications ($ unit cost)
B139: Asset group | C139: As approved under pass through applications | D139: Actual | E139: Difference | F139: Reasons for difference
B140: Pole replacements (FC148) - subtransmission | E140: =C140-D140 -> 0
B141: Pole replacements (FC148) - HV | E141: =C141-D141 -> 0
B142: Pole replacements (FC148) - LV | E142: 0
B143: Pole replacements (FC148) - pole and stay | E143: 0
B144: Pole replacements (FC149) - staked | E144: 0
B145: Crossarm replacements (FC155) | E145: 0
B146: HV overhead conductor replacements | E146: 0
B147: LV overhead conductor replacements | E147: 0
B148: Replacement of SWER with ABC/underground cabling | E148: 0
B149: Replacement of 22kV distribution feeders with ABC/underground cabling | E149: 0
B150: <DNSP to input as appropriate> | E150: 0
B152: Note - Where applicable, provide allocation assumptions and methods.
B153: Table 9 Safety related other - ESL, non ESL and ESMS ($ unit cost)
B155: Asset group | C155: Category i.e., ESMS, ESL or non-ESL | D155: AER expected expenditure ($'000 2010) | E155: Actual | F155: Difference | G155: Reasons for difference
B156: Pole replacements (FC148) - subtransmission | C156: ESL | D156: 8.641618837 | E156: 24.30495673 | F156: =D156*$C$19-E156 -> -14.72281096 | G156: Average actual cost is derived from settlment rules applied to actual costs of composite maintenance packages including items in addition to poles. Average cost varies with mix of pole types, locations and acess conditions.
B157: Pole replacements (FC148) - HV | C157: ESL | D157: 8.641618837 | E157: 24.30495673 | F157: -14.72281096
B158: Pole replacements (FC148) - LV | C158: ESL | D158: 8.641618837 | E158: 24.30495673 | F158: -14.72281096
B159: Pole replacements (FC148) - pole and stay | C159: ESL | D159: 8.641618837 | E159: 0 | F159: 9.582145763
B160: Pole replacements (FC149) - staked | C160: ESL | D160: 1.178181461 | E160: 0.714165871 | F160: 0.5922451966 | G160: No material variance
B161: Crossarm replacements (FC155) | C161: ESL | D161: 2.764760861 | E161: 3.635022549 | F161: -0.569353712 | G161: Average actual cost is derived from settlment rules applied to actual costs of composite maintenance packages including items in addition to cross arms Average cost varies with mix of cross arm types, locations and acess conditions.
B162: HV overhead conductor replacements | C162: ESL | D162: 245.0601122 | E162: 0 | F162: 271.7316929 | G162: Refer comments in table 3
B163: LV overhead conductor replacements | C163: ESL | D163: 245.0601122 | E163: 0 | F163: 271.7316929 | G163: Refer comments in table 3
B164: Replacement of SWER with ABC/underground cabling | C164: 0 | D164: 0 | E164: 0 | F164: 0 | G164: Not Applicable
B165: Replacement of 22kV distribution feeders with ABC/underground cabling | C165: 0 | D165: 0 | E165: 0 | F165: 0 | G165: Not Applicable
B166: <DNSP to input as appropriate> | C166: <DNSP to input as appropriate> | F166: 0
B168: Definitions
B169: f-factor scheme | C169: The AER's Final determinations and explanatory statement, F-factor scheme determinations 2012-15 for Victorian electricity distribution network service providers, 22 December 2011
B170: All terms have the meaning used in the AER's f-factor scheme

Sheet 23. Shared asset
B1: =Cover!E22 -> CitiPower Pty
B2: Shared assets
B3: =Cover!E26 -> 2014
D4: Colour coding:
B5: Dollar unit used in this sheet | D5: Yellow = Input cells
B6: nominal $'000 | D6: Grey = No inputs required
B8: This information is used to monitor outcomes compared to forecasts used to determine customer benefits under the AER's Shared Asset Guideline.
B10: Table 1: Total unregulated revenue earned with shared assets
B12: Total shared asset unregulated revenue | C12: 2785.76571
B14: Table 2: Shared asset unregulated services and apportioned revenue
B16: Note: All services for which an unregulated revenue is earned must be listed in column B. Apportioned revenue and Apportionment methodology are only required where a "Yes" response is returned in column C.
B18: Name of shared asset unregulated service | C18: Were the revenues for this service derived using apportionment? | D18: Apportioned revenue | E18: Apportionment methodology
B19: Joint use of Poles | C19: No | D19: 0 | E19: 0
B20: Optical Fibre Lease | C20: No | D20: 0 | E20: 0
B21: Duct Rentals | C21: No | D21: 0 | E21: 0
B22: Property Rentals | C22: No | D22: 0 | E22: 0
B23: 0 | C23: 0 | D23: 0 | E23: 0
B24: 0 | C24: 0 | D24: 0 | E24: 0
B25: 0 | C25: 0 | D25: 0 | E25: 0
B26: 0 | C26: 0 | D26: 0 | E26: 0
B28: Definitions
B29: Shared assets | C29: Assets used to provide both standard control services and unregulated services.
B30: Shared asset unregulated services | C30: Unregulated services provided, in part or in whole, by use of shared assets.
B31: Shared asset unregulated revenue | C31: Revenue earned by charging for unregulated services provided with shared assets. In some circumstances this may reflect revenue apportionment in line with the AER’s Shared Asset Guideline.
B32: Apportionment | C32: The allocation of unregulated revenues reflecting the proportionate use of the shared asset, in line with the AER's Shared Asset Guideline.

Sheet 24. Unmetered supply
B1: =Cover!E22 -> CitiPower Pty
B2: Unmetered Supply Tariff Quantity Data Template (Actual t-2)
B3: =Cover!E26 -> 2014
B5: Templates 24 to 29 collect data required for annual pricing proposals. T-2 requires actual information for the reporting year.
D9: Qt-2
D10: NMIs | E10: Meters | F10: Lights
B11: Proposed tariff | D11: ActVolComp1 | E11: ActVolComp2 | F11: ActVolComp3
B12: metering data services - unmetered supplies | F12: 64965
B15: Definitions
B16: All information must be reported consistent the terms used in the DNSPs pricing proposal

Sheet 25. Actual t-2 Distr Tariff
B1: =Cover!E22 -> CitiPower Pty
B2: Tariff Quantity Data Template (Actual t-2) Distribution Tariff Revenue
B3: =Cover!E26 -> 2014
B4: Templates 24 to 29 collect data required for annual pricing proposals. T-2 requires actual information for the reporting year.
D5: Distribution Tariffs (Pt-2) | Z5: Actual Quantities (Qt-2) | AW5: Actual Revenue (P-2)*(Qt-2)
B6: Tariffs t-2 | D6: (t-2)Tar Fixed | E6: (t-2)Tar PkBlk1 | F6: (t-2)Tar PkBlk2 | G6: (t-2)Tar PkBlk3 | H6: (t-2)Tar PkBlk4 | I6: (t-2)Tar OPkBlk1 | J6: (t-2)Tar OPkBlk2 | K6: (t-2)Tar OPkBlk3 | L6: (t-2)Tar OPkBlk4 | M6: (t-2)Tar DemBlk1 | N6: (t-2)Tar DemBlk2 | O6: (t-2)Tar DemBlk3 | P6: (t-2)Tar DemBlk4 | Q6: (t-2)Tar SumBlk1 | R6: (t-2)Tar SumBlk2 | S6: (t-2)Tar SumBlk3 | T6: (t-2)Tar SumBlk4 | U6: (t-2)Tar WtrBlk1 | V6: (t-2)Tar WtrBlk2 | W6: (t-2)Tar WtrBlk3 | X6: (t-2)Tar WtrBlk4 | Z6: ActVol Fixed | AA6: ActVol PkBlk1 | AB6: ActVol PkBlk2 | AC6: ActVol PkBlk3 | AD6: ActVol PkBlk4 | AE6: ActVol OPkBlk1 | AF6: ActVol OPkBlk2 | AG6: ActVol OPkBlk3 | AH6: ActVol OPkBlk4 | AI6: ActVol DemBlk1 | AJ6: ActVol DemBlk2 | AK6: ActVol DemBlk3 | AL6: ActVol DemBlk4 | AM6: (t-2)Tar SumBlk1 | AN6: (t-2)Tar SumBlk2 | AO6: (t-2)Tar SumBlk3 | AP6: (t-2)Tar SumBlk4 | AQ6: (t-2)Tar WtrBlk1 | AR6: (t-2)Tar WtrBlk2 | AS6: (t-2)Tar WtrBlk3 | AT6: (t-2)Tar WtrBlk4 | AW6: ActRev Fixed | AX6: ActRev PkBlk1 | AY6: ActRev PkBlk2 | AZ6: ActRev PkBlk3 | BA6: ActRev PkBlk4 | BB6: ActRev OPkBlk1 | BC6: ActRev OPkBlk2 | BD6: ActRev OPkBlk3 | BE6: ActRev OPkBlk4 | BF6: ActRev DemBlk1 | BG6: ActRev DemBlk2 | BH6: ActRev DemBlk3 | BI6: ActRev DemBlk4 | BJ6: (t-2)Tar SumBlk1 | BK6: (t-2)Tar SumBlk2 | BL6: (t-2)Tar SumBlk3 | BM6: (t-2)Tar SumBlk4 | BN6: (t-2)Tar WtrBlk1 | BO6: (t-2)Tar WtrBlk2 | BP6: (t-2)Tar WtrBlk3 | BQ6: (t-2)Tar WtrBlk4 | BR6: ActRev Total
BR7: =SUM(AW7:BQ7) -> 0
B8: Residential Single Rate | D8: 39.2294 | E8: 5.0475 | F8: 5.9817 | G8: 0 | H8: 0 | I8: 0 | J8: 0 | K8: 0 | L8: 0 | M8: 0 | N8: 0 | O8: 0 | P8: 0 | Q8: 0 | R8: 0 | S8: 0 | T8: 0 | U8: 0 | V8: 0 | W8: 0 | X8: 0 | Z8: 197281 | AA8: 547806183 | AB8: 246185710.9 | AC8: 0 | AD8: 0 | AE8: 0 | AF8: 0 | AG8: 0 | AH8: 0 | AI8: 0 | AJ8: 0 | AK8: 0 | AL8: 0 | AM8: 0 | AN8: 0 | AO8: 0 | AP8: 0 | AQ8: 0 | AR8: 0 | AS8: 0 | AT8: 0 | AW8: 7749769.471 | AX8: 27651686.07 | AY8: 14679444.35 | AZ8: 0 | BA8: 0 | BB8: 0 | BC8: 0 | BD8: 0 | BE8: 0 | BF8: 0 | BG8: 0 | BH8: 0 | BI8: 0 | BJ8: 0 | BK8: 0 | BL8: 0 | BM8: 0 | BN8: 0 | BO8: 0 | BP8: 0 | BQ8: 0 | BR8: =SUM(AW8:BQ8) -> 50080899.89
B9: Residential Single Rate - Bulk | D9: 34.6878 | E9: 4.3332 | F9: 4.6807 | G9: 0 | H9: 0 | I9: 0 | J9: 0 | K9: 0 | L9: 0 | M9: 0 | N9: 0 | O9: 0 | P9: 0 | Q9: 0 | R9: 0 | S9: 0 | T9: 0 | U9: 0 | V9: 0 | W9: 0 | X9: 0 | Z9: 29891.08333 | AA9: 75884017.71 | AB9: 23940581.79 | AC9: 0 | AD9: 0 | AE9: 0 | AF9: 0 | AG9: 0 | AH9: 0 | AI9: 0 | AJ9: 0 | AK9: 0 | AL9: 0 | AM9: 0 | AN9: 0 | AO9: 0 | AP9: 0 | AQ9: 0 | AR9: 0 | AS9: 0 | AT9: 0 | AW9: 1038579.874 | AX9: 3289143.375 | AY9: 1118614.524 | AZ9: 0 | BA9: 0 | BB9: 0 | BC9: 0 | BD9: 0 | BE9: 0 | BF9: 0 | BG9: 0 | BH9: 0 | BI9: 0 | BJ9: 0 | BK9: 0 | BL9: 0 | BM9: 0 | BN9: 0 | BO9: 0 | BP9: 0 | BQ9: 0 | BR9: 5446337.773
B10: Residential - flexible pricing | D10: 38.871 | E10: 0 | F10: 0 | G10: 0 | H10: 0 | I10: 0 | J10: 0 | K10: 0 | L10: 0 | M10: 0 | N10: 0 | O10: 0 | P10: 0 | Q10: 7.6085 | R10: 3.7593 | S10: 0.9419 | T10: 0 | U10: 7.6085 | V10: 3.7593 | W10: 0.9419 | X10: 0 | Z10: 363.3333333 | AA10: 0 | AB10: 0 | AC10: 0 | AD10: 0 | AE10: -132.789871 | AF10: 0 | AG10: 0 | AH10: 0 | AI10: 0 | AJ10: 0 | AK10: 0 | AL10: 0 | AM10: 160063.7506 | AN10: 358969.4475 | AO10: 247289.3188 | AP10: 0 | AQ10: 246006.2178 | AR10: 418648.0978 | AS10: 363819.983 | AT10: 0 | AW10: 12661.32334 | AX10: 0 | AY10: 0 | AZ10: 0 | BA10: 0 | BB10: -2.523406 | BC10: 0 | BD10: 0 | BE10: 0 | BF10: 0 | BG10: 0 | BH10: 0 | BI10: 0 | BJ10: 12172.89318 | BK10: 13476.46109 | BL10: 2327.432048 | BM10: 0 | BN10: 18720.0896 | BO10: 15747.74892 | BP10: 3428.375438 | BQ10: 0 | BR10: 78531.80021
B11: Residential - flexible pricing bulk | D11: 33.5193 | E11: 0 | F11: 0 | G11: 0 | H11: 0 | I11: 0 | J11: 0 | K11: 0 | L11: 0 | M11: 0 | N11: 0 | O11: 0 | P11: 0 | Q11: 7.4563 | R11: 3.6841 | S11: 0.8712 | T11: 0 | U11: 7.4563 | V11: 3.6841 | W11: 0.8712 | X11: 0 | Z11: 63.41666667 | AA11: -0.003965310759 | AB11: 0 | AC11: 0 | AD11: 0 | AE11: -0.001765854474 | AF11: 0 | AG11: 0 | AH11: 0 | AI11: 0 | AJ11: 0 | AK11: 0 | AL11: 0 | AM11: 20233.66916 | AN11: 48733.98136 | AO11: 32703.80198 | AP11: 0 | AQ11: 34583.21627 | AR11: 62904.00125 | AS11: 47771.61001 | AT11: 0 | AW11: 2381.12285 | AX11: 0 | AY11: 0 | AZ11: 0 | BA11: 0 | BB11: 0 | BC11: 0 | BD11: 0 | BE11: 0 | BF11: 0 | BG11: 0 | BH11: 0 | BI11: 0 | BJ11: 1506.415958 | BK11: 1788.836157 | BL11: 283.9308183 | BM11: 0 | BN11: 2577.388067 | BO11: 2316.489352 | BP11: 416.2531025 | BQ11: 0 | BR11: 11270.43631
B12: Residential Two Rate 5d | D12: 89.8104 | E12: 8.2911 | F12: 8.2911 | G12: 0 | H12: 0 | I12: 1.0246 | J12: 0 | K12: 0 | L12: 0 | M12: 0 | N12: 0 | O12: 0 | P12: 0 | Q12: 0 | R12: 0 | S12: 0 | T12: 0 | U12: 0 | V12: 0 | W12: 0 | X12: 0 | Z12: 11092.5 | AA12: 24060552.2 | AB12: 12735802.5 | AC12: 0 | AD12: 0 | AE12: 44052154.68 | AF12: 0 | AG12: 0 | AH12: 0 | AI12: 0 | AJ12: 0 | AK12: 0 | AL12: 0 | AM12: 0 | AN12: 0 | AO12: 0 | AP12: 0 | AQ12: 0 | AR12: 0 | AS12: 0 | AT12: 0 | AW12: 997088.7692 | AX12: 1994826.745 | AY12: 1055886.863 | AZ12: 0 | BA12: 0 | BB12: 461321.9472 | BC12: 0 | BD12: 0 | BE12: 0 | BF12: 0 | BG12: 0 | BH12: 0 | BI12: 0 | BJ12: 0 | BK12: 0 | BL12: 0 | BM12: 0 | BN12: 0 | BO12: 0 | BP12: 0 | BQ12: 0 | BR12: 4509124.325
B13: Residential Two Rate 5d - Bulk | D13: 88.5369 | E13: 6.4212 | F13: 6.4212 | G13: 0 | H13: 0 | I13: 0.6802 | J13: 0 | K13: 0 | L13: 0 | M13: 0 | N13: 0 | O13: 0 | P13: 0 | Q13: 0 | R13: 0 | S13: 0 | T13: 0 | U13: 0 | V13: 0 | W13: 0 | X13: 0 | Z13: 4390.333333 | AA13: 8301630.881 | AB13: 4426249.792 | AC13: 0 | AD13: 0 | AE13: 15263240.75 | AF13: 0 | AG13: 0 | AH13: 0 | AI13: 0 | AJ13: 0 | AK13: 0 | AL13: 0 | AM13: 0 | AN13: 0 | AO13: 0 | AP13: 0 | AQ13: 0 | AR13: 0 | AS13: 0 | AT13: 0 | AW13: 389442.4717 | AX13: 533034.3206 | AY13: 282923.6897 | AZ13: 0 | BA13: 0 | BB13: 103515.026 | BC13: 0 | BD13: 0 | BE13: 0 | BF13: 0 | BG13: 0 | BH13: 0 | BI13: 0 | BJ13: 0 | BK13: 0 | BL13: 0 | BM13: 0 | BN13: 0 | BO13: 0 | BP13: 0 | BQ13: 0 | BR13: 1308915.508
B14: Residential Interval | D14: 89.8104 | E14: 8.2911 | F14: 8.2911 | G14: 0 | H14: 0 | I14: 1.0246 | J14: 0 | K14: 0 | L14: 0 | M14: 0 | N14: 0 | O14: 0 | P14: 0 | Q14: 0 | R14: 0 | S14: 0 | T14: 0 | U14: 0 | V14: 0 | W14: 0 | X14: 0 | Z14: 17426 | AA14: 39819961.33 | AB14: 20716608.26 | AC14: 0 | AD14: 0 | AE14: 52156407.77 | AF14: 0 | AG14: 0 | AH14: 0 | AI14: 0 | AJ14: 0 | AK14: 0 | AL14: 0 | AM14: 0 | AN14: 0 | AO14: 0 | AP14: 0 | AQ14: 0 | AR14: 0 | AS14: 0 | AT14: 0 | AW14: 1569059.937 | AX14: 3300518.654 | AY14: 1717573.5 | AZ14: 0 | BA14: 0 | BB14: 534951.7574 | BC14: 0 | BD14: 0 | BE14: 0 | BF14: 0 | BG14: 0 | BH14: 0 | BI14: 0 | BJ14: 0 | BK14: 0 | BL14: 0 | BM14: 0 | BN14: 0 | BO14: 0 | BP14: 0 | BQ14: 0 | BR14: 7122103.849
B15: Residential Interval - Bulk | D15: 88.5369 | E15: 6.4212 | F15: 6.4212 | G15: 0 | H15: 0 | I15: 0.6802 | J15: 0 | K15: 0 | L15: 0 | M15: 0 | N15: 0 | O15: 0 | P15: 0 | Q15: 0 | R15: 0 | S15: 0 | T15: 0 | U15: 0 | V15: 0 | W15: 0 | X15: 0 | Z15: 8943.166667 | AA15: 13037744.42 | AB15: 2033749.777 | AC15: 0 | AD15: 0 | AE15: 14018069.32 | AF15: 0 | AG15: 0 | AH15: 0 | AI15: 0 | AJ15: 0 | AK15: 0 | AL15: 0 | AM15: 0 | AN15: 0 | AO15: 0 | AP15: 0 | AQ15: 0 | AR15: 0 | AS15: 0 | AT15: 0 | AW15: 794767.2634 | AX15: 837000.5319 | AY15: 130623.6469 | AZ15: 0 | BA15: 0 | BB15: 95365.20513 | BC15: 0 | BD15: 0 | BE15: 0 | BF15: 0 | BG15: 0 | BH15: 0 | BI15: 0 | BJ15: 0 | BK15: 0 | BL15: 0 | BM15: 0 | BN15: 0 | BO15: 0 | BP15: 0 | BQ15: 0 | BR15: 1857756.647
B16: Residential Two Rate 5d - Controlled Load | D16: 0 | E16: 0 | F16: 0 | G16: 0 | H16: 0 | I16: 1.0246 | J16: 0 | K16: 0 | L16: 0 | M16: 0 | N16: 0 | O16: 0 | P16: 0 | Q16: 0 | R16: 0 | S16: 0 | T16: 0 | U16: 0 | V16: 0 | W16: 0 | X16: 0 | Z16: 3183.666667 | AA16: 0 | AB16: 0 | AC16: 0 | AD16: 0 | AE16: 9287604.931 | AF16: 0 | AG16: 0 | AH16: 0 | AI16: 0 | AJ16: 0 | AK16: 0 | AL16: 0 | AM16: 0 | AN16: 0 | AO16: 0 | AP16: 0 | AQ16: 0 | AR16: 0 | AS16: 10833.816 | AT16: 0 | AW16: 0 | AX16: 0 | AY16: 0 | AZ16: 0 | BA16: 0 | BB16: 95137.13454 | BC16: 0 | BD16: 0 | BE16: 0 | BF16: 0 | BG16: 0 | BH16: 0 | BI16: 0 | BJ16: 0 | BK16: 0 | BL16: 0 | BM16: 0 | BN16: 0 | BO16: 0 | BP16: 205.86 | BQ16: 0 | BR16: 95342.99454
B17: Residential Two Rate 5d - Bulk - Controlled Load | D17: 0 | E17: 0 | F17: 0 | G17: 0 | H17: 0 | I17: 0.6802 | J17: 0 | K17: 0 | L17: 0 | M17: 0 | N17: 0 | O17: 0 | P17: 0 | Q17: 0 | R17: 0 | S17: 0 | T17: 0 | U17: 0 | V17: 0 | W17: 0 | X17: 0 | Z17: 1228.5 | AA17: 0 | AB17: 0 | AC17: 0 | AD17: 0 | AE17: 3409510.199 | AF17: 0 | AG17: 0 | AH17: 0 | AI17: 0 | AJ17: 0 | AK17: 0 | AL17: 0 | AM17: 0 | AN17: 0 | AO17: 0 | AP17: 0 | AQ17: 0 | AR17: 0 | AS17: 2998.062 | AT17: 0 | AW17: 0 | AX17: 0 | AY17: 0 | AZ17: 0 | BA17: 0 | BB17: 23193.00913 | BC17: 0 | BD17: 0 | BE17: 0 | BF17: 0 | BG17: 0 | BH17: 0 | BI17: 0 | BJ17: 0 | BK17: 0 | BL17: 0 | BM17: 0 | BN17: 0 | BO17: 0 | BP17: 46.8 | BQ17: 0 | BR17: 23239.80913
B18: Dedicated Circuit | D18: 0 | E18: 0 | F18: 0 | G18: 0 | H18: 0 | I18: 0.8643 | J18: 0 | K18: 0 | L18: 0 | M18: 0 | N18: 0 | O18: 0 | P18: 0 | Q18: 0 | R18: 0 | S18: 0 | T18: 0 | U18: 0 | V18: 0 | W18: 0 | X18: 0 | Z18: 24561.41667 | AA18: 0 | AB18: 0 | AC18: 0 | AD18: 0 | AE18: 39000305.43 | AF18: 0 | AG18: 0 | AH18: 0 | AI18: 0 | AJ18: 0 | AK18: 0 | AL18: 0 | AM18: 0 | AN18: 0 | AO18: 0 | AP18: 0 | AQ18: 0 | AR18: 0 | AS18: 20228.376 | AT18: 0 | AW18: 0 | AX18: 0 | AY18: 0 | AZ18: 0 | BA18: 0 | BB18: 338637.5787 | BC18: 0 | BD18: 0 | BE18: 0 | BF18: 0 | BG18: 0 | BH18: 0 | BI18: 0 | BJ18: 0 | BK18: 0 | BL18: 0 | BM18: 0 | BN18: 0 | BO18: 0 | BP18: 378.096 | BQ18: 0 | BR18: 339015.6747
B19: Dedicated Circuit - Bulk | D19: 0 | E19: 0 | F19: 0 | G19: 0 | H19: 0 | I19: 0.7577 | J19: 0 | K19: 0 | L19: 0 | M19: 0 | N19: 0 | O19: 0 | P19: 0 | Q19: 0 | R19: 0 | S19: 0 | T19: 0 | U19: 0 | V19: 0 | W19: 0 | X19: 0 | Z19: 1178.916667 | AA19: 0 | AB19: 0 | AC19: 0 | AD19: 0 | AE19: 2514062.492 | AF19: 0 | AG19: 0 | AH19: 0 | AI19: 0 | AJ19: 0 | AK19: 0 | AL19: 0 | AM19: 0 | AN19: 0 | AO19: 0 | AP19: 0 | AQ19: 0 | AR19: 0 | AS19: 333.4692 | AT19: 0 | AW19: 0 | AX19: 0 | AY19: 0 | AZ19: 0 | BA19: 0 | BB19: 19177.38171 | BC19: 0 | BD19: 0 | BE19: 0 | BF19: 0 | BG19: 0 | BH19: 0 | BI19: 0 | BJ19: 0 | BK19: 0 | BL19: 0 | BM19: 0 | BN19: 0 | BO19: 0 | BP19: 5.76 | BQ19: 0 | BR19: 19183.14171
B20: Non-Residential Single Rate | D20: 89.24 | E20: 6.1153 | F20: 6.1153 | G20: 0 | H20: 0 | I20: 0 | J20: 0 | K20: 0 | L20: 0 | M20: 0 | N20: 0 | O20: 0 | P20: 0 | Q20: 0 | R20: 0 | S20: 0 | T20: 0 | U20: 0 | V20: 0 | W20: 0 | X20: 0 | Z20: 19454.08333 | AA20: 63403302.59 | AB20: 242573280.7 | AC20: 0 | AD20: 0 | AE20: -1583.494249 | AF20: 0 | AG20: 0 | AH20: 0 | AI20: 0 | AJ20: 0 | AK20: 0 | AL20: 0 | AM20: 0 | AN20: 0 | AO20: 0 | AP20: 0 | AQ20: 0 | AR20: 0 | AS20: 0 | AT20: 0 | AW20: 1714068.081 | AX20: 3879224.065 | AY20: 14845871 | AZ20: 0 | BA20: 0 | BB20: -29.5955076 | BC20: 0 | BD20: 0 | BE20: 0 | BF20: 0 | BG20: 0 | BH20: 0 | BI20: 0 | BJ20: 0 | BK20: 0 | BL20: 0 | BM20: 0 | BN20: 0 | BO20: 0 | BP20: 0 | BQ20: 0 | BR20: 20439133.55
B21: Non-Residential Single Rate - Bulk | D21: 76.1132 | E21: 4.9343 | F21: 4.9343 | G21: 0 | H21: 0 | I21: 0 | J21: 0 | K21: 0 | L21: 0 | M21: 0 | N21: 0 | O21: 0 | P21: 0 | Q21: 0 | R21: 0 | S21: 0 | T21: 0 | U21: 0 | V21: 0 | W21: 0 | X21: 0 | Z21: 5639.5 | AA21: 18161428.32 | AB21: 103351719.7 | AC21: 0 | AD21: 0 | AE21: 0 | AF21: 0 | AG21: 0 | AH21: 0 | AI21: 0 | AJ21: 0 | AK21: 0 | AL21: 0 | AM21: 0 | AN21: 0 | AO21: 0 | AP21: 0 | AQ21: 0 | AR21: 0 | AS21: 0 | AT21: 0 | AW21: 428934.7916 | AX21: 896689.5001 | AY21: 5101657.031 | AZ21: 0 | BA21: 0 | BB21: 0 | BC21: 0 | BD21: 0 | BE21: 0 | BF21: 0 | BG21: 0 | BH21: 0 | BI21: 0 | BJ21: 0 | BK21: 0 | BL21: 0 | BM21: 0 | BN21: 0 | BO21: 0 | BP21: 0 | BQ21: 0 | BR21: 6427281.322
B22: Non-Residential Two Rate 5d | D22: 211.9354 | E22: 7.9247 | F22: 7.9247 | G22: 0 | H22: 0 | I22: 1.4007 | J22: 0 | K22: 0 | L22: 0 | M22: 0 | N22: 0 | O22: 0 | P22: 0 | Q22: 0 | R22: 0 | S22: 0 | T22: 0 | U22: 0 | V22: 0 | W22: 0 | X22: 0 | Z22: 11815.83333 | AA22: 36927407.11 | AB22: 283853501.9 | AC22: 0 | AD22: 0 | AE22: 229694052.1 | AF22: 0 | AG22: 0 | AH22: 0 | AI22: 0 | AJ22: 0 | AK22: 0 | AL22: 0 | AM22: 0 | AN22: 0 | AO22: 0 | AP22: 0 | AQ22: 0 | AR22: 0 | AS22: 0 | AT22: 0 | AW22: 2406831.783 | AX22: 2996528.526 | AY22: 22549447 | AZ22: 0 | BA22: 0 | BB22: 3263121.298 | BC22: 0 | BD22: 0 | BE22: 0 | BF22: 0 | BG22: 0 | BH22: 0 | BI22: 0 | BJ22: 0 | BK22: 0 | BL22: 0 | BM22: 0 | BN22: 0 | BO22: 0 | BP22: 0 | BQ22: 0 | BR22: 31215928.61
B23: Non-Residential Two Rate 5d - Bulk | D23: 202.6241 | E23: 5.5783 | F23: 5.5783 | G23: 0 | H23: 0 | I23: 1.0824 | J23: 0 | K23: 0 | L23: 0 | M23: 0 | N23: 0 | O23: 0 | P23: 0 | Q23: 0 | R23: 0 | S23: 0 | T23: 0 | U23: 0 | V23: 0 | W23: 0 | X23: 0 | Z23: 2020.25 | AA23: 7869817.56 | AB23: 101366372.2 | AC23: 0 | AD23: 0 | AE23: 73917992.83 | AF23: 0 | AG23: 0 | AH23: 0 | AI23: 0 | AJ23: 0 | AK23: 0 | AL23: 0 | AM23: 0 | AN23: 0 | AO23: 0 | AP23: 0 | AQ23: 0 | AR23: 0 | AS23: 0 | AT23: 0 | AW23: 410370.2895 | AX23: 429051.5429 | AY23: 5640843.508 | AZ23: 0 | BA23: 0 | BB23: 795436.1035 | BC23: 0 | BD23: 0 | BE23: 0 | BF23: 0 | BG23: 0 | BH23: 0 | BI23: 0 | BJ23: 0 | BK23: 0 | BL23: 0 | BM23: 0 | BN23: 0 | BO23: 0 | BP23: 0 | BQ23: 0 | BR23: 7275701.443
B24: Non-Residential Interval | D24: 211.9354 | E24: 7.9247 | F24: 7.9247 | G24: 0 | H24: 0 | I24: 1.4007 | J24: 0 | K24: 0 | L24: 0 | M24: 0 | N24: 0 | O24: 0 | P24: 0 | Q24: 0 | R24: 0 | S24: 0 | T24: 0 | U24: 0 | V24: 0 | W24: 0 | X24: 0 | Z24: 5293.166667 | AA24: 16963663.91 | AB24: 103718158.6 | AC24: 0 | AD24: 0 | AE24: 77924102.56 | AF24: 0 | AG24: 0 | AH24: 0 | AI24: 0 | AJ24: 0 | AK24: 0 | AL24: 0 | AM24: 0 | AN24: 0 | AO24: 0 | AP24: 0 | AQ24: 0 | AR24: 0 | AS24: 0 | AT24: 0 | AW24: 1127355.661 | AX24: 1346712.915 | AY24: 8226635.61 | AZ24: 0 | BA24: 0 | BB24: 1091350.97 | BC24: 0 | BD24: 0 | BE24: 0 | BF24: 0 | BG24: 0 | BH24: 0 | BI24: 0 | BJ24: 0 | BK24: 0 | BL24: 0 | BM24: 0 | BN24: 0 | BO24: 0 | BP24: 0 | BQ24: 0 | BR24: 11792055.16
B25: Non-Residential Interval - Bulk | D25: 202.6241 | E25: 5.5783 | F25: 5.5783 | G25: 0 | H25: 0 | I25: 1.0824 | J25: 0 | K25: 0 | L25: 0 | M25: 0 | N25: 0 | O25: 0 | P25: 0 | Q25: 0 | R25: 0 | S25: 0 | T25: 0 | U25: 0 | V25: 0 | W25: 0 | X25: 0 | Z25: 3179.25 | AA25: 11312092.45 | AB25: 171407388.9 | AC25: 0 | AD25: 0 | AE25: 116576671.4 | AF25: 0 | AG25: 0 | AH25: 0 | AI25: 0 | AJ25: 0 | AK25: 0 | AL25: 0 | AM25: 0 | AN25: 0 | AO25: 0 | AP25: 0 | AQ25: 0 | AR25: 0 | AS25: 0 | AT25: 0 | AW25: 645177.8455 | AX25: 631236.824 | AY25: 9566072.751 | AZ25: 0 | BA25: 0 | BB25: 1261821.936 | BC25: 0 | BD25: 0 | BE25: 0 | BF25: 0 | BG25: 0 | BH25: 0 | BI25: 0 | BJ25: 0 | BK25: 0 | BL25: 0 | BM25: 0 | BN25: 0 | BO25: 0 | BP25: 0 | BQ25: 0 | BR25: 12104309.36
B26: Non-Residential | D26: 89.24 | E26: 0 | F26: 0 | G26: 0 | H26: 0 | I26: 0 | J26: 0 | K26: 0 | L26: 0 | M26: 0 | N26: 0 | O26: 0 | P26: 0 | Q26: 4.5651 | R26: 2.2556 | S26: 0.6419 | T26: 0 | U26: 4.5651 | V26: 2.2556 | W26: 0.6419 | X26: 0 | Z26: 19 | AA26: 0 | AB26: 0 | AC26: 0 | AD26: 0 | AE26: 0 | AF26: 0 | AG26: 0 | AH26: 0 | AI26: 0 | AJ26: 0 | AK26: 0 | AL26: 0 | AM26: 177181.0341 | AN26: 52838.80625 | AO26: 161086.0138 | AP26: 0 | AQ26: 289615.2537 | AR26: 78584.61479 | AS26: 258432.1713 | AT26: 0 | AW26: 2149.09424 | AX26: 0 | AY26: 0 | AZ26: 0 | BA26: 0 | BB26: 0 | BC26: 0 | BD26: 0 | BE26: 0 | BF26: 0 | BG26: 0 | BH26: 0 | BI26: 0 | BJ26: 8088.571113 | BK26: 1191.919376 | BL26: 1033.914242 | BM26: 0 | BN26: 13220.62426 | BO26: 1772.578932 | BP26: 1658.975911 | BQ26: 0 | BR26: 29115.67807
B27: Non-Residential - Bulk | D27: 76.1132 | E27: 0 | F27: 0 | G27: 0 | H27: 0 | I27: 0 | J27: 0 | K27: 0 | L27: 0 | M27: 0 | N27: 0 | O27: 0 | P27: 0 | Q27: 3.6522 | R27: 1.8047 | S27: 0.5713 | T27: 0 | U27: 3.6522 | V27: 1.8047 | W27: 0.5713 | X27: 0 | Z27: 11.75 | AA27: 0 | AB27: 0 | AC27: 0 | AD27: 0 | AE27: 0 | AF27: 0 | AG27: 0 | AH27: 0 | AI27: 0 | AJ27: 0 | AK27: 0 | AL27: 0 | AM27: 465439.777 | AN27: 105327.3811 | AO27: 385483.488 | AP27: 0 | AQ27: 592239.6303 | AR27: 129429.4682 | AS27: 471020.0628 | AT27: 0 | AW27: 1386.76225 | AX27: 0 | AY27: 0 | AZ27: 0 | BA27: 0 | BB27: 0 | BC27: 0 | BD27: 0 | BE27: 0 | BF27: 0 | BG27: 0 | BH27: 0 | BI27: 0 | BJ27: 16998.58312 | BK27: 1900.807203 | BL27: 2202.201751 | BM27: 0 | BN27: 21629.92419 | BO27: 2335.729451 | BP27: 2690.924445 | BQ27: 0 | BR27: 49144.93241
B28: Non-Residential Two Rate 7d | D28: 192.4841 | E28: 4.9575 | F28: 4.9575 | G28: 0 | H28: 0 | I28: 1.271 | J28: 0 | K28: 0 | L28: 0 | M28: 0 | N28: 0 | O28: 0 | P28: 0 | Q28: 0 | R28: 0 | S28: 0 | T28: 0 | U28: 0 | V28: 0 | W28: 0 | X28: 0 | Z28: 3178.666667 | AA28: 11335244.92 | AB28: 90595198.8 | AC28: 0 | AD28: 0 | AE28: 26033386.47 | AF28: 0 | AG28: 0 | AH28: 0 | AI28: 0 | AJ28: 0 | AK28: 0 | AL28: 0 | AM28: 0 | AN28: 0 | AO28: 0 | AP28: 0 | AQ28: 0 | AR28: 0 | AS28: 0 | AT28: 0 | AW28: 612640.0829 | AX28: 561849.4758 | AY28: 4491230.106 | AZ28: 0 | BA28: 0 | BB28: 330865.3075 | BC28: 0 | BD28: 0 | BE28: 0 | BF28: 0 | BG28: 0 | BH28: 0 | BI28: 0 | BJ28: 0 | BK28: 0 | BL28: 0 | BM28: 0 | BN28: 0 | BO28: 0 | BP28: 0 | BQ28: 0 | BR28: 5996584.972
B29: Non-Residential Two Rate 7d - Bulk | D29: 177.0387 | E29: 3.849 | F29: 3.849 | G29: 0 | H29: 0 | I29: 0.9696 | J29: 0 | K29: 0 | L29: 0 | M29: 0 | N29: 0 | O29: 0 | P29: 0 | Q29: 0 | R29: 0 | S29: 0 | T29: 0 | U29: 0 | V29: 0 | W29: 0 | X29: 0 | Z29: 461.9166667 | AA29: 1738179.133 | AB29: 24880327.89 | AC29: 0 | AD29: 0 | AE29: 7330088.474 | AF29: 0 | AG29: 0 | AH29: 0 | AI29: 0 | AJ29: 0 | AK29: 0 | AL29: 0 | AM29: 0 | AN29: 0 | AO29: 0 | AP29: 0 | AQ29: 0 | AR29: 0 | AS29: 0 | AT29: 0 | AW29: 82070.44086 | AX29: 66904.46682 | AY29: 957618.4324 | AZ29: 0 | BA29: 0 | BB29: 71074.45056 | BC29: 0 | BD29: 0 | BE29: 0 | BF29: 0 | BG29: 0 | BH29: 0 | BI29: 0 | BJ29: 0 | BK29: 0 | BL29: 0 | BM29: 0 | BN29: 0 | BO29: 0 | BP29: 0 | BQ29: 0 | BR29: 1177667.791
B30: Unmetered Supplies / Public Lighting | D30: 0 | E30: 6.9897 | F30: 6.9897 | G30: 0 | H30: 0 | I30: 1.7946 | J30: 0 | K30: 0 | L30: 0 | M30: 0 | N30: 0 | O30: 0 | P30: 0 | Q30: 0 | R30: 0 | S30: 0 | T30: 0 | U30: 0 | V30: 0 | W30: 0 | X30: 0 | Z30: 1153 | AA30: 1798242.22 | AB30: 8767212.36 | AC30: 0 | AD30: 0 | AE30: 26501222.9 | AF30: 0 | AG30: 0 | AH30: 0 | AI30: 0 | AJ30: 0 | AK30: 0 | AL30: 0 | AM30: 0 | AN30: 0 | AO30: 0 | AP30: 0 | AQ30: 0 | AR30: 0 | AS30: 0 | AT30: 0 | AW30: 0 | AX30: 241278.9275 | AY30: 613384.2708 | AZ30: 0 | BA30: 0 | BB30: 508660.6353 | BC30: 0 | BD30: 0 | BE30: 0 | BF30: 0 | BG30: 0 | BH30: 0 | BI30: 0 | BJ30: 0 | BK30: 0 | BL30: 0 | BM30: 0 | BN30: 0 | BO30: 0 | BP30: 0 | BQ30: 0 | BR30: 1363323.834
B31: Large Two Rate 7d | D31: 85.4774 | E31: 4.6348 | F31: 4.6348 | G31: 0 | H31: 0 | I31: 1.3484 | J31: 0 | K31: 0 | L31: 0 | M31: 0 | N31: 0 | O31: 0 | P31: 0 | Q31: 0 | R31: 0 | S31: 0 | T31: 0 | U31: 0 | V31: 0 | W31: 0 | X31: 0 | Z31: 46.33333333 | AA31: 185795.8578 | AB31: 16545006.7 | AC31: 0 | AD31: 0 | AE31: 4115894.18 | AF31: 0 | AG31: 0 | AH31: 0 | AI31: 0 | AJ31: 0 | AK31: 0 | AL31: 0 | AM31: 0 | AN31: 0 | AO31: 0 | AP31: 0 | AQ31: 0 | AR31: 0 | AS31: 0 | AT31: 0 | AW31: 3876.24192 | AX31: 8623.528604 | AY31: 767011.9848 | AZ31: 0 | BA31: 0 | BB31: 55514.10939 | BC31: 0 | BD31: 0 | BE31: 0 | BF31: 0 | BG31: 0 | BH31: 0 | BI31: 0 | BJ31: 0 | BK31: 0 | BL31: 0 | BM31: 0 | BN31: 0 | BO31: 0 | BP31: 0 | BQ31: 0 | BR31: 835025.8647
B32: Large Low Voltage Demand | D32: 0 | E32: 1.4666 | F32: 1.4666 | G32: 0 | H32: 0 | I32: 1.4058 | J32: 0 | K32: 0 | L32: 0 | M32: 72.9374 | N32: 0 | O32: 0 | P32: 0 | Q32: 0 | R32: 0 | S32: 0 | T32: 0 | U32: 0 | V32: 0 | W32: 0 | X32: 0 | Z32: 237.5833333 | AA32: 943965.5717 | AB32: 86845052.88 | AC32: 0 | AD32: 0 | AE32: 68055719 | AF32: 0 | AG32: 0 | AH32: 0 | AI32: 58998.00115 | AJ32: 0 | AK32: 0 | AL32: 0 | AM32: 0 | AN32: 0 | AO32: 0 | AP32: 0 | AQ32: 0 | AR32: 0 | AS32: 0 | AT32: 0 | AW32: 0 | AX32: 13861.04187 | AY32: 1276259.93 | AZ32: 0 | BA32: 0 | BB32: 957859.5241 | BC32: 0 | BD32: 0 | BE32: 0 | BF32: 4122218.829 | BG32: 0 | BH32: 0 | BI32: 0 | BJ32: 0 | BK32: 0 | BL32: 0 | BM32: 0 | BN32: 0 | BO32: 0 | BP32: 0 | BQ32: 0 | BR32: 6370199.325
B33: Large Low Voltage Demand - Bulk | D33: 0 | E33: 0.8267 | F33: 0.8267 | G33: 0 | H33: 0 | I33: 1.2536 | J33: 0 | K33: 0 | L33: 0 | M33: 66.7288 | N33: 0 | O33: 0 | P33: 0 | Q33: 0 | R33: 0 | S33: 0 | T33: 0 | U33: 0 | V33: 0 | W33: 0 | X33: 0 | Z33: 1276.666667 | AA33: 4531515.5 | AB33: 1044136588 | AC33: 0 | AD33: 0 | AE33: 765822042.6 | AF33: 0 | AG33: 0 | AH33: 0 | AI33: 644001.9563 | AJ33: 0 | AK33: 0 | AL33: 0 | AM33: 0 | AN33: 0 | AO33: 0 | AP33: 0 | AQ33: 0 | AR33: 0 | AS33: 0 | AT33: 0 | AW33: 0 | AX33: 37446.07154 | AY33: 8613236.891 | AZ33: 0 | BA33: 0 | BB33: 9588664.823 | BC33: 0 | BD33: 0 | BE33: 0 | BF33: 41728159.61 | BG33: 0 | BH33: 0 | BI33: 0 | BJ33: 0 | BK33: 0 | BL33: 0 | BM33: 0 | BN33: 0 | BO33: 0 | BP33: 0 | BQ33: 0 | BR33: 59967507.4
B34: Large Low Voltage Demand R | D34: 0 | E34: 1.5259 | F34: 1.5259 | G34: 0 | H34: 0 | I34: 1.4909 | J34: 0 | K34: 0 | L34: 0 | M34: 78.199 | N34: 0 | O34: 0 | P34: 0 | Q34: 0 | R34: 0 | S34: 0 | T34: 0 | U34: 0 | V34: 0 | W34: 0 | X34: 0 | Z34: 0 | AA34: 0 | AB34: 0 | AC34: 0 | AD34: 0 | AE34: 0 | AF34: 0 | AG34: 0 | AH34: 0 | AI34: 0 | AJ34: 0 | AK34: 0 | AL34: 0 | AM34: 0 | AN34: 0 | AO34: 0 | AP34: 0 | AQ34: 0 | AR34: 0 | AS34: 0 | AT34: 0 | AW34: 0 | AX34: 0 | AY34: 0 | AZ34: 0 | BA34: 0 | BB34: 0 | BC34: 0 | BD34: 0 | BE34: 0 | BF34: 0 | BG34: 0 | BH34: 0 | BI34: 0 | BJ34: 0 | BK34: 0 | BL34: 0 | BM34: 0 | BN34: 0 | BO34: 0 | BP34: 0 | BQ34: 0 | BR34: 0
B35: Large Low Voltage Demand G | D35: 0 | E35: 1.5259 | F35: 1.5259 | G35: 0 | H35: 0 | I35: 1.4909 | J35: 0 | K35: 0 | L35: 0 | M35: 78.199 | N35: 0 | O35: 0 | P35: 0 | Q35: 0 | R35: 0 | S35: 0 | T35: 0 | U35: 0 | V35: 0 | W35: 0 | X35: 0 | Z35: 9 | AA35: 36574.05217 | AB35: 3081721.341 | AC35: 0 | AD35: 0 | AE35: 3464710.497 | AF35: 0 | AG35: 0 | AH35: 0 | AI35: 3072.419247 | AJ35: 0 | AK35: 0 | AL35: 0 | AM35: 0 | AN35: 0 | AO35: 0 | AP35: 0 | AQ35: 0 | AR35: 0 | AS35: 0 | AT35: 0 | AW35: 0 | AX35: 558.4654812 | AY35: 47079.43022 | AZ35: 0 | BA35: 0 | BB35: 51670.06446 | BC35: 0 | BD35: 0 | BE35: 0 | BF35: 239856.1182 | BG35: 0 | BH35: 0 | BI35: 0 | BJ35: 0 | BK35: 0 | BL35: 0 | BM35: 0 | BN35: 0 | BO35: 0 | BP35: 0 | BQ35: 0 | BR35: 339164.0783
B36: Large Low Voltage Demand - Bulk R | D36: 0 | E36: 0.8841 | F36: 0.8841 | G36: 0 | H36: 0 | I36: 1.3691 | J36: 0 | K36: 0 | L36: 0 | M36: 71.5412 | N36: 0 | O36: 0 | P36: 0 | Q36: 0 | R36: 0 | S36: 0 | T36: 0 | U36: 0 | V36: 0 | W36: 0 | X36: 0 | Z36: 0 | AA36: 0 | AB36: 0 | AC36: 0 | AD36: 0 | AE36: 0 | AF36: 0 | AG36: 0 | AH36: 0 | AI36: 0 | AJ36: 0 | AK36: 0 | AL36: 0 | AM36: 0 | AN36: 0 | AO36: 0 | AP36: 0 | AQ36: 0 | AR36: 0 | AS36: 0 | AT36: 0 | AW36: 0 | AX36: 0 | AY36: 0 | AZ36: 0 | BA36: 0 | BB36: 0 | BC36: 0 | BD36: 0 | BE36: 0 | BF36: 0 | BG36: 0 | BH36: 0 | BI36: 0 | BJ36: 0 | BK36: 0 | BL36: 0 | BM36: 0 | BN36: 0 | BO36: 0 | BP36: 0 | BQ36: 0 | BR36: 0
B37: Large Low Voltage Demand - Bulk G | D37: 0 | E37: 0.8841 | F37: 0.8841 | G37: 0 | H37: 0 | I37: 1.3691 | J37: 0 | K37: 0 | L37: 0 | M37: 71.5412 | N37: 0 | O37: 0 | P37: 0 | Q37: 0 | R37: 0 | S37: 0 | T37: 0 | U37: 0 | V37: 0 | W37: 0 | X37: 0 | Z37: 157.0833333 | AA37: 635076.8896 | AB37: 99872289.97 | AC37: 0 | AD37: 0 | AE37: 74395708.77 | AF37: 0 | AG37: 0 | AH37: 0 | AI37: 56232.23912 | AJ37: 0 | AK37: 0 | AL37: 0 | AM37: 0 | AN37: 0 | AO37: 0 | AP37: 0 | AQ37: 0 | AR37: 0 | AS37: 0 | AT37: 0 | AW37: 0 | AX37: 5619.33479 | AY37: 883072.4947 | AZ37: 0 | BA37: 0 | BB37: 1018699.036 | BC37: 0 | BD37: 0 | BE37: 0 | BF37: 3892528.607 | BG37: 0 | BH37: 0 | BI37: 0 | BJ37: 0 | BK37: 0 | BL37: 0 | BM37: 0 | BN37: 0 | BO37: 0 | BP37: 0 | BQ37: 0 | BR37: 5799919.472
B38: High Voltage Demand | D38: 0 | E38: 0.3644 | F38: 0.3644 | G38: 0 | H38: 0 | I38: 0.6316 | J38: 0 | K38: 0 | L38: 0 | M38: 47.3968 | N38: 0 | O38: 0 | P38: 0 | Q38: 0 | R38: 0 | S38: 0 | T38: 0 | U38: 0 | V38: 0 | W38: 0 | X38: 0 | Z38: 74.66666667 | AA38: 293099.4998 | AB38: 290374567.3 | AC38: 0 | AD38: 0 | AE38: 274124189.8 | AF38: 0 | AG38: 0 | AH38: 0 | AI38: 184555.8469 | AJ38: 0 | AK38: 0 | AL38: 0 | AM38: 0 | AN38: 0 | AO38: 0 | AP38: 0 | AQ38: 0 | AR38: 0 | AS38: 0 | AT38: 0 | AW38: 0 | AX38: 1071.139955 | AY38: 1059006.237 | AZ38: 0 | BA38: 0 | BB38: 1731846.491 | BC38: 0 | BD38: 0 | BE38: 0 | BF38: 8613272.817 | BG38: 0 | BH38: 0 | BI38: 0 | BJ38: 0 | BK38: 0 | BL38: 0 | BM38: 0 | BN38: 0 | BO38: 0 | BP38: 0 | BQ38: 0 | BR38: 11405196.69
B39: High Voltage Demand D1 | D39: 0 | E39: 0.0908 | F39: 0.0908 | G39: 0 | H39: 0 | I39: 0.0984 | J39: 0 | K39: 0 | L39: 0 | M39: 29.7592 | N39: 0 | O39: 0 | P39: 0 | Q39: 0 | R39: 0 | S39: 0 | T39: 0 | U39: 0 | V39: 0 | W39: 0 | X39: 0 | Z39: 0 | AA39: 0 | AB39: 0 | AC39: 0 | AD39: 0 | AE39: 0 | AF39: 0 | AG39: 0 | AH39: 0 | AI39: 0 | AJ39: 0 | AK39: 0 | AL39: 0 | AM39: 0 | AN39: 0 | AO39: 0 | AP39: 0 | AQ39: 0 | AR39: 0 | AS39: 0 | AT39: 0 | AW39: 0 | AX39: 0 | AY39: 0 | AZ39: 0 | BA39: 0 | BB39: 0 | BC39: 0 | BD39: 0 | BE39: 0 | BF39: 0 | BG39: 0 | BH39: 0 | BI39: 0 | BJ39: 0 | BK39: 0 | BL39: 0 | BM39: 0 | BN39: 0 | BO39: 0 | BP39: 0 | BQ39: 0 | BR39: 0
B40: High Voltage Demand R | D40: 0 | E40: 0.3929 | F40: 0.3929 | G40: 0 | H40: 0 | I40: 0.6964 | J40: 0 | K40: 0 | L40: 0 | M40: 50.8158 | N40: 0 | O40: 0 | P40: 0 | Q40: 0 | R40: 0 | S40: 0 | T40: 0 | U40: 0 | V40: 0 | W40: 0 | X40: 0 | Z40: 0 | AA40: 0 | AB40: 0 | AC40: 0 | AD40: 0 | AE40: 0 | AF40: 0 | AG40: 0 | AH40: 0 | AI40: 0 | AJ40: 0 | AK40: 0 | AL40: 0 | AM40: 0 | AN40: 0 | AO40: 0 | AP40: 0 | AQ40: 0 | AR40: 0 | AS40: 0 | AT40: 0 | AW40: 0 | AX40: 0 | AY40: 0 | AZ40: 0 | BA40: 0 | BB40: 0 | BC40: 0 | BD40: 0 | BE40: 0 | BF40: 0 | BG40: 0 | BH40: 0 | BI40: 0 | BJ40: 0 | BK40: 0 | BL40: 0 | BM40: 0 | BN40: 0 | BO40: 0 | BP40: 0 | BQ40: 0 | BR40: 0
B41: High Voltage Demand G | D41: 0 | E41: 0.3929 | F41: 0.3929 | G41: 0 | H41: 0 | I41: 0.6964 | J41: 0 | K41: 0 | L41: 0 | M41: 50.8158 | N41: 0 | O41: 0 | P41: 0 | Q41: 0 | R41: 0 | S41: 0 | T41: 0 | U41: 0 | V41: 0 | W41: 0 | X41: 0 | Z41: 1 | AA41: 4071.058015 | AB41: 5726004.328 | AC41: 0 | AD41: 0 | AE41: 2653280.342 | AF41: 0 | AG41: 0 | AH41: 0 | AI41: 3440.25 | AJ41: 0 | AK41: 0 | AL41: 0 | AM41: 0 | AN41: 0 | AO41: 0 | AP41: 0 | AQ41: 0 | AR41: 0 | AS41: 0 | AT41: 0 | AW41: 0 | AX41: 16.05325802 | AY41: 22538.85737 | AZ41: 0 | BA41: 0 | BB41: 18481.98127 | BC41: 0 | BD41: 0 | BE41: 0 | BF41: 174487.3115 | BG41: 0 | BH41: 0 | BI41: 0 | BJ41: 0 | BK41: 0 | BL41: 0 | BM41: 0 | BN41: 0 | BO41: 0 | BP41: 0 | BQ41: 0 | BR41: 215524.2034
B42: Subtransmission Demand | D42: 0 | E42: 0.1107 | F42: 0.1107 | G42: 0 | H42: 0 | I42: 0.1644 | J42: 0 | K42: 0 | L42: 0 | M42: 10.9567 | N42: 0 | O42: 0 | P42: 0 | Q42: 0 | R42: 0 | S42: 0 | T42: 0 | U42: 0 | V42: 0 | W42: 0 | X42: 0 | Z42: 7 | AA42: 28497.4061 | AB42: 71510214.99 | AC42: 0 | AD42: 0 | AE42: 40129199.15 | AF42: 0 | AG42: 0 | AH42: 0 | AI42: 71571.93167 | AJ42: 0 | AK42: 0 | AL42: 0 | AM42: 0 | AN42: 0 | AO42: 0 | AP42: 0 | AQ42: 0 | AR42: 0 | AS42: 0 | AT42: 0 | AW42: 0 | AX42: 31.44439436 | AY42: 79335.18296 | AZ42: 0 | BA42: 0 | BB42: 66012.9414 | BC42: 0 | BD42: 0 | BE42: 0 | BF42: 633475.9272 | BG42: 0 | BH42: 0 | BI42: 0 | BJ42: 0 | BK42: 0 | BL42: 0 | BM42: 0 | BN42: 0 | BO42: 0 | BP42: 0 | BQ42: 0 | BR42: 778855.496
AW43: 0 | AX43: 0 | AY43: 0 | AZ43: 0 | BA43: 0 | BB43: 0 | BC43: 0 | BD43: 0 | BE43: 0 | BF43: 0 | BG43: 0 | BH43: 0 | BI43: 0 | BJ43: 0 | BK43: 0 | BL43: 0 | BM43: 0 | BN43: 0 | BO43: 0 | BP43: 0 | BQ43: 0 | BR43: 0
AW44: 0 | AX44: 0 | AY44: 0 | AZ44: 0 | BA44: 0 | BB44: 0 | BC44: 0 | BD44: 0 | BE44: 0 | BF44: 0 | BG44: 0 | BH44: 0 | BI44: 0 | BJ44: 0 | BK44: 0 | BL44: 0 | BM44: 0 | BN44: 0 | BO44: 0 | BP44: 0 | BQ44: 0 | BR44: 0
AW45: 0 | AX45: 0 | AY45: 0 | AZ45: 0 | BA45: 0 | BB45: 0 | BC45: 0 | BD45: 0 | BE45: 0 | BF45: 0 | BG45: 0 | BH45: 0 | BI45: 0 | BJ45: 0 | BK45: 0 | BL45: 0 | BM45: 0 | BN45: 0 | BO45: 0 | BP45: 0 | BQ45: 0 | BR45: 0
AW46: 0 | AX46: 0 | AY46: 0 | AZ46: 0 | BA46: 0 | BB46: 0 | BC46: 0 | BD46: 0 | BE46: 0 | BF46: 0 | BG46: 0 | BH46: 0 | BI46: 0 | BJ46: 0 | BK46: 0 | BL46: 0 | BM46: 0 | BN46: 0 | BO46: 0 | BP46: 0 | BQ46: 0 | BR46: 0
AW47: 0 | AX47: 0 | AY47: 0 | AZ47: 0 | BA47: 0 | BB47: 0 | BC47: 0 | BD47: 0 | BE47: 0 | BF47: 0 | BG47: 0 | BH47: 0 | BI47: 0 | BJ47: 0 | BK47: 0 | BL47: 0 | BM47: 0 | BN47: 0 | BO47: 0 | BP47: 0 | BQ47: 0 | BR47: 0
AW48: 0 | AX48: 0 | AY48: 0 | AZ48: 0 | BA48: 0 | BB48: 0 | BC48: 0 | BD48: 0 | BE48: 0 | BF48: 0 | BG48: 0 | BH48: 0 | BI48: 0 | BJ48: 0 | BK48: 0 | BL48: 0 | BM48: 0 | BN48: 0 | BO48: 0 | BP48: 0 | BQ48: 0 | BR48: 0
AW49: 0 | AX49: 0 | AY49: 0 | AZ49: 0 | BA49: 0 | BB49: 0 | BC49: 0 | BD49: 0 | BE49: 0 | BF49: 0 | BG49: 0 | BH49: 0 | BI49: 0 | BJ49: 0 | BK49: 0 | BL49: 0 | BM49: 0 | BN49: 0 | BO49: 0 | BP49: 0 | BQ49: 0 | BR49: 0
AW50: 0 | AX50: 0 | AY50: 0 | AZ50: 0 | BA50: 0 | BB50: 0 | BC50: 0 | BD50: 0 | BE50: 0 | BF50: 0 | BG50: 0 | BH50: 0 | BI50: 0 | BJ50: 0 | BK50: 0 | BL50: 0 | BM50: 0 | BN50: 0 | BO50: 0 | BP50: 0 | BQ50: 0 | BR50: 0
AW51: 0 | AX51: 0 | AY51: 0 | AZ51: 0 | BA51: 0 | BB51: 0 | BC51: 0 | BD51: 0 | BE51: 0 | BF51: 0 | BG51: 0 | BH51: 0 | BI51: 0 | BJ51: 0 | BK51: 0 | BL51: 0 | BM51: 0 | BN51: 0 | BO51: 0 | BP51: 0 | BQ51: 0 | BR51: 0
AW52: 0 | AX52: 0 | AY52: 0 | AZ52: 0 | BA52: 0 | BB52: 0 | BC52: 0 | BD52: 0 | BE52: 0 | BF52: 0 | BG52: 0 | BH52: 0 | BI52: 0 | BJ52: 0 | BK52: 0 | BL52: 0 | BM52: 0 | BN52: 0 | BO52: 0 | BP52: 0 | BQ52: 0 | BR52: 0
AW53: 0 | AX53: 0 | AY53: 0 | AZ53: 0 | BA53: 0 | BB53: 0 | BC53: 0 | BD53: 0 | BE53: 0 | BF53: 0 | BG53: 0 | BH53: 0 | BI53: 0 | BJ53: 0 | BK53: 0 | BL53: 0 | BM53: 0 | BN53: 0 | BO53: 0 | BP53: 0 | BQ53: 0 | BR53: 0
AW54: 0 | AX54: 0 | AY54: 0 | AZ54: 0 | BA54: 0 | BB54: 0 | BC54: 0 | BD54: 0 | BE54: 0 | BF54: 0 | BG54: 0 | BH54: 0 | BI54: 0 | BJ54: 0 | BK54: 0 | BL54: 0 | BM54: 0 | BN54: 0 | BO54: 0 | BP54: 0 | BQ54: 0 | BR54: 0
AW55: 0 | AX55: 0 | AY55: 0 | AZ55: 0 | BA55: 0 | BB55: 0 | BC55: 0 | BD55: 0 | BE55: 0 | BF55: 0 | BG55: 0 | BH55: 0 | BI55: 0 | BJ55: 0 | BK55: 0 | BL55: 0 | BM55: 0 | BN55: 0 | BO55: 0 | BP55: 0 | BQ55: 0 | BR55: 0
AW56: 0 | AX56: 0 | AY56: 0 | AZ56: 0 | BA56: 0 | BB56: 0 | BC56: 0 | BD56: 0 | BE56: 0 | BF56: 0 | BG56: 0 | BH56: 0 | BI56: 0 | BJ56: 0 | BK56: 0 | BL56: 0 | BM56: 0 | BN56: 0 | BO56: 0 | BP56: 0 | BQ56: 0 | BR56: 0
AW57: 0 | AX57: 0 | AY57: 0 | AZ57: 0 | BA57: 0 | BB57: 0 | BC57: 0 | BD57: 0 | BE57: 0 | BF57: 0 | BG57: 0 | BH57: 0 | BI57: 0 | BJ57: 0 | BK57: 0 | BL57: 0 | BM57: 0 | BN57: 0 | BO57: 0 | BP57: 0 | BQ57: 0 | BR57: 0
AW58: 0 | AX58: 0 | AY58: 0 | AZ58: 0 | BA58: 0 | BB58: 0 | BC58: 0 | BD58: 0 | BE58: 0 | BF58: 0 | BG58: 0 | BH58: 0 | BI58: 0 | BJ58: 0 | BK58: 0 | BL58: 0 | BM58: 0 | BN58: 0 | BO58: 0 | BP58: 0 | BQ58: 0 | BR58: 0
AW59: 0 | AX59: 0 | AY59: 0 | AZ59: 0 | BA59: 0 | BB59: 0 | BC59: 0 | BD59: 0 | BE59: 0 | BF59: 0 | BG59: 0 | BH59: 0 | BI59: 0 | BJ59: 0 | BK59: 0 | BL59: 0 | BM59: 0 | BN59: 0 | BO59: 0 | BP59: 0 | BQ59: 0 | BR59: 0
AW60: 0 | AX60: 0 | AY60: 0 | AZ60: 0 | BA60: 0 | BB60: 0 | BC60: 0 | BD60: 0 | BE60: 0 | BF60: 0 | BG60: 0 | BH60: 0 | BI60: 0 | BJ60: 0 | BK60: 0 | BL60: 0 | BM60: 0 | BN60: 0 | BO60: 0 | BP60: 0 | BQ60: 0 | BR60: 0
AW61: 0 | AX61: 0 | AY61: 0 | AZ61: 0 | BA61: 0 | BB61: 0 | BC61: 0 | BD61: 0 | BE61: 0 | BF61: 0 | BG61: 0 | BH61: 0 | BI61: 0 | BJ61: 0 | BK61: 0 | BL61: 0 | BM61: 0 | BN61: 0 | BO61: 0 | BP61: 0 | BQ61: 0 | BR61: 0
AW62: 0 | AX62: 0 | AY62: 0 | AZ62: 0 | BA62: 0 | BB62: 0 | BC62: 0 | BD62: 0 | BE62: 0 | BF62: 0 | BG62: 0 | BH62: 0 | BI62: 0 | BJ62: 0 | BK62: 0 | BL62: 0 | BM62: 0 | BN62: 0 | BO62: 0 | BP62: 0 | BQ62: 0 | BR62: 0
AW63: 0 | AX63: 0 | AY63: 0 | AZ63: 0 | BA63: 0 | BB63: 0 | BC63: 0 | BD63: 0 | BE63: 0 | BF63: 0 | BG63: 0 | BH63: 0 | BI63: 0 | BJ63: 0 | BK63: 0 | BL63: 0 | BM63: 0 | BN63: 0 | BO63: 0 | BP63: 0 | BQ63: 0 | BR63: 0
AW64: 0 | AX64: 0 | AY64: 0 | AZ64: 0 | BA64: 0 | BB64: 0 | BC64: 0 | BD64: 0 | BE64: 0 | BF64: 0 | BG64: 0 | BH64: 0 | BI64: 0 | BJ64: 0 | BK64: 0 | BL64: 0 | BM64: 0 | BN64: 0 | BO64: 0 | BP64: 0 | BQ64: 0 | BR64: 0
AW65: 0 | AX65: 0 | AY65: 0 | AZ65: 0 | BA65: 0 | BB65: 0 | BC65: 0 | BD65: 0 | BE65: 0 | BF65: 0 | BG65: 0 | BH65: 0 | BI65: 0 | BJ65: 0 | BK65: 0 | BL65: 0 | BM65: 0 | BN65: 0 | BO65: 0 | BP65: 0 | BQ65: 0 | BR65: 0
AW66: 0 | AX66: 0 | AY66: 0 | AZ66: 0 | BA66: 0 | BB66: 0 | BC66: 0 | BD66: 0 | BE66: 0 | BF66: 0 | BG66: 0 | BH66: 0 | BI66: 0 | BJ66: 0 | BK66: 0 | BL66: 0 | BM66: 0 | BN66: 0 | BO66: 0 | BP66: 0 | BQ66: 0 | BR66: 0
Z67: =SUM(Z7:Z66) -> 353639.0833 | AA67: 885078063.5 | AB67: 3058643310 | AC67: 0 | AD67: 0 | AE67: 1970437900 | AF67: 0 | AG67: 0 | AH67: 0 | AI67: 1021872.644 | AJ67: 0 | AK67: 0 | AL67: 0 | AM67: =SUM(AM7:AM66) -> 822918.2309 | AN67: 565869.6162 | AO67: 826562.6226 | AP67: 0 | AQ67: 1162444.318 | AR67: 689566.182 | AS67: 1175437.55 | AT67: 0 | AW67: =SUM(AW7:AW66) -> 19988611.31 | AX67: 48722913.02 | AY67: 103725367.3 | AZ67: 0 | BA67: 0 | BB67: 22482346.59 | BC67: 0 | BD67: 0 | BE67: 0 | BF67: 59403999.22 | BG67: 0 | BH67: 0 | BI67: 0 | BJ67: =SUM(BJ7:BJ66) -> 38766.46337 | BK67: 18358.02383 | BL67: 5847.478859 | BM67: 0 | BN67: 56148.02612 | BO67: 22172.54666 | BP67: 8831.044897 | BQ67: 0 | BR67: 254473361
B70: Definitions | AW70: 0 | AX70: 0 | AY70: 0 | AZ70: 0 | BA70: 0 | BB70: 0 | BC70: 0 | BD70: 0 | BE70: 0 | BF70: 0 | BG70: 0 | BH70: 0 | BI70: 0 | BJ70: 0 | BK70: 0 | BL70: 0 | BM70: 0 | BN70: 0 | BO70: 0 | BP70: 0 | BQ70: 0 | BR70: 0
B71: All information must be reported consistent the terms used in the DNSPs pricing proposal

Sheet 26. Actual t-2 Trans Tariff
B1: =Cover!E22 -> CitiPower Pty
B2: Tariff Quantity Data Template (Actual t-2) Transmission Tariff Revenue
B3: =Cover!E26 -> 2014
B5: Templates 24 to 29 collect data required for annual pricing proposals. T-2 requires actual information for the reporting year.
D6: Transmission Tariffs (Pt-2) | Z6: Actual Quantities (Qt-2) | AW6: Actual Revenue (P-2)*(Qt-2)
B7: Tariffs t-2 | D7: (t-2)Tar Fixed | E7: (t-2)Tar PkBlk1 | F7: (t-2)Tar PkBlk2 | G7: (t-2)Tar PkBlk3 | H7: (t-2)Tar PkBlk4 | I7: (t-2)Tar OPkBlk1 | J7: (t-2)Tar OPkBlk2 | K7: (t-2)Tar OPkBlk3 | L7: (t-2)Tar OPkBlk4 | M7: (t-2)Tar DemBlk1 | N7: (t-2)Tar DemBlk2 | O7: (t-2)Tar DemBlk3 | P7: (t-2)Tar DemBlk4 | Q7: (t-2)Tar SumBlk1 | R7: (t-2)Tar SumBlk2 | S7: (t-2)Tar SumBlk3 | T7: (t-2)Tar SumBlk4 | U7: (t-2)Tar WtrBlk1 | V7: (t-2)Tar WtrBlk2 | W7: (t-2)Tar WtrBlk3 | X7: (t-2)Tar WtrBlk4 | Z7: ActVol Fixed | AA7: ActVol PkBlk1 | AB7: ActVol PkBlk2 | AC7: ActVol PkBlk3 | AD7: ActVol PkBlk4 | AE7: ActVol OPkBlk1 | AF7: ActVol OPkBlk2 | AG7: ActVol OPkBlk3 | AH7: ActVol OPkBlk4 | AI7: ActVol DemBlk1 | AJ7: ActVol DemBlk2 | AK7: ActVol DemBlk3 | AL7: ActVol DemBlk4 | AM7: (t-2)Tar SumBlk1 | AN7: (t-2)Tar SumBlk2 | AO7: (t-2)Tar SumBlk3 | AP7: (t-2)Tar SumBlk4 | AQ7: (t-2)Tar WtrBlk1 | AR7: (t-2)Tar WtrBlk2 | AS7: (t-2)Tar WtrBlk3 | AT7: (t-2)Tar WtrBlk4 | AW7: ActRev Fixed | AX7: ActRev PkBlk1 | AY7: ActRev PkBlk2 | AZ7: ActRev PkBlk3 | BA7: ActRev PkBlk4 | BB7: ActRev OPkBlk1 | BC7: ActRev OPkBlk2 | BD7: ActRev OPkBlk3 | BE7: ActRev OPkBlk4 | BF7: ActRev DemBlk1 | BG7: ActRev DemBlk2 | BH7: ActRev DemBlk3 | BI7: ActRev DemBlk4 | BJ7: (t-2)Tar SumBlk1 | BK7: (t-2)Tar SumBlk2 | BL7: (t-2)Tar SumBlk3 | BM7: (t-2)Tar SumBlk4 | BN7: (t-2)Tar WtrBlk1 | BO7: (t-2)Tar WtrBlk2 | BP7: (t-2)Tar WtrBlk3 | BQ7: (t-2)Tar WtrBlk4 | BR7: ActRev Total
AW8: =D8*Z8 -> 0 | AX8: =E8/100*AA8 -> 0 | AY8: =F8/100*AB8 -> 0 | AZ8: =G8/100*AC8 -> 0 | BA8: =H8/100*AD8 -> 0 | BB8: =I8/100*AE8 -> 0 | BC8: =J8/100*AF8 -> 0 | BD8: =K8/100*AG8 -> 0 | BE8: =L8/100*AH8 -> 0 | BF8: =M8*AI8 -> 0 | BG8: =N8*AJ8 -> 0 | BH8: =O8*AK8 -> 0 | BI8: =P8*AL8 -> 0 | BJ8: =Q8/100*AM8 -> 0 | BK8: =R8/100*AN8 -> 0 | BL8: =S8/100*AO8 -> 0 | BM8: =T8/100*AP8 -> 0 | BN8: =U8/100*AQ8 -> 0 | BO8: =V8/100*AR8 -> 0 | BP8: =W8/100*AS8 -> 0 | BQ8: =X8/100*AT8 -> 0 | BR8: =SUM(AW8:BQ8) -> 0
B9: Residential Single Rate | D9: 0.5016 | E9: 0.4692 | F9: 0.4692 | G9: 0 | H9: 0 | I9: 0 | J9: 0 | K9: 0 | L9: 0 | M9: 0 | N9: 0 | O9: 0 | P9: 0 | Q9: 0 | R9: 0 | S9: 0 | T9: 0 | U9: 0 | V9: 0 | W9: 0 | X9: 0 | Z9: 197281 | AA9: 547806183 | AB9: 246185710.9 | AC9: 0 | AD9: 0 | AE9: 0 | AF9: 0 | AG9: 0 | AH9: 0 | AI9: 0 | AJ9: 0 | AK9: 0 | AL9: 0 | AM9: 0 | AN9: 0 | AO9: 0 | AP9: 0 | AQ9: 0 | AR9: 0 | AS9: 0 | AT9: 0 | AW9: =D9*Z9 -> 98956.1496 | AX9: 2570306.61 | AY9: 1155103.355 | AZ9: 0 | BA9: 0 | BB9: 0 | BC9: 0 | BD9: 0 | BE9: 0 | BF9: =M9*AI9 -> 0 | BG9: =N9*AJ9 -> 0 | BH9: =O9*AK9 -> 0 | BI9: =P9*AL9 -> 0 | BJ9: =Q9/100*AM9 -> 0 | BK9: 0 | BL9: 0 | BM9: 0 | BN9: 0 | BO9: 0 | BP9: 0 | BQ9: 0 | BR9: =SUM(AW9:BQ9) -> 3824366.115
B10: Residential Single Rate - Bulk | D10: 0.3605 | E10: 0.3912 | F10: 0.3912 | G10: 0 | H10: 0 | I10: 0 | J10: 0 | K10: 0 | L10: 0 | M10: 0 | N10: 0 | O10: 0 | P10: 0 | Q10: 0 | R10: 0 | S10: 0 | T10: 0 | U10: 0 | V10: 0 | W10: 0 | X10: 0 | Z10: 29891.08333 | AA10: 75884017.71 | AB10: 23940581.79 | AC10: 0 | AD10: 0 | AE10: 0 | AF10: 0 | AG10: 0 | AH10: 0 | AI10: 0 | AJ10: 0 | AK10: 0 | AL10: 0 | AM10: 0 | AN10: 0 | AO10: 0 | AP10: 0 | AQ10: 0 | AR10: 0 | AS10: 0 | AT10: 0 | AW10: 10775.73554 | AX10: 296858.2773 | AY10: 93655.55595 | AZ10: 0 | BA10: 0 | BB10: 0 | BC10: 0 | BD10: 0 | BE10: 0 | BF10: 0 | BG10: 0 | BH10: 0 | BI10: 0 | BJ10: 0 | BK10: 0 | BL10: 0 | BM10: 0 | BN10: 0 | BO10: 0 | BP10: 0 | BQ10: 0 | BR10: 401289.5688
B11: Residential - flexible pricing | D11: 16.3976 | E11: 0 | F11: 0 | G11: 0 | H11: 0 | I11: 0 | J11: 0 | K11: 0 | L11: 0 | M11: 0 | N11: 0 | O11: 0 | P11: 0 | Q11: 2.1719 | R11: 1.9545 | S11: 0.5296 | T11: 0 | U11: 2.1719 | V11: 1.9545 | W11: 0.5296 | X11: 0 | Z11: 363.3333333 | AA11: 0 | AB11: 0 | AC11: 0 | AD11: 0 | AE11: -132.789871 | AF11: 0 | AG11: 0 | AH11: 0 | AI11: 0 | AJ11: 0 | AK11: 0 | AL11: 0 | AM11: 160063.7506 | AN11: 358969.4475 | AO11: 247289.3188 | AP11: 0 | AQ11: 246006.2178 | AR11: 418648.0978 | AS11: 363819.983 | AT11: 0 | AW11: 5957.794667 | AX11: 0 | AY11: 0 | AZ11: 0 | BA11: 0 | BB11: 0 | BC11: 0 | BD11: 0 | BE11: 0 | BF11: 0 | BG11: 0 | BH11: 0 | BI11: 0 | BJ11: 3476.4246 | BK11: 7016.057851 | BL11: 1309.644232 | BM11: 0 | BN11: 5343.009044 | BO11: 8182.477071 | BP11: 1926.79063 | BQ11: 0 | BR11: 33212.19809
B12: Residential - flexible pricing bulk | D12: 12.1998 | E12: 0 | F12: 0 | G12: 0 | H12: 0 | I12: 0 | J12: 0 | K12: 0 | L12: 0 | M12: 0 | N12: 0 | O12: 0 | P12: 0 | Q12: 2.0633 | R12: 1.8567 | S12: 0.5031 | T12: 0 | U12: 2.0633 | V12: 1.8567 | W12: 0.5031 | X12: 0 | Z12: 63.41666667 | AA12: -0.003965310759 | AB12: 0 | AC12: 0 | AD12: 0 | AE12: -0.001765854474 | AF12: 0 | AG12: 0 | AH12: 0 | AI12: 0 | AJ12: 0 | AK12: 0 | AL12: 0 | AM12: 20233.66916 | AN12: 48733.98136 | AO12: 32703.80198 | AP12: 0 | AQ12: 34583.21627 | AR12: 62904.00125 | AS12: 47771.61001 | AT12: 0 | AW12: 773.67065 | AX12: 0 | AY12: 0 | AZ12: 0 | BA12: 0 | BB12: 0 | BC12: 0 | BD12: 0 | BE12: 0 | BF12: 0 | BG12: 0 | BH12: 0 | BI12: 0 | BJ12: 417.4812958 | BK12: 904.843832 | BL12: 164.5328277 | BM12: 0 | BN12: 713.5555012 | BO12: 1167.938591 | BP12: 240.33897 | BQ12: 0 | BR12: 4382.361668
B13: Residential Two Rate 5d | D13: 0.9911 | E13: 1.4936 | F13: 1.4936 | G13: 0 | H13: 0 | I13: 0.7358 | J13: 0 | K13: 0 | L13: 0 | M13: 0 | N13: 0 | O13: 0 | P13: 0 | Q13: 0 | R13: 0 | S13: 0 | T13: 0 | U13: 0 | V13: 0 | W13: 0 | X13: 0 | Z13: 11092.5 | AA13: 24060552.2 | AB13: 12735802.5 | AC13: 0 | AD13: 0 | AE13: 44052154.68 | AF13: 0 | AG13: 0 | AH13: 0 | AI13: 0 | AJ13: 0 | AK13: 0 | AL13: 0 | AM13: 0 | AN13: 0 | AO13: 0 | AP13: 0 | AQ13: 0 | AR13: 0 | AS13: 0 | AT13: 0 | AW13: 10993.77675 | AX13: 359368.4076 | AY13: 190221.9461 | AZ13: 0 | BA13: 0 | BB13: 324135.7541 | BC13: 0 | BD13: 0 | BE13: 0 | BF13: 0 | BG13: 0 | BH13: 0 | BI13: 0 | BJ13: 0 | BK13: 0 | BL13: 0 | BM13: 0 | BN13: 0 | BO13: 0 | BP13: 0 | BQ13: 0 | BR13: 884719.8846
B14: Residential Two Rate 5d - Bulk | D14: 0.7374 | E14: 1.1809 | F14: 1.1809 | G14: 0 | H14: 0 | I14: 0.8229 | J14: 0 | K14: 0 | L14: 0 | M14: 0 | N14: 0 | O14: 0 | P14: 0 | Q14: 0 | R14: 0 | S14: 0 | T14: 0 | U14: 0 | V14: 0 | W14: 0 | X14: 0 | Z14: 4390.333333 | AA14: 8301630.881 | AB14: 4426249.792 | AC14: 0 | AD14: 0 | AE14: 15263240.75 | AF14: 0 | AG14: 0 | AH14: 0 | AI14: 0 | AJ14: 0 | AK14: 0 | AL14: 0 | AM14: 0 | AN14: 0 | AO14: 0 | AP14: 0 | AQ14: 0 | AR14: 0 | AS14: 0 | AT14: 0 | AW14: 3237.4318 | AX14: 98033.95907 | AY14: 52269.58379 | AZ14: 0 | BA14: 0 | BB14: 125601.2081 | BC14: 0 | BD14: 0 | BE14: 0 | BF14: 0 | BG14: 0 | BH14: 0 | BI14: 0 | BJ14: 0 | BK14: 0 | BL14: 0 | BM14: 0 | BN14: 0 | BO14: 0 | BP14: 0 | BQ14: 0 | BR14: 279142.1828
B15: Residential Interval | D15: 0.9911 | E15: 1.2639 | F15: 1.2639 | G15: 0 | H15: 0 | I15: 0.7358 | J15: 0 | K15: 0 | L15: 0 | M15: 0 | N15: 0 | O15: 0 | P15: 0 | Q15: 0 | R15: 0 | S15: 0 | T15: 0 | U15: 0 | V15: 0 | W15: 0 | X15: 0 | Z15: 17426 | AA15: 39819961.33 | AB15: 20716608.26 | AC15: 0 | AD15: 0 | AE15: 52156407.77 | AF15: 0 | AG15: 0 | AH15: 0 | AI15: 0 | AJ15: 0 | AK15: 0 | AL15: 0 | AM15: 0 | AN15: 0 | AO15: 0 | AP15: 0 | AQ15: 0 | AR15: 0 | AS15: 0 | AT15: 0 | AW15: 17270.9086 | AX15: 503284.4913 | AY15: 261837.2118 | AZ15: 0 | BA15: 0 | BB15: 383766.8483 | BC15: 0 | BD15: 0 | BE15: 0 | BF15: 0 | BG15: 0 | BH15: 0 | BI15: 0 | BJ15: 0 | BK15: 0 | BL15: 0 | BM15: 0 | BN15: 0 | BO15: 0 | BP15: 0 | BQ15: 0 | BR15: 1166159.46
B16: Residential Interval - Bulk | D16: 0.7374 | E16: 0.9992 | F16: 0.9992 | G16: 0 | H16: 0 | I16: 0.8229 | J16: 0 | K16: 0 | L16: 0 | M16: 0 | N16: 0 | O16: 0 | P16: 0 | Q16: 0 | R16: 0 | S16: 0 | T16: 0 | U16: 0 | V16: 0 | W16: 0 | X16: 0 | Z16: 8943.166667 | AA16: 13037744.42 | AB16: 2033749.777 | AC16: 0 | AD16: 0 | AE16: 14018069.32 | AF16: 0 | AG16: 0 | AH16: 0 | AI16: 0 | AJ16: 0 | AK16: 0 | AL16: 0 | AM16: 0 | AN16: 0 | AO16: 0 | AP16: 0 | AQ16: 0 | AR16: 0 | AS16: 0 | AT16: 0 | AW16: 6594.6911 | AX16: 130273.1422 | AY16: 20321.22777 | AZ16: 0 | BA16: 0 | BB16: 115354.6924 | BC16: 0 | BD16: 0 | BE16: 0 | BF16: 0 | BG16: 0 | BH16: 0 | BI16: 0 | BJ16: 0 | BK16: 0 | BL16: 0 | BM16: 0 | BN16: 0 | BO16: 0 | BP16: 0 | BQ16: 0 | BR16: 272543.7535
B17: Residential Two Rate 5d - Controlled Load | D17: 0 | E17: 0 | F17: 0 | G17: 0 | H17: 0 | I17: 0.8175 | J17: 0 | K17: 0 | L17: 0 | M17: 0 | N17: 0 | O17: 0 | P17: 0 | Q17: 0 | R17: 0 | S17: 0 | T17: 0 | U17: 0 | V17: 0 | W17: 0 | X17: 0 | Z17: 3183.666667 | AA17: 0 | AB17: 0 | AC17: 0 | AD17: 0 | AE17: 9287604.931 | AF17: 0 | AG17: 0 | AH17: 0 | AI17: 0 | AJ17: 0 | AK17: 0 | AL17: 0 | AM17: 0 | AN17: 0 | AO17: 0 | AP17: 0 | AQ17: 0 | AR17: 0 | AS17: 10833.816 | AT17: 0 | AW17: 0 | AX17: 0 | AY17: 0 | AZ17: 0 | BA17: 0 | BB17: 75926.17031 | BC17: 0 | BD17: 0 | BE17: 0 | BF17: 0 | BG17: 0 | BH17: 0 | BI17: 0 | BJ17: 0 | BK17: 0 | BL17: 0 | BM17: 0 | BN17: 0 | BO17: 0 | BP17: 0 | BQ17: 0 | BR17: 75926.17031
B18: Residential Two Rate 5d - Bulk - Controlled Load | D18: 0 | E18: 0 | F18: 0 | G18: 0 | H18: 0 | I18: 0.8229 | J18: 0 | K18: 0 | L18: 0 | M18: 0 | N18: 0 | O18: 0 | P18: 0 | Q18: 0 | R18: 0 | S18: 0 | T18: 0 | U18: 0 | V18: 0 | W18: 0 | X18: 0 | Z18: 1228.5 | AA18: 0 | AB18: 0 | AC18: 0 | AD18: 0 | AE18: 3409510.199 | AF18: 0 | AG18: 0 | AH18: 0 | AI18: 0 | AJ18: 0 | AK18: 0 | AL18: 0 | AM18: 0 | AN18: 0 | AO18: 0 | AP18: 0 | AQ18: 0 | AR18: 0 | AS18: 2998.062 | AT18: 0 | AW18: 0 | AX18: 0 | AY18: 0 | AZ18: 0 | BA18: 0 | BB18: 28056.85943 | BC18: 0 | BD18: 0 | BE18: 0 | BF18: 0 | BG18: 0 | BH18: 0 | BI18: 0 | BJ18: 0 | BK18: 0 | BL18: 0 | BM18: 0 | BN18: 0 | BO18: 0 | BP18: 0 | BQ18: 0 | BR18: 28056.85943
B19: Dedicated Circuit | D19: 0 | E19: 0 | F19: 0 | G19: 0 | H19: 0 | I19: 0.9465 | J19: 0 | K19: 0 | L19: 0 | M19: 0 | N19: 0 | O19: 0 | P19: 0 | Q19: 0 | R19: 0 | S19: 0 | T19: 0 | U19: 0 | V19: 0 | W19: 0 | X19: 0 | Z19: 24561.41667 | AA19: 0 | AB19: 0 | AC19: 0 | AD19: 0 | AE19: 39000305.43 | AF19: 0 | AG19: 0 | AH19: 0 | AI19: 0 | AJ19: 0 | AK19: 0 | AL19: 0 | AM19: 0 | AN19: 0 | AO19: 0 | AP19: 0 | AQ19: 0 | AR19: 0 | AS19: 20228.376 | AT19: 0 | AW19: 0 | AX19: 0 | AY19: 0 | AZ19: 0 | BA19: 0 | BB19: 369137.8909 | BC19: 0 | BD19: 0 | BE19: 0 | BF19: 0 | BG19: 0 | BH19: 0 | BI19: 0 | BJ19: 0 | BK19: 0 | BL19: 0 | BM19: 0 | BN19: 0 | BO19: 0 | BP19: 0 | BQ19: 0 | BR19: 369137.8909
B20: Dedicated Circuit - Bulk | D20: 0 | E20: 0 | F20: 0 | G20: 0 | H20: 0 | I20: 0.9137 | J20: 0 | K20: 0 | L20: 0 | M20: 0 | N20: 0 | O20: 0 | P20: 0 | Q20: 0 | R20: 0 | S20: 0 | T20: 0 | U20: 0 | V20: 0 | W20: 0 | X20: 0 | Z20: 1178.916667 | AA20: 0 | AB20: 0 | AC20: 0 | AD20: 0 | AE20: 2514062.492 | AF20: 0 | AG20: 0 | AH20: 0 | AI20: 0 | AJ20: 0 | AK20: 0 | AL20: 0 | AM20: 0 | AN20: 0 | AO20: 0 | AP20: 0 | AQ20: 0 | AR20: 0 | AS20: 333.4692 | AT20: 0 | AW20: 0 | AX20: 0 | AY20: 0 | AZ20: 0 | BA20: 0 | BB20: 22970.98899 | BC20: 0 | BD20: 0 | BE20: 0 | BF20: 0 | BG20: 0 | BH20: 0 | BI20: 0 | BJ20: 0 | BK20: 0 | BL20: 0 | BM20: 0 | BN20: 0 | BO20: 0 | BP20: 0 | BQ20: 0 | BR20: 22970.98899
B21: Non-Residential Single Rate | D21: 1.1076 | E21: 0.5122 | F21: 0.5122 | G21: 0 | H21: 0 | I21: 0 | J21: 0 | K21: 0 | L21: 0 | M21: 0 | N21: 0 | O21: 0 | P21: 0 | Q21: 0 | R21: 0 | S21: 0 | T21: 0 | U21: 0 | V21: 0 | W21: 0 | X21: 0 | Z21: 19454.08333 | AA21: 63403302.59 | AB21: 242573280.7 | AC21: 0 | AD21: 0 | AE21: -1583.494249 | AF21: 0 | AG21: 0 | AH21: 0 | AI21: 0 | AJ21: 0 | AK21: 0 | AL21: 0 | AM21: 0 | AN21: 0 | AO21: 0 | AP21: 0 | AQ21: 0 | AR21: 0 | AS21: 0 | AT21: 0 | AW21: 21547.3427 | AX21: 324751.7159 | AY21: 1242460.344 | AZ21: 0 | BA21: 0 | BB21: 0 | BC21: 0 | BD21: 0 | BE21: 0 | BF21: 0 | BG21: 0 | BH21: 0 | BI21: 0 | BJ21: 0 | BK21: 0 | BL21: 0 | BM21: 0 | BN21: 0 | BO21: 0 | BP21: 0 | BQ21: 0 | BR21: 1588759.402
B22: Non-Residential Single Rate - Bulk | D22: 0.7872 | E22: 0.4368 | F22: 0.4368 | G22: 0 | H22: 0 | I22: 0 | J22: 0 | K22: 0 | L22: 0 | M22: 0 | N22: 0 | O22: 0 | P22: 0 | Q22: 0 | R22: 0 | S22: 0 | T22: 0 | U22: 0 | V22: 0 | W22: 0 | X22: 0 | Z22: 5639.5 | AA22: 18161428.32 | AB22: 103351719.7 | AC22: 0 | AD22: 0 | AE22: 0 | AF22: 0 | AG22: 0 | AH22: 0 | AI22: 0 | AJ22: 0 | AK22: 0 | AL22: 0 | AM22: 0 | AN22: 0 | AO22: 0 | AP22: 0 | AQ22: 0 | AR22: 0 | AS22: 0 | AT22: 0 | AW22: 4439.4144 | AX22: 79329.1189 | AY22: 451440.3117 | AZ22: 0 | BA22: 0 | BB22: 0 | BC22: 0 | BD22: 0 | BE22: 0 | BF22: 0 | BG22: 0 | BH22: 0 | BI22: 0 | BJ22: 0 | BK22: 0 | BL22: 0 | BM22: 0 | BN22: 0 | BO22: 0 | BP22: 0 | BQ22: 0 | BR22: 535208.845
B23: Non-Residential Two Rate 5d | D23: 13.15 | E23: 1.9881 | F23: 1.9881 | G23: 0 | H23: 0 | I23: 0.6414 | J23: 0 | K23: 0 | L23: 0 | M23: 0 | N23: 0 | O23: 0 | P23: 0 | Q23: 0 | R23: 0 | S23: 0 | T23: 0 | U23: 0 | V23: 0 | W23: 0 | X23: 0 | Z23: 11815.83333 | AA23: 36927407.11 | AB23: 283853501.9 | AC23: 0 | AD23: 0 | AE23: 229694052.1 | AF23: 0 | AG23: 0 | AH23: 0 | AI23: 0 | AJ23: 0 | AK23: 0 | AL23: 0 | AM23: 0 | AN23: 0 | AO23: 0 | AP23: 0 | AQ23: 0 | AR23: 0 | AS23: 0 | AT23: 0 | AW23: 155378.2083 | AX23: 734153.7807 | AY23: 5643291.471 | AZ23: 0 | BA23: 0 | BB23: 1473257.65 | BC23: 0 | BD23: 0 | BE23: 0 | BF23: 0 | BG23: 0 | BH23: 0 | BI23: 0 | BJ23: 0 | BK23: 0 | BL23: 0 | BM23: 0 | BN23: 0 | BO23: 0 | BP23: 0 | BQ23: 0 | BR23: 8006081.11
B24: Non-Residential Two Rate 5d - Bulk | D24: 10.2169 | E24: 1.9606 | F24: 1.9606 | G24: 0 | H24: 0 | I24: 0.5342 | J24: 0 | K24: 0 | L24: 0 | M24: 0 | N24: 0 | O24: 0 | P24: 0 | Q24: 0 | R24: 0 | S24: 0 | T24: 0 | U24: 0 | V24: 0 | W24: 0 | X24: 0 | Z24: 2020.25 | AA24: 7869817.56 | AB24: 101366372.2 | AC24: 0 | AD24: 0 | AE24: 73917992.83 | AF24: 0 | AG24: 0 | AH24: 0 | AI24: 0 | AJ24: 0 | AK24: 0 | AL24: 0 | AM24: 0 | AN24: 0 | AO24: 0 | AP24: 0 | AQ24: 0 | AR24: 0 | AS24: 0 | AT24: 0 | AW24: 20640.69223 | AX24: 154295.6431 | AY24: 1987389.094 | AZ24: 0 | BA24: 0 | BB24: 394869.9177 | BC24: 0 | BD24: 0 | BE24: 0 | BF24: 0 | BG24: 0 | BH24: 0 | BI24: 0 | BJ24: 0 | BK24: 0 | BL24: 0 | BM24: 0 | BN24: 0 | BO24: 0 | BP24: 0 | BQ24: 0 | BR24: 2557195.347
B25: Non-Residential Interval | D25: 13.15 | E25: 1.9881 | F25: 1.9881 | G25: 0 | H25: 0 | I25: 0.6414 | J25: 0 | K25: 0 | L25: 0 | M25: 0 | N25: 0 | O25: 0 | P25: 0 | Q25: 0 | R25: 0 | S25: 0 | T25: 0 | U25: 0 | V25: 0 | W25: 0 | X25: 0 | Z25: 5293.166667 | AA25: 16963663.91 | AB25: 103718158.6 | AC25: 0 | AD25: 0 | AE25: 77924102.56 | AF25: 0 | AG25: 0 | AH25: 0 | AI25: 0 | AJ25: 0 | AK25: 0 | AL25: 0 | AM25: 0 | AN25: 0 | AO25: 0 | AP25: 0 | AQ25: 0 | AR25: 0 | AS25: 0 | AT25: 0 | AW25: 69605.14167 | AX25: 337254.6022 | AY25: 2062020.712 | AZ25: 0 | BA25: 0 | BB25: 499805.1938 | BC25: 0 | BD25: 0 | BE25: 0 | BF25: 0 | BG25: 0 | BH25: 0 | BI25: 0 | BJ25: 0 | BK25: 0 | BL25: 0 | BM25: 0 | BN25: 0 | BO25: 0 | BP25: 0 | BQ25: 0 | BR25: 2968685.65
B26: Non-Residential Interval - Bulk | D26: 10.2169 | E26: 1.9606 | F26: 1.9606 | G26: 0 | H26: 0 | I26: 0.5342 | J26: 0 | K26: 0 | L26: 0 | M26: 0 | N26: 0 | O26: 0 | P26: 0 | Q26: 0 | R26: 0 | S26: 0 | T26: 0 | U26: 0 | V26: 0 | W26: 0 | X26: 0 | Z26: 3179.25 | AA26: 11312092.45 | AB26: 171407388.9 | AC26: 0 | AD26: 0 | AE26: 116576671.4 | AF26: 0 | AG26: 0 | AH26: 0 | AI26: 0 | AJ26: 0 | AK26: 0 | AL26: 0 | AM26: 0 | AN26: 0 | AO26: 0 | AP26: 0 | AQ26: 0 | AR26: 0 | AS26: 0 | AT26: 0 | AW26: 32482.07933 | AX26: 221784.8845 | AY26: 3360613.267 | AZ26: 0 | BA26: 0 | BB26: 622752.5787 | BC26: 0 | BD26: 0 | BE26: 0 | BF26: 0 | BG26: 0 | BH26: 0 | BI26: 0 | BJ26: 0 | BK26: 0 | BL26: 0 | BM26: 0 | BN26: 0 | BO26: 0 | BP26: 0 | BQ26: 0 | BR26: 4237632.81
B27: Non-Residential | D27: 16.3976 | E27: 0 | F27: 0 | G27: 0 | H27: 0 | I27: 0 | J27: 0 | K27: 0 | L27: 0 | M27: 0 | N27: 0 | O27: 0 | P27: 0 | Q27: 8.0797 | R27: 7.504 | S27: 2.1068 | T27: 0 | U27: 8.0797 | V27: 7.504 | W27: 2.1068 | X27: 0 | Z27: 19 | AA27: 0 | AB27: 0 | AC27: 0 | AD27: 0 | AE27: 0 | AF27: 0 | AG27: 0 | AH27: 0 | AI27: 0 | AJ27: 0 | AK27: 0 | AL27: 0 | AM27: 177181.0341 | AN27: 52838.80625 | AO27: 161086.0138 | AP27: 0 | AQ27: 289615.2537 | AR27: 78584.61479 | AS27: 258432.1713 | AT27: 0 | AW27: 311.5544 | AX27: 0 | AY27: 0 | AZ27: 0 | BA27: 0 | BB27: 0 | BC27: 0 | BD27: 0 | BE27: 0 | BF27: 0 | BG27: 0 | BH27: 0 | BI27: 0 | BJ27: 14315.69601 | BK27: 3965.024021 | BL27: 3393.760138 | BM27: 0 | BN27: 23400.04365 | BO27: 5896.989494 | BP27: 5444.648986 | BQ27: 0 | BR27: 56727.71671
B28: Non-Residential - Bulk | D28: 12.1998 | E28: 0 | F28: 0 | G28: 0 | H28: 0 | I28: 0 | J28: 0 | K28: 0 | L28: 0 | M28: 0 | N28: 0 | O28: 0 | P28: 0 | Q28: 7.0742 | R28: 6.5697 | S28: 1.8445 | T28: 0 | U28: 7.0742 | V28: 6.5697 | W28: 1.8445 | X28: 0 | Z28: 11.75 | AA28: 0 | AB28: 0 | AC28: 0 | AD28: 0 | AE28: 0 | AF28: 0 | AG28: 0 | AH28: 0 | AI28: 0 | AJ28: 0 | AK28: 0 | AL28: 0 | AM28: 465439.777 | AN28: 105327.3811 | AO28: 385483.488 | AP28: 0 | AQ28: 592239.6303 | AR28: 129429.4682 | AS28: 471020.0628 | AT28: 0 | AW28: 143.34765 | AX28: 0 | AY28: 0 | AZ28: 0 | BA28: 0 | BB28: 0 | BC28: 0 | BD28: 0 | BE28: 0 | BF28: 0 | BG28: 0 | BH28: 0 | BI28: 0 | BJ28: 32926.1407 | BK28: 6919.692959 | BL28: 7110.242937 | BM28: 0 | BN28: 41896.21592 | BO28: 8503.127771 | BP28: 8687.965059 | BQ28: 0 | BR28: 106186.733
B29: Non-Residential Two Rate 7d | D29: 2.3841 | E29: 1.7097 | F29: 1.7097 | G29: 0 | H29: 0 | I29: 0.6414 | J29: 0 | K29: 0 | L29: 0 | M29: 0 | N29: 0 | O29: 0 | P29: 0 | Q29: 0 | R29: 0 | S29: 0 | T29: 0 | U29: 0 | V29: 0 | W29: 0 | X29: 0 | Z29: 3178.666667 | AA29: 11335244.92 | AB29: 90595198.8 | AC29: 0 | AD29: 0 | AE29: 26033386.47 | AF29: 0 | AG29: 0 | AH29: 0 | AI29: 0 | AJ29: 0 | AK29: 0 | AL29: 0 | AM29: 0 | AN29: 0 | AO29: 0 | AP29: 0 | AQ29: 0 | AR29: 0 | AS29: 0 | AT29: 0 | AW29: 7578.2592 | AX29: 193798.6825 | AY29: 1548906.114 | AZ29: 0 | BA29: 0 | BB29: 166978.1408 | BC29: 0 | BD29: 0 | BE29: 0 | BF29: 0 | BG29: 0 | BH29: 0 | BI29: 0 | BJ29: 0 | BK29: 0 | BL29: 0 | BM29: 0 | BN29: 0 | BO29: 0 | BP29: 0 | BQ29: 0 | BR29: 1917261.196
B30: Non-Residential Two Rate 7d - Bulk | D30: 1.8291 | E30: 1.4503 | F30: 1.4503 | G30: 0 | H30: 0 | I30: 0.5342 | J30: 0 | K30: 0 | L30: 0 | M30: 0 | N30: 0 | O30: 0 | P30: 0 | Q30: 0 | R30: 0 | S30: 0 | T30: 0 | U30: 0 | V30: 0 | W30: 0 | X30: 0 | Z30: 461.9166667 | AA30: 1738179.133 | AB30: 24880327.89 | AC30: 0 | AD30: 0 | AE30: 7330088.474 | AF30: 0 | AG30: 0 | AH30: 0 | AI30: 0 | AJ30: 0 | AK30: 0 | AL30: 0 | AM30: 0 | AN30: 0 | AO30: 0 | AP30: 0 | AQ30: 0 | AR30: 0 | AS30: 0 | AT30: 0 | AW30: 844.891775 | AX30: 25208.81196 | AY30: 360839.3954 | AZ30: 0 | BA30: 0 | BB30: 39157.33263 | BC30: 0 | BD30: 0 | BE30: 0 | BF30: 0 | BG30: 0 | BH30: 0 | BI30: 0 | BJ30: 0 | BK30: 0 | BL30: 0 | BM30: 0 | BN30: 0 | BO30: 0 | BP30: 0 | BQ30: 0 | BR30: 426050.4318
B31: Unmetered Supplies / Public Lighting | D31: 0 | E31: 0.5056 | F31: 0.5056 | G31: 0 | H31: 0 | I31: 0.4926 | J31: 0 | K31: 0 | L31: 0 | M31: 0 | N31: 0 | O31: 0 | P31: 0 | Q31: 0 | R31: 0 | S31: 0 | T31: 0 | U31: 0 | V31: 0 | W31: 0 | X31: 0 | Z31: 1153 | AA31: 1798242.22 | AB31: 8767212.36 | AC31: 0 | AD31: 0 | AE31: 26501222.9 | AF31: 0 | AG31: 0 | AH31: 0 | AI31: 0 | AJ31: 0 | AK31: 0 | AL31: 0 | AM31: 0 | AN31: 0 | AO31: 0 | AP31: 0 | AQ31: 0 | AR31: 0 | AS31: 0 | AT31: 0 | AW31: 0 | AX31: 9091.912664 | AY31: 44327.02569 | AZ31: 0 | BA31: 0 | BB31: 130545.024 | BC31: 0 | BD31: 0 | BE31: 0 | BF31: 0 | BG31: 0 | BH31: 0 | BI31: 0 | BJ31: 0 | BK31: 0 | BL31: 0 | BM31: 0 | BN31: 0 | BO31: 0 | BP31: 0 | BQ31: 0 | BR31: 183963.9624
B32: Large Two Rate 7d | D32: 35.8872 | E32: 3.3033 | F32: 3.3033 | G32: 0 | H32: 0 | I32: 0.8295 | J32: 0 | K32: 0 | L32: 0 | M32: 0 | N32: 0 | O32: 0 | P32: 0 | Q32: 0 | R32: 0 | S32: 0 | T32: 0 | U32: 0 | V32: 0 | W32: 0 | X32: 0 | Z32: 46.33333333 | AA32: 185795.8578 | AB32: 16545006.7 | AC32: 0 | AD32: 0 | AE32: 4115894.18 | AF32: 0 | AG32: 0 | AH32: 0 | AI32: 0 | AJ32: 0 | AK32: 0 | AL32: 0 | AM32: 0 | AN32: 0 | AO32: 0 | AP32: 0 | AQ32: 0 | AR32: 0 | AS32: 0 | AT32: 0 | AW32: 1662.7736 | AX32: 6137.394571 | AY32: 546531.2063 | AZ32: 0 | BA32: 0 | BB32: 34141.34222 | BC32: 0 | BD32: 0 | BE32: 0 | BF32: 0 | BG32: 0 | BH32: 0 | BI32: 0 | BJ32: 0 | BK32: 0 | BL32: 0 | BM32: 0 | BN32: 0 | BO32: 0 | BP32: 0 | BQ32: 0 | BR32: 588472.7167
B33: Large Low Voltage Demand | D33: 0 | E33: 1.5401 | F33: 1.5401 | G33: 0 | H33: 0 | I33: 0.4594 | J33: 0 | K33: 0 | L33: 0 | M33: 11.1646 | N33: 0 | O33: 0 | P33: 0 | Q33: 0 | R33: 0 | S33: 0 | T33: 0 | U33: 0 | V33: 0 | W33: 0 | X33: 0 | Z33: 237.5833333 | AA33: 943965.5717 | AB33: 86845052.88 | AC33: 0 | AD33: 0 | AE33: 68055719 | AF33: 0 | AG33: 0 | AH33: 0 | AI33: 58998.00115 | AJ33: 0 | AK33: 0 | AL33: 0 | AM33: 0 | AN33: 0 | AO33: 0 | AP33: 0 | AQ33: 0 | AR33: 0 | AS33: 0 | AT33: 0 | AW33: 0 | AX33: 14538.01377 | AY33: 1337500.659 | AZ33: 0 | BA33: 0 | BB33: 312647.9731 | BC33: 0 | BD33: 0 | BE33: 0 | BF33: 658689.0836 | BG33: 0 | BH33: 0 | BI33: 0 | BJ33: 0 | BK33: 0 | BL33: 0 | BM33: 0 | BN33: 0 | BO33: 0 | BP33: 0 | BQ33: 0 | BR33: 2323375.73
B34: Large Low Voltage Demand - Bulk | D34: 0 | E34: 1.6503 | F34: 1.6503 | G34: 0 | H34: 0 | I34: 0.5057 | J34: 0 | K34: 0 | L34: 0 | M34: 11.0802 | N34: 0 | O34: 0 | P34: 0 | Q34: 0 | R34: 0 | S34: 0 | T34: 0 | U34: 0 | V34: 0 | W34: 0 | X34: 0 | Z34: 1276.666667 | AA34: 4531515.5 | AB34: 1044136588 | AC34: 0 | AD34: 0 | AE34: 765822042.6 | AF34: 0 | AG34: 0 | AH34: 0 | AI34: 644001.9563 | AJ34: 0 | AK34: 0 | AL34: 0 | AM34: 0 | AN34: 0 | AO34: 0 | AP34: 0 | AQ34: 0 | AR34: 0 | AS34: 0 | AT34: 0 | AW34: 0 | AX34: 74783.6003 | AY34: 17231386.11 | AZ34: 0 | BA34: 0 | BB34: 3872762.069 | BC34: 0 | BD34: 0 | BE34: 0 | BF34: 7135670.476 | BG34: 0 | BH34: 0 | BI34: 0 | BJ34: 0 | BK34: 0 | BL34: 0 | BM34: 0 | BN34: 0 | BO34: 0 | BP34: 0 | BQ34: 0 | BR34: 28314602.26
B35: Large Low Voltage Demand R | D35: 0 | E35: 1.6342 | F35: 1.6342 | G35: 0 | H35: 0 | I35: 0.5302 | J35: 0 | K35: 0 | L35: 0 | M35: 11.5132 | N35: 0 | O35: 0 | P35: 0 | Q35: 0 | R35: 0 | S35: 0 | T35: 0 | U35: 0 | V35: 0 | W35: 0 | X35: 0 | Z35: 0 | AA35: 0 | AB35: 0 | AC35: 0 | AD35: 0 | AE35: 0 | AF35: 0 | AG35: 0 | AH35: 0 | AI35: 0 | AJ35: 0 | AK35: 0 | AL35: 0 | AM35: 0 | AN35: 0 | AO35: 0 | AP35: 0 | AQ35: 0 | AR35: 0 | AS35: 0 | AT35: 0 | AW35: 0 | AX35: 0 | AY35: 0 | AZ35: 0 | BA35: 0 | BB35: 0 | BC35: 0 | BD35: 0 | BE35: 0 | BF35: 0 | BG35: 0 | BH35: 0 | BI35: 0 | BJ35: 0 | BK35: 0 | BL35: 0 | BM35: 0 | BN35: 0 | BO35: 0 | BP35: 0 | BQ35: 0 | BR35: 0
B36: Large Low Voltage Demand G | D36: 0 | E36: 1.6342 | F36: 1.6342 | G36: 0 | H36: 0 | I36: 0.5302 | J36: 0 | K36: 0 | L36: 0 | M36: 11.5132 | N36: 0 | O36: 0 | P36: 0 | Q36: 0 | R36: 0 | S36: 0 | T36: 0 | U36: 0 | V36: 0 | W36: 0 | X36: 0 | Z36: 9 | AA36: 36574.05217 | AB36: 3081721.341 | AC36: 0 | AD36: 0 | AE36: 3464710.497 | AF36: 0 | AG36: 0 | AH36: 0 | AI36: 3072.419247 | AJ36: 0 | AK36: 0 | AL36: 0 | AM36: 0 | AN36: 0 | AO36: 0 | AP36: 0 | AQ36: 0 | AR36: 0 | AS36: 0 | AT36: 0 | AW36: 0 | AX36: 597.6931606 | AY36: 50361.49015 | AZ36: 0 | BA36: 0 | BB36: 18369.89505 | BC36: 0 | BD36: 0 | BE36: 0 | BF36: 35373.37728 | BG36: 0 | BH36: 0 | BI36: 0 | BJ36: 0 | BK36: 0 | BL36: 0 | BM36: 0 | BN36: 0 | BO36: 0 | BP36: 0 | BQ36: 0 | BR36: 104702.4556
B37: Large Low Voltage Demand - Bulk R | D37: 0 | E37: 1.715 | F37: 1.715 | G37: 0 | H37: 0 | I37: 0.5256 | J37: 0 | K37: 0 | L37: 0 | M37: 11.425 | N37: 0 | O37: 0 | P37: 0 | Q37: 0 | R37: 0 | S37: 0 | T37: 0 | U37: 0 | V37: 0 | W37: 0 | X37: 0 | Z37: 0 | AA37: 0 | AB37: 0 | AC37: 0 | AD37: 0 | AE37: 0 | AF37: 0 | AG37: 0 | AH37: 0 | AI37: 0 | AJ37: 0 | AK37: 0 | AL37: 0 | AM37: 0 | AN37: 0 | AO37: 0 | AP37: 0 | AQ37: 0 | AR37: 0 | AS37: 0 | AT37: 0 | AW37: 0 | AX37: 0 | AY37: 0 | AZ37: 0 | BA37: 0 | BB37: 0 | BC37: 0 | BD37: 0 | BE37: 0 | BF37: 0 | BG37: 0 | BH37: 0 | BI37: 0 | BJ37: 0 | BK37: 0 | BL37: 0 | BM37: 0 | BN37: 0 | BO37: 0 | BP37: 0 | BQ37: 0 | BR37: 0
B38: Large Low Voltage Demand - Bulk G | D38: 0 | E38: 1.715 | F38: 1.715 | G38: 0 | H38: 0 | I38: 0.5256 | J38: 0 | K38: 0 | L38: 0 | M38: 11.425 | N38: 0 | O38: 0 | P38: 0 | Q38: 0 | R38: 0 | S38: 0 | T38: 0 | U38: 0 | V38: 0 | W38: 0 | X38: 0 | Z38: 157.0833333 | AA38: 635076.8896 | AB38: 99872289.97 | AC38: 0 | AD38: 0 | AE38: 74395708.77 | AF38: 0 | AG38: 0 | AH38: 0 | AI38: 56232.23912 | AJ38: 0 | AK38: 0 | AL38: 0 | AM38: 0 | AN38: 0 | AO38: 0 | AP38: 0 | AQ38: 0 | AR38: 0 | AS38: 0 | AT38: 0 | AW38: 0 | AX38: 10891.56866 | AY38: 1712809.773 | AZ38: 0 | BA38: 0 | BB38: 391023.8453 | BC38: 0 | BD38: 0 | BE38: 0 | BF38: 642453.332 | BG38: 0 | BH38: 0 | BI38: 0 | BJ38: 0 | BK38: 0 | BL38: 0 | BM38: 0 | BN38: 0 | BO38: 0 | BP38: 0 | BQ38: 0 | BR38: 2757178.519
B39: High Voltage Demand | D39: 0 | E39: 1.8053 | F39: 1.8053 | G39: 0 | H39: 0 | I39: 0.4876 | J39: 0 | K39: 0 | L39: 0 | M39: 8.8385 | N39: 0 | O39: 0 | P39: 0 | Q39: 0 | R39: 0 | S39: 0 | T39: 0 | U39: 0 | V39: 0 | W39: 0 | X39: 0 | Z39: 74.66666667 | AA39: 293099.4998 | AB39: 290374567.3 | AC39: 0 | AD39: 0 | AE39: 274124189.8 | AF39: 0 | AG39: 0 | AH39: 0 | AI39: 184555.8469 | AJ39: 0 | AK39: 0 | AL39: 0 | AM39: 0 | AN39: 0 | AO39: 0 | AP39: 0 | AQ39: 0 | AR39: 0 | AS39: 0 | AT39: 0 | AW39: 0 | AX39: 5291.32527 | AY39: 5242132.063 | AZ39: 0 | BA39: 0 | BB39: 1336629.549 | BC39: 0 | BD39: 0 | BE39: 0 | BF39: 1631196.853 | BG39: 0 | BH39: 0 | BI39: 0 | BJ39: 0 | BK39: 0 | BL39: 0 | BM39: 0 | BN39: 0 | BO39: 0 | BP39: 0 | BQ39: 0 | BR39: 8215249.79
B40: High Voltage Demand D1 | D40: 0 | E40: 1.6645 | F40: 1.6645 | G40: 0 | H40: 0 | I40: 0.8328 | J40: 0 | K40: 0 | L40: 0 | M40: 11.8545 | N40: 0 | O40: 0 | P40: 0 | Q40: 0 | R40: 0 | S40: 0 | T40: 0 | U40: 0 | V40: 0 | W40: 0 | X40: 0 | Z40: 0 | AA40: 0 | AB40: 0 | AC40: 0 | AD40: 0 | AE40: 0 | AF40: 0 | AG40: 0 | AH40: 0 | AI40: 0 | AJ40: 0 | AK40: 0 | AL40: 0 | AM40: 0 | AN40: 0 | AO40: 0 | AP40: 0 | AQ40: 0 | AR40: 0 | AS40: 0 | AT40: 0 | AW40: 0 | AX40: =E40/100*AA40 -> 0 | AY40: =F40/100*AB40 -> 0 | AZ40: =G40/100*AC40 -> 0 | BA40: =H40/100*AD40 -> 0 | BB40: =I40/100*AE40 -> 0 | BC40: =J40/100*AF40 -> 0 | BD40: =K40/100*AG40 -> 0 | BE40: =L40/100*AH40 -> 0 | BF40: 0 | BG40: 0 | BH40: 0 | BI40: 0 | BJ40: 0 | BK40: 0 | BL40: 0 | BM40: 0 | BN40: 0 | BO40: 0 | BP40: 0 | BQ40: 0 | BR40: 0
B41: High Voltage Demand R | D41: 0 | E41: 1.8733 | F41: 1.8733 | G41: 0 | H41: 0 | I41: 0.507 | J41: 0 | K41: 0 | L41: 0 | M41: 9.1131 | N41: 0 | O41: 0 | P41: 0 | Q41: 0 | R41: 0 | S41: 0 | T41: 0 | U41: 0 | V41: 0 | W41: 0 | X41: 0 | Z41: 0 | AA41: 0 | AB41: 0 | AC41: 0 | AD41: 0 | AE41: 0 | AF41: 0 | AG41: 0 | AH41: 0 | AI41: 0 | AJ41: 0 | AK41: 0 | AL41: 0 | AM41: 0 | AN41: 0 | AO41: 0 | AP41: 0 | AQ41: 0 | AR41: 0 | AS41: 0 | AT41: 0 | AW41: 0 | AX41: 0 | AY41: 0 | AZ41: 0 | BA41: 0 | BB41: 0 | BC41: 0 | BD41: 0 | BE41: 0 | BF41: 0 | BG41: =N41*AJ41 -> 0 | BH41: =O41*AK41 -> 0 | BI41: =P41*AL41 -> 0 | BJ41: 0 | BK41: 0 | BL41: 0 | BM41: 0 | BN41: 0 | BO41: 0 | BP41: 0 | BQ41: 0 | BR41: 0
B42: High Voltage Demand G | D42: 0 | E42: 1.8733 | F42: 1.8733 | G42: 0 | H42: 0 | I42: 0.507 | J42: 0 | K42: 0 | L42: 0 | M42: 9.1131 | N42: 0 | O42: 0 | P42: 0 | Q42: 0 | R42: 0 | S42: 0 | T42: 0 | U42: 0 | V42: 0 | W42: 0 | X42: 0 | Z42: 1 | AA42: 4071.058015 | AB42: 5726004.328 | AC42: 0 | AD42: 0 | AE42: 2653280.342 | AF42: 0 | AG42: 0 | AH42: 0 | AI42: 3440.25 | AJ42: 0 | AK42: 0 | AL42: 0 | AM42: 0 | AN42: 0 | AO42: 0 | AP42: 0 | AQ42: 0 | AR42: 0 | AS42: 0 | AT42: 0 | AW42: 0 | AX42: 76.26312979 | AY42: 107265.2391 | AZ42: 0 | BA42: 0 | BB42: 13452.13134 | BC42: 0 | BD42: 0 | BE42: 0 | BF42: 31351.34227 | BG42: 0 | BH42: 0 | BI42: 0 | BJ42: 0 | BK42: 0 | BL42: 0 | BM42: 0 | BN42: 0 | BO42: 0 | BP42: 0 | BQ42: 0 | BR42: 152144.9758
B43: Subtransmission Demand | D43: 0 | E43: 2.0191 | F43: 2.0191 | G43: 0 | H43: 0 | I43: 0.6112 | J43: 0 | K43: 0 | L43: 0 | M43: 3.9736 | N43: 0 | O43: 0 | P43: 0 | Q43: 0 | R43: 0 | S43: 0 | T43: 0 | U43: 0 | V43: 0 | W43: 0 | X43: 0 | Z43: 7 | AA43: 28497.4061 | AB43: 71510214.99 | AC43: 0 | AD43: 0 | AE43: 40129199.15 | AF43: 0 | AG43: 0 | AH43: 0 | AI43: 71571.93167 | AJ43: 0 | AK43: 0 | AL43: 0 | AM43: 0 | AN43: 0 | AO43: 0 | AP43: 0 | AQ43: 0 | AR43: 0 | AS43: 0 | AT43: 0 | AW43: 0 | AX43: 575.3911266 | AY43: 1443862.751 | AZ43: 0 | BA43: 0 | BB43: 245269.6652 | BC43: 0 | BD43: 0 | BE43: 0 | BF43: 284398.2277 | BG43: 0 | BH43: 0 | BI43: 0 | BJ43: 0 | BK43: 0 | BL43: 0 | BM43: 0 | BN43: 0 | BO43: 0 | BP43: 0 | BQ43: 0 | BR43: 1974106.035
AW44: 0 | AX44: 0 | AY44: 0 | AZ44: 0 | BA44: 0 | BB44: 0 | BC44: 0 | BD44: 0 | BE44: 0 | BF44: 0 | BG44: 0 | BH44: 0 | BI44: 0 | BJ44: 0 | BK44: 0 | BL44: 0 | BM44: 0 | BN44: 0 | BO44: 0 | BP44: 0 | BQ44: 0 | BR44: 0
AW45: 0 | AX45: 0 | AY45: 0 | AZ45: 0 | BA45: 0 | BB45: 0 | BC45: 0 | BD45: 0 | BE45: 0 | BF45: 0 | BG45: 0 | BH45: 0 | BI45: 0 | BJ45: 0 | BK45: 0 | BL45: 0 | BM45: 0 | BN45: 0 | BO45: 0 | BP45: 0 | BQ45: 0 | BR45: 0
AW46: 0 | AX46: 0 | AY46: 0 | AZ46: 0 | BA46: 0 | BB46: 0 | BC46: 0 | BD46: 0 | BE46: 0 | BF46: 0 | BG46: 0 | BH46: 0 | BI46: 0 | BJ46: 0 | BK46: 0 | BL46: 0 | BM46: 0 | BN46: 0 | BO46: 0 | BP46: 0 | BQ46: 0 | BR46: 0
AW47: 0 | AX47: 0 | AY47: 0 | AZ47: 0 | BA47: 0 | BB47: 0 | BC47: 0 | BD47: 0 | BE47: 0 | BF47: 0 | BG47: 0 | BH47: 0 | BI47: 0 | BJ47: 0 | BK47: 0 | BL47: 0 | BM47: 0 | BN47: 0 | BO47: 0 | BP47: 0 | BQ47: 0 | BR47: 0
AW48: 0 | AX48: 0 | AY48: 0 | AZ48: 0 | BA48: 0 | BB48: 0 | BC48: 0 | BD48: 0 | BE48: 0 | BF48: 0 | BG48: 0 | BH48: 0 | BI48: 0 | BJ48: 0 | BK48: 0 | BL48: 0 | BM48: 0 | BN48: 0 | BO48: 0 | BP48: 0 | BQ48: 0 | BR48: 0
AW49: 0 | AX49: 0 | AY49: 0 | AZ49: 0 | BA49: 0 | BB49: 0 | BC49: 0 | BD49: 0 | BE49: 0 | BF49: 0 | BG49: 0 | BH49: 0 | BI49: 0 | BJ49: 0 | BK49: 0 | BL49: 0 | BM49: 0 | BN49: 0 | BO49: 0 | BP49: 0 | BQ49: 0 | BR49: 0
AW50: 0 | AX50: 0 | AY50: 0 | AZ50: 0 | BA50: 0 | BB50: 0 | BC50: 0 | BD50: 0 | BE50: 0 | BF50: 0 | BG50: 0 | BH50: 0 | BI50: 0 | BJ50: 0 | BK50: 0 | BL50: 0 | BM50: 0 | BN50: 0 | BO50: 0 | BP50: 0 | BQ50: 0 | BR50: 0
AW51: 0 | AX51: 0 | AY51: 0 | AZ51: 0 | BA51: 0 | BB51: 0 | BC51: 0 | BD51: 0 | BE51: 0 | BF51: 0 | BG51: 0 | BH51: 0 | BI51: 0 | BJ51: 0 | BK51: 0 | BL51: 0 | BM51: 0 | BN51: 0 | BO51: 0 | BP51: 0 | BQ51: 0 | BR51: 0
AW52: 0 | AX52: 0 | AY52: 0 | AZ52: 0 | BA52: 0 | BB52: 0 | BC52: 0 | BD52: 0 | BE52: 0 | BF52: 0 | BG52: 0 | BH52: 0 | BI52: 0 | BJ52: 0 | BK52: 0 | BL52: 0 | BM52: 0 | BN52: 0 | BO52: 0 | BP52: 0 | BQ52: 0 | BR52: 0
AW53: 0 | AX53: 0 | AY53: 0 | AZ53: 0 | BA53: 0 | BB53: 0 | BC53: 0 | BD53: 0 | BE53: 0 | BF53: 0 | BG53: 0 | BH53: 0 | BI53: 0 | BJ53: 0 | BK53: 0 | BL53: 0 | BM53: 0 | BN53: 0 | BO53: 0 | BP53: 0 | BQ53: 0 | BR53: 0
AW54: 0 | AX54: 0 | AY54: 0 | AZ54: 0 | BA54: 0 | BB54: 0 | BC54: 0 | BD54: 0 | BE54: 0 | BF54: 0 | BG54: 0 | BH54: 0 | BI54: 0 | BJ54: 0 | BK54: 0 | BL54: 0 | BM54: 0 | BN54: 0 | BO54: 0 | BP54: 0 | BQ54: 0 | BR54: 0
AW55: 0 | AX55: 0 | AY55: 0 | AZ55: 0 | BA55: 0 | BB55: 0 | BC55: 0 | BD55: 0 | BE55: 0 | BF55: 0 | BG55: 0 | BH55: 0 | BI55: 0 | BJ55: 0 | BK55: 0 | BL55: 0 | BM55: 0 | BN55: 0 | BO55: 0 | BP55: 0 | BQ55: 0 | BR55: 0
AW56: 0 | AX56: 0 | AY56: 0 | AZ56: 0 | BA56: 0 | BB56: 0 | BC56: 0 | BD56: 0 | BE56: 0 | BF56: 0 | BG56: 0 | BH56: 0 | BI56: 0 | BJ56: 0 | BK56: 0 | BL56: 0 | BM56: 0 | BN56: 0 | BO56: 0 | BP56: 0 | BQ56: 0 | BR56: 0
AW57: 0 | AX57: 0 | AY57: 0 | AZ57: 0 | BA57: 0 | BB57: 0 | BC57: 0 | BD57: 0 | BE57: 0 | BF57: 0 | BG57: 0 | BH57: 0 | BI57: 0 | BJ57: 0 | BK57: 0 | BL57: 0 | BM57: 0 | BN57: 0 | BO57: 0 | BP57: 0 | BQ57: 0 | BR57: 0
AW58: 0 | AX58: 0 | AY58: 0 | AZ58: 0 | BA58: 0 | BB58: 0 | BC58: 0 | BD58: 0 | BE58: 0 | BF58: 0 | BG58: 0 | BH58: 0 | BI58: 0 | BJ58: 0 | BK58: 0 | BL58: 0 | BM58: 0 | BN58: 0 | BO58: 0 | BP58: 0 | BQ58: 0 | BR58: 0
AW59: 0 | AX59: 0 | AY59: 0 | AZ59: 0 | BA59: 0 | BB59: 0 | BC59: 0 | BD59: 0 | BE59: 0 | BF59: 0 | BG59: 0 | BH59: 0 | BI59: 0 | BJ59: 0 | BK59: 0 | BL59: 0 | BM59: 0 | BN59: 0 | BO59: 0 | BP59: 0 | BQ59: 0 | BR59: 0
AW60: 0 | AX60: 0 | AY60: 0 | AZ60: 0 | BA60: 0 | BB60: 0 | BC60: 0 | BD60: 0 | BE60: 0 | BF60: 0 | BG60: 0 | BH60: 0 | BI60: 0 | BJ60: 0 | BK60: 0 | BL60: 0 | BM60: 0 | BN60: 0 | BO60: 0 | BP60: 0 | BQ60: 0 | BR60: 0
AW61: 0 | AX61: 0 | AY61: 0 | AZ61: 0 | BA61: 0 | BB61: 0 | BC61: 0 | BD61: 0 | BE61: 0 | BF61: 0 | BG61: 0 | BH61: 0 | BI61: 0 | BJ61: 0 | BK61: 0 | BL61: 0 | BM61: 0 | BN61: 0 | BO61: 0 | BP61: 0 | BQ61: 0 | BR61: 0
AW62: 0 | AX62: 0 | AY62: 0 | AZ62: 0 | BA62: 0 | BB62: 0 | BC62: 0 | BD62: 0 | BE62: 0 | BF62: 0 | BG62: 0 | BH62: 0 | BI62: 0 | BJ62: 0 | BK62: 0 | BL62: 0 | BM62: 0 | BN62: 0 | BO62: 0 | BP62: 0 | BQ62: 0 | BR62: 0
AW63: 0 | AX63: 0 | AY63: 0 | AZ63: 0 | BA63: 0 | BB63: 0 | BC63: 0 | BD63: 0 | BE63: 0 | BF63: 0 | BG63: 0 | BH63: 0 | BI63: 0 | BJ63: 0 | BK63: 0 | BL63: 0 | BM63: 0 | BN63: 0 | BO63: 0 | BP63: 0 | BQ63: 0 | BR63: 0
AW64: 0 | AX64: 0 | AY64: 0 | AZ64: 0 | BA64: 0 | BB64: 0 | BC64: 0 | BD64: 0 | BE64: 0 | BF64: 0 | BG64: 0 | BH64: 0 | BI64: 0 | BJ64: 0 | BK64: 0 | BL64: 0 | BM64: 0 | BN64: 0 | BO64: 0 | BP64: 0 | BQ64: 0 | BR64: 0
AW65: 0 | AX65: 0 | AY65: 0 | AZ65: 0 | BA65: 0 | BB65: 0 | BC65: 0 | BD65: 0 | BE65: 0 | BF65: 0 | BG65: 0 | BH65: 0 | BI65: 0 | BJ65: 0 | BK65: 0 | BL65: 0 | BM65: 0 | BN65: 0 | BO65: 0 | BP65: 0 | BQ65: 0 | BR65: 0
AW66: 0 | AX66: 0 | AY66: 0 | AZ66: 0 | BA66: 0 | BB66: 0 | BC66: 0 | BD66: 0 | BE66: 0 | BF66: 0 | BG66: 0 | BH66: 0 | BI66: 0 | BJ66: 0 | BK66: 0 | BL66: 0 | BM66: 0 | BN66: 0 | BO66: 0 | BP66: 0 | BQ66: 0 | BR66: 0
AW67: 0 | AX67: 0 | AY67: 0 | AZ67: 0 | BA67: 0 | BB67: 0 | BC67: 0 | BD67: 0 | BE67: 0 | BF67: 0 | BG67: 0 | BH67: 0 | BI67: 0 | BJ67: 0 | BK67: 0 | BL67: 0 | BM67: 0 | BN67: 0 | BO67: 0 | BP67: 0 | BQ67: 0 | BR67: 0
Z68: =SUM(Z8:Z67) -> 353639.0833 | AA68: 885078063.5 | AB68: 3058643310 | AC68: 0 | AD68: 0 | AE68: 1970437900 | AF68: 0 | AG68: 0 | AH68: 0 | AI68: 1021872.644 | AJ68: 0 | AK68: 0 | AL68: 0 | AM68: =SUM(AM8:AM67) -> 822918.2309 | AN68: 565869.6162 | AO68: 826562.6226 | AP68: 0 | AQ68: 1162444.318 | AR68: 689566.182 | AS68: 1175437.55 | AT68: 0 | AW68: =SUM(AW8:AW67) -> 469193.864 | AX68: 6150685.29 | AY68: 46146545.91 | AZ68: 0 | BA68: 0 | BB68: 10996612.72 | BC68: 0 | BD68: 0 | BE68: 0 | BF68: 10419132.69 | BG68: 0 | BH68: 0 | BI68: 0 | BJ68: =SUM(BJ8:BJ67) -> 51135.74261 | BK68: 18805.61866 | BL68: 11978.18013 | BM68: 0 | BN68: 71352.82412 | BO68: 23750.53293 | BP68: 16299.74364 | BQ68: 0 | BR68: 74375493.12
AW71: 0 | AX71: 0 | AY71: 0 | AZ71: 0 | BA71: 0 | BB71: 0 | BC71: 0 | BD71: 0 | BE71: 0 | BF71: 0 | BG71: 0 | BH71: 0 | BI71: 0 | BJ71: 0 | BK71: 0 | BL71: 0 | BM71: 0 | BN71: 0 | BO71: 0 | BP71: 0 | BQ71: 0 | BR71: 0
B72: Definitions
B73: All information must be reported consistent the terms used in the DNSPs pricing proposal

Sheet 27. TUoS cost audit (t-2)
B1: =Cover!E22 -> CitiPower Pty
B2: TUoS cost audit template (t-2)
B3: =Cover!E26 -> 2014
B5: Templates 24 to 29 collect data required for annual pricing proposals. T-2 requires actual information for the reporting year.
B7: TUOS charges (AEMO) | F7: t-2 actual
B8: AEMO (TUOS Usage) | F8: 19266429.93
B9: AEMO (TUOS General and Common Service) | F9: 46740163.53
B10: Grid equalisation | F10: 2367997.98
E12: Total | F12: =SUM(F8:F11) -> 68374591.44
B14: Transmission connection fees (SPI Powernet) | F14: t-2 actual
B15: SPI Powernet (Connection) | F15: 7806543.39
B16: SPI Powernet (Augmentation) | F16: 3856799.9
E19: Total | F19: =SUM(F15:F18) -> 11663343.29
B21: Cross boundary network charges (internetwork charges) | F21: t-2 actual
B22: Distribution Business | C22: Amount (payable)/receivable
C23: HV crossings | D23: Sub-transmission crossings | E23: TUoS Adjustment | F23: Total
B24: Jemena | C24: -3199911.21 | F24: =SUM(C24:E24) -> -3199911.21
B25: UE | D25: -351573.72 | F25: -351573.72
F26: =SUM(C26:E26) -> 0
F27: =SUM(C27:E27) -> 0
F28: =SUM(C28:E28) -> 0
B29: Total | F29: =SUM(F24:F28) -> -3551484.93
B31: Payments to embedded generators | F31: t-2 actual
B32: Avoided transmission costs
B34: Avoided TUoS costs | F34: 92848.98895
B38: Total | F38: =SUM(F33:F37) -> 92848.98895
B40: Avoided TUoS usage charges
B46: Total | F46: =SUM(F41:F45) -> 0
B47: Total payments to embedded generators | F47: =F46+F38 -> 92848.98895
B49: Where the following definitions apply
B50: HV Crossings | C50: Payments/Receipts for energy transferred utilising the distributor’s HV and LV line assets.
B51: Sub-transmission Crossings | C51: Payments/Receipts for the Sub-transmission assets in shared loops that support each distributor’s Zone Substation capacity to ensure N-1 reliability is maintained.
B52: TuoS Adjustment | C52: Payments/Receipts for the adjustment of TuoS paid by a distributor for energy delivered to another distribution business through a shared loop.

Sheet 28. Actual t-2 Juris Revenue
B1: =Cover!E22 -> CitiPower Pty
B2: Tariff Quantity Data Template (Actual t-2) Jurisdictional Scheme Tariff Revenue
B3: =Cover!E26 -> 2014
B5: Templates 24 to 29 collect data required for annual pricing proposals. T-2 requires actual information for the reporting year.
D6: Jurisdictional Scheme Tariffs (Pt-2) | Z6: Actual Quantities (Qt-2) | AW6: Actual Revenue (P-2)*(Qt-2)
B7: Tariff (t-2) | D7: (t-2)Tar Fixed | E7: (t-2)Tar PkBlk1 | F7: (t-2)Tar PkBlk2 | G7: (t-2)Tar PkBlk3 | H7: (t-2)Tar PkBlk4 | I7: (t-2)Tar OPkBlk1 | J7: (t-2)Tar OPkBlk2 | K7: (t-2)Tar OPkBlk3 | L7: (t-2)Tar OPkBlk4 | M7: (t-2)Tar DemBlk1 | N7: (t-2)Tar DemBlk2 | O7: (t-2)Tar DemBlk3 | P7: (t-2)Tar DemBlk4 | Q7: ActRev SumBlk1 | R7: ActRev SumBlk2 | S7: ActRev SumBlk3 | T7: ActRev SumBlk4 | U7: ActRev WtrBlk1 | V7: ActRev WtrBlk2 | W7: ActRev WtrBlk3 | X7: ActRev WtrBlk4 | Z7: ActVol Fixed | AA7: ActVol PkBlk1 | AB7: ActVol PkBlk2 | AC7: ActVol PkBlk3 | AD7: ActVol PkBlk4 | AE7: ActVol OPkBlk1 | AF7: ActVol OPkBlk2 | AG7: ActVol OPkBlk3 | AH7: ActVol OPkBlk4 | AI7: ActVol DemBlk1 | AJ7: ActVol DemBlk2 | AK7: ActVol DemBlk3 | AL7: ActVol DemBlk4 | AM7: ActRev SumBlk1 | AN7: ActRev SumBlk2 | AO7: ActRev SumBlk3 | AP7: ActRev SumBlk4 | AQ7: ActRev WtrBlk1 | AR7: ActRev WtrBlk2 | AS7: ActRev WtrBlk3 | AT7: ActRev WtrBlk4 | AW7: ActRev Fixed | AX7: ActRev PkBlk1 | AY7: ActRev PkBlk2 | AZ7: ActRev PkBlk3 | BA7: ActRev PkBlk4 | BB7: ActRev OPkBlk1 | BC7: ActRev OPkBlk2 | BD7: ActRev OPkBlk3 | BE7: ActRev OPkBlk4 | BF7: ActRev DemBlk1 | BG7: ActRev DemBlk2 | BH7: ActRev DemBlk3 | BI7: ActRev DemBlk4 | BJ7: ActRev SumBlk1 | BK7: ActRev SumBlk2 | BL7: ActRev SumBlk3 | BM7: ActRev SumBlk4 | BN7: ActRev WtrBlk1 | BO7: ActRev WtrBlk2 | BP7: ActRev WtrBlk3 | BQ7: ActRev WtrBlk4 | BR7: ActRev Total
AW8: =D8*Z8 -> 0 | AX8: =E8/100*AA8 -> 0 | AY8: =F8/100*AB8 -> 0 | AZ8: =G8/100*AC8 -> 0 | BA8: =H8/100*AD8 -> 0 | BB8: =I8/100*AE8 -> 0 | BC8: =J8/100*AF8 -> 0 | BD8: =K8/100*AG8 -> 0 | BE8: =L8/100*AH8 -> 0 | BF8: =M8*AI8 -> 0 | BG8: =N8*AJ8 -> 0 | BH8: =O8*AK8 -> 0 | BI8: =P8*AL8 -> 0 | BJ8: =Q8/100*AM8 -> 0 | BK8: =R8/100*AN8 -> 0 | BL8: =S8/100*AO8 -> 0 | BM8: =T8/100*AP8 -> 0 | BN8: =U8/100*AQ8 -> 0 | BO8: =V8/100*AR8 -> 0 | BP8: =W8/100*AS8 -> 0 | BQ8: =X8/100*AT8 -> 0 | BR8: =SUM(AW8:BQ8) -> 0
B9: Residential Single Rate | D9: 0 | E9: 0.0511 | F9: 0.0511 | G9: 0 | H9: 0 | I9: 0 | J9: 0 | K9: 0 | L9: 0 | M9: 0 | N9: 0 | O9: 0 | P9: 0 | Q9: 0 | R9: 0 | S9: 0 | T9: 0 | U9: 0 | V9: 0 | W9: 0 | X9: 0 | Z9: 197281 | AA9: 547806183 | AB9: 246185710.9 | AC9: 0 | AD9: 0 | AE9: 0 | AF9: 0 | AG9: 0 | AH9: 0 | AI9: 0 | AJ9: 0 | AK9: 0 | AL9: 0 | AM9: 0 | AN9: 0 | AO9: 0 | AP9: 0 | AQ9: 0 | AR9: 0 | AS9: 0 | AT9: 0 | AW9: =D9*Z9 -> 0 | AX9: 279928.9595 | AY9: 125800.8983 | AZ9: 0 | BA9: 0 | BB9: 0 | BC9: 0 | BD9: 0 | BE9: 0 | BF9: =M9*AI9 -> 0 | BG9: =N9*AJ9 -> 0 | BH9: =O9*AK9 -> 0 | BI9: =P9*AL9 -> 0 | BJ9: =Q9/100*AM9 -> 0 | BK9: 0 | BL9: 0 | BM9: 0 | BN9: 0 | BO9: 0 | BP9: 0 | BQ9: 0 | BR9: =SUM(AW9:BQ9) -> 405729.8577
B10: Residential Single Rate - Bulk | D10: 0 | E10: 0.0511 | F10: 0.0511 | G10: 0 | H10: 0 | I10: 0 | J10: 0 | K10: 0 | L10: 0 | M10: 0 | N10: 0 | O10: 0 | P10: 0 | Q10: 0 | R10: 0 | S10: 0 | T10: 0 | U10: 0 | V10: 0 | W10: 0 | X10: 0 | Z10: 29891.08333 | AA10: 75884017.71 | AB10: 23940581.79 | AC10: 0 | AD10: 0 | AE10: 0 | AF10: 0 | AG10: 0 | AH10: 0 | AI10: 0 | AJ10: 0 | AK10: 0 | AL10: 0 | AM10: 0 | AN10: 0 | AO10: 0 | AP10: 0 | AQ10: 0 | AR10: 0 | AS10: 0 | AT10: 0 | AW10: 0 | AX10: 38776.73305 | AY10: 12233.63729 | AZ10: 0 | BA10: 0 | BB10: 0 | BC10: 0 | BD10: 0 | BE10: 0 | BF10: 0 | BG10: 0 | BH10: 0 | BI10: 0 | BJ10: 0 | BK10: 0 | BL10: 0 | BM10: 0 | BN10: 0 | BO10: 0 | BP10: 0 | BQ10: 0 | BR10: 51010.37034
B11: Residential - flexible pricing | D11: 0 | E11: 0 | F11: 0 | G11: 0 | H11: 0 | I11: 0 | J11: 0 | K11: 0 | L11: 0 | M11: 0 | N11: 0 | O11: 0 | P11: 0 | Q11: 0.0537 | R11: 0.0537 | S11: 0.0537 | T11: 0 | U11: 0.0537 | V11: 0.0537 | W11: 0.0537 | X11: 0 | Z11: 363.3333333 | AA11: 0 | AB11: 0 | AC11: 0 | AD11: 0 | AE11: -132.789871 | AF11: 0 | AG11: 0 | AH11: 0 | AI11: 0 | AJ11: 0 | AK11: 0 | AL11: 0 | AM11: 160063.7506 | AN11: 358969.4475 | AO11: 247289.3188 | AP11: 0 | AQ11: 246006.2178 | AR11: 418648.0978 | AS11: 363819.983 | AT11: 0 | AW11: 0 | AX11: 0 | AY11: 0 | AZ11: 0 | BA11: 0 | BB11: 0 | BC11: 0 | BD11: 0 | BE11: 0 | BF11: 0 | BG11: 0 | BH11: 0 | BI11: 0 | BJ11: 85.95423409 | BK11: 192.7665933 | BL11: 132.7943642 | BM11: 0 | BN11: 132.1053389 | BO11: 224.8140285 | BP11: 195.3713309 | BQ11: 0 | BR11: 963.8058899
B12: Residential - flexible pricing bulk | D12: 0 | E12: 0 | F12: 0 | G12: 0 | H12: 0 | I12: 0 | J12: 0 | K12: 0 | L12: 0 | M12: 0 | N12: 0 | O12: 0 | P12: 0 | Q12: 0.0484 | R12: 0.0484 | S12: 0.0484 | T12: 0 | U12: 0.0484 | V12: 0.0484 | W12: 0.0484 | X12: 0 | Z12: 63.41666667 | AA12: -0.003965310759 | AB12: 0 | AC12: 0 | AD12: 0 | AE12: -0.001765854474 | AF12: 0 | AG12: 0 | AH12: 0 | AI12: 0 | AJ12: 0 | AK12: 0 | AL12: 0 | AM12: 20233.66916 | AN12: 48733.98136 | AO12: 32703.80198 | AP12: 0 | AQ12: 34583.21627 | AR12: 62904.00125 | AS12: 47771.61001 | AT12: 0 | AW12: 0 | AX12: 0 | AY12: 0 | AZ12: 0 | BA12: 0 | BB12: 0 | BC12: 0 | BD12: 0 | BE12: 0 | BF12: 0 | BG12: 0 | BH12: 0 | BI12: 0 | BJ12: 9.793095874 | BK12: 23.58724698 | BL12: 15.82864016 | BM12: 0 | BN12: 16.73827667 | BO12: 30.4455366 | BP12: 23.12145925 | BQ12: 0 | BR12: 119.5142555
B13: Residential Two Rate 5d | D13: 0 | E13: 0.0484 | F13: 0.0484 | G13: 0 | H13: 0 | I13: 0.0581 | J13: 0 | K13: 0 | L13: 0 | M13: 0 | N13: 0 | O13: 0 | P13: 0 | Q13: 0 | R13: 0 | S13: 0 | T13: 0 | U13: 0 | V13: 0 | W13: 0 | X13: 0 | Z13: 11092.5 | AA13: 24060552.2 | AB13: 12735802.5 | AC13: 0 | AD13: 0 | AE13: 44052154.68 | AF13: 0 | AG13: 0 | AH13: 0 | AI13: 0 | AJ13: 0 | AK13: 0 | AL13: 0 | AM13: 0 | AN13: 0 | AO13: 0 | AP13: 0 | AQ13: 0 | AR13: 0 | AS13: 0 | AT13: 0 | AW13: 0 | AX13: 11645.30726 | AY13: 6164.12841 | AZ13: 0 | BA13: 0 | BB13: 25594.30187 | BC13: 0 | BD13: 0 | BE13: 0 | BF13: 0 | BG13: 0 | BH13: 0 | BI13: 0 | BJ13: 0 | BK13: 0 | BL13: 0 | BM13: 0 | BN13: 0 | BO13: 0 | BP13: 0 | BQ13: 0 | BR13: 43403.73754
B14: Residential Two Rate 5d - Bulk | D14: 0 | E14: 0.0484 | F14: 0.0484 | G14: 0 | H14: 0 | I14: 0.0581 | J14: 0 | K14: 0 | L14: 0 | M14: 0 | N14: 0 | O14: 0 | P14: 0 | Q14: 0 | R14: 0 | S14: 0 | T14: 0 | U14: 0 | V14: 0 | W14: 0 | X14: 0 | Z14: 4390.333333 | AA14: 8301630.881 | AB14: 4426249.792 | AC14: 0 | AD14: 0 | AE14: 15263240.75 | AF14: 0 | AG14: 0 | AH14: 0 | AI14: 0 | AJ14: 0 | AK14: 0 | AL14: 0 | AM14: 0 | AN14: 0 | AO14: 0 | AP14: 0 | AQ14: 0 | AR14: 0 | AS14: 0 | AT14: 0 | AW14: 0 | AX14: 4017.989346 | AY14: 2142.304899 | AZ14: 0 | BA14: 0 | BB14: 8867.942873 | BC14: 0 | BD14: 0 | BE14: 0 | BF14: 0 | BG14: 0 | BH14: 0 | BI14: 0 | BJ14: 0 | BK14: 0 | BL14: 0 | BM14: 0 | BN14: 0 | BO14: 0 | BP14: 0 | BQ14: 0 | BR14: 15028.23712
B15: Residential Interval | D15: 0 | E15: 0.0484 | F15: 0.0484 | G15: 0 | H15: 0 | I15: 0.0581 | J15: 0 | K15: 0 | L15: 0 | M15: 0 | N15: 0 | O15: 0 | P15: 0 | Q15: 0 | R15: 0 | S15: 0 | T15: 0 | U15: 0 | V15: 0 | W15: 0 | X15: 0 | Z15: 17426 | AA15: 39819961.33 | AB15: 20716608.26 | AC15: 0 | AD15: 0 | AE15: 52156407.77 | AF15: 0 | AG15: 0 | AH15: 0 | AI15: 0 | AJ15: 0 | AK15: 0 | AL15: 0 | AM15: 0 | AN15: 0 | AO15: 0 | AP15: 0 | AQ15: 0 | AR15: 0 | AS15: 0 | AT15: 0 | AW15: 0 | AX15: 19272.86128 | AY15: 10026.8384 | AZ15: 0 | BA15: 0 | BB15: 30302.87291 | BC15: 0 | BD15: 0 | BE15: 0 | BF15: 0 | BG15: 0 | BH15: 0 | BI15: 0 | BJ15: 0 | BK15: 0 | BL15: 0 | BM15: 0 | BN15: 0 | BO15: 0 | BP15: 0 | BQ15: 0 | BR15: 59602.57259
B16: Residential Interval - Bulk | D16: 0 | E16: 0.0484 | F16: 0.0484 | G16: 0 | H16: 0 | I16: 0.0581 | J16: 0 | K16: 0 | L16: 0 | M16: 0 | N16: 0 | O16: 0 | P16: 0 | Q16: 0 | R16: 0 | S16: 0 | T16: 0 | U16: 0 | V16: 0 | W16: 0 | X16: 0 | Z16: 8943.166667 | AA16: 13037744.42 | AB16: 2033749.777 | AC16: 0 | AD16: 0 | AE16: 14018069.32 | AF16: 0 | AG16: 0 | AH16: 0 | AI16: 0 | AJ16: 0 | AK16: 0 | AL16: 0 | AM16: 0 | AN16: 0 | AO16: 0 | AP16: 0 | AQ16: 0 | AR16: 0 | AS16: 0 | AT16: 0 | AW16: 0 | AX16: 6310.268298 | AY16: 984.3348919 | AZ16: 0 | BA16: 0 | BB16: 8144.498273 | BC16: 0 | BD16: 0 | BE16: 0 | BF16: 0 | BG16: 0 | BH16: 0 | BI16: 0 | BJ16: 0 | BK16: 0 | BL16: 0 | BM16: 0 | BN16: 0 | BO16: 0 | BP16: 0 | BQ16: 0 | BR16: 15439.10146
B17: Residential Two Rate 5d - Controlled Load | D17: 0 | E17: 0 | F17: 0 | G17: 0 | H17: 0 | I17: 0.0581 | J17: 0 | K17: 0 | L17: 0 | M17: 0 | N17: 0 | O17: 0 | P17: 0 | Q17: 0 | R17: 0 | S17: 0 | T17: 0 | U17: 0 | V17: 0 | W17: 0 | X17: 0 | Z17: 3183.666667 | AA17: 0 | AB17: 0 | AC17: 0 | AD17: 0 | AE17: 9287604.931 | AF17: 0 | AG17: 0 | AH17: 0 | AI17: 0 | AJ17: 0 | AK17: 0 | AL17: 0 | AM17: 0 | AN17: 0 | AO17: 0 | AP17: 0 | AQ17: 0 | AR17: 0 | AS17: 10833.816 | AT17: 0 | AW17: 0 | AX17: 0 | AY17: 0 | AZ17: 0 | BA17: 0 | BB17: 5396.098465 | BC17: 0 | BD17: 0 | BE17: 0 | BF17: 0 | BG17: 0 | BH17: 0 | BI17: 0 | BJ17: 0 | BK17: 0 | BL17: 0 | BM17: 0 | BN17: 0 | BO17: 0 | BP17: 0 | BQ17: 0 | BR17: 5396.098465
B18: Residential Two Rate 5d - Bulk - Controlled Load | D18: 0 | E18: 0 | F18: 0 | G18: 0 | H18: 0 | I18: 0.0581 | J18: 0 | K18: 0 | L18: 0 | M18: 0 | N18: 0 | O18: 0 | P18: 0 | Q18: 0 | R18: 0 | S18: 0 | T18: 0 | U18: 0 | V18: 0 | W18: 0 | X18: 0 | Z18: 1228.5 | AA18: 0 | AB18: 0 | AC18: 0 | AD18: 0 | AE18: 3409510.199 | AF18: 0 | AG18: 0 | AH18: 0 | AI18: 0 | AJ18: 0 | AK18: 0 | AL18: 0 | AM18: 0 | AN18: 0 | AO18: 0 | AP18: 0 | AQ18: 0 | AR18: 0 | AS18: 2998.062 | AT18: 0 | AW18: 0 | AX18: 0 | AY18: 0 | AZ18: 0 | BA18: 0 | BB18: 1980.925425 | BC18: 0 | BD18: 0 | BE18: 0 | BF18: 0 | BG18: 0 | BH18: 0 | BI18: 0 | BJ18: 0 | BK18: 0 | BL18: 0 | BM18: 0 | BN18: 0 | BO18: 0 | BP18: 0 | BQ18: 0 | BR18: 1980.925425
B19: Dedicated Circuit | D19: 0 | E19: 0 | F19: 0 | G19: 0 | H19: 0 | I19: 0.0581 | J19: 0 | K19: 0 | L19: 0 | M19: 0 | N19: 0 | O19: 0 | P19: 0 | Q19: 0 | R19: 0 | S19: 0 | T19: 0 | U19: 0 | V19: 0 | W19: 0 | X19: 0 | Z19: 24561.41667 | AA19: 0 | AB19: 0 | AC19: 0 | AD19: 0 | AE19: 39000305.43 | AF19: 0 | AG19: 0 | AH19: 0 | AI19: 0 | AJ19: 0 | AK19: 0 | AL19: 0 | AM19: 0 | AN19: 0 | AO19: 0 | AP19: 0 | AQ19: 0 | AR19: 0 | AS19: 20228.376 | AT19: 0 | AW19: 0 | AX19: 0 | AY19: 0 | AZ19: 0 | BA19: 0 | BB19: 22659.17746 | BC19: 0 | BD19: 0 | BE19: 0 | BF19: 0 | BG19: 0 | BH19: 0 | BI19: 0 | BJ19: 0 | BK19: 0 | BL19: 0 | BM19: 0 | BN19: 0 | BO19: 0 | BP19: 0 | BQ19: 0 | BR19: 22659.17746
B20: Dedicated Circuit - Bulk | D20: 0 | E20: 0 | F20: 0 | G20: 0 | H20: 0 | I20: 0.0581 | J20: 0 | K20: 0 | L20: 0 | M20: 0 | N20: 0 | O20: 0 | P20: 0 | Q20: 0 | R20: 0 | S20: 0 | T20: 0 | U20: 0 | V20: 0 | W20: 0 | X20: 0 | Z20: 1178.916667 | AA20: 0 | AB20: 0 | AC20: 0 | AD20: 0 | AE20: 2514062.492 | AF20: 0 | AG20: 0 | AH20: 0 | AI20: 0 | AJ20: 0 | AK20: 0 | AL20: 0 | AM20: 0 | AN20: 0 | AO20: 0 | AP20: 0 | AQ20: 0 | AR20: 0 | AS20: 333.4692 | AT20: 0 | AW20: 0 | AX20: 0 | AY20: 0 | AZ20: 0 | BA20: 0 | BB20: 1460.670308 | BC20: 0 | BD20: 0 | BE20: 0 | BF20: 0 | BG20: 0 | BH20: 0 | BI20: 0 | BJ20: 0 | BK20: 0 | BL20: 0 | BM20: 0 | BN20: 0 | BO20: 0 | BP20: 0 | BQ20: 0 | BR20: 1460.670308
B21: Non-Residential Single Rate | D21: 0 | E21: 0.0511 | F21: 0.0511 | G21: 0 | H21: 0 | I21: 0 | J21: 0 | K21: 0 | L21: 0 | M21: 0 | N21: 0 | O21: 0 | P21: 0 | Q21: 0 | R21: 0 | S21: 0 | T21: 0 | U21: 0 | V21: 0 | W21: 0 | X21: 0 | Z21: 19454.08333 | AA21: 63403302.59 | AB21: 242573280.7 | AC21: 0 | AD21: 0 | AE21: -1583.494249 | AF21: 0 | AG21: 0 | AH21: 0 | AI21: 0 | AJ21: 0 | AK21: 0 | AL21: 0 | AM21: 0 | AN21: 0 | AO21: 0 | AP21: 0 | AQ21: 0 | AR21: 0 | AS21: 0 | AT21: 0 | AW21: 0 | AX21: 32399.08762 | AY21: 123954.9464 | AZ21: 0 | BA21: 0 | BB21: 0 | BC21: 0 | BD21: 0 | BE21: 0 | BF21: 0 | BG21: 0 | BH21: 0 | BI21: 0 | BJ21: 0 | BK21: 0 | BL21: 0 | BM21: 0 | BN21: 0 | BO21: 0 | BP21: 0 | BQ21: 0 | BR21: 156354.0341
B22: Non-Residential Single Rate - Bulk | D22: 0 | E22: 0.0511 | F22: 0.0511 | G22: 0 | H22: 0 | I22: 0 | J22: 0 | K22: 0 | L22: 0 | M22: 0 | N22: 0 | O22: 0 | P22: 0 | Q22: 0 | R22: 0 | S22: 0 | T22: 0 | U22: 0 | V22: 0 | W22: 0 | X22: 0 | Z22: 5639.5 | AA22: 18161428.32 | AB22: 103351719.7 | AC22: 0 | AD22: 0 | AE22: 0 | AF22: 0 | AG22: 0 | AH22: 0 | AI22: 0 | AJ22: 0 | AK22: 0 | AL22: 0 | AM22: 0 | AN22: 0 | AO22: 0 | AP22: 0 | AQ22: 0 | AR22: 0 | AS22: 0 | AT22: 0 | AW22: 0 | AX22: 9280.489871 | AY22: 52812.72877 | AZ22: 0 | BA22: 0 | BB22: 0 | BC22: 0 | BD22: 0 | BE22: 0 | BF22: 0 | BG22: 0 | BH22: 0 | BI22: 0 | BJ22: 0 | BK22: 0 | BL22: 0 | BM22: 0 | BN22: 0 | BO22: 0 | BP22: 0 | BQ22: 0 | BR22: 62093.21865
B23: Non-Residential Two Rate 5d | D23: 0 | E23: 0.0511 | F23: 0.0511 | G23: 0 | H23: 0 | I23: 0.0581 | J23: 0 | K23: 0 | L23: 0 | M23: 0 | N23: 0 | O23: 0 | P23: 0 | Q23: 0 | R23: 0 | S23: 0 | T23: 0 | U23: 0 | V23: 0 | W23: 0 | X23: 0 | Z23: 11815.83333 | AA23: 36927407.11 | AB23: 283853501.9 | AC23: 0 | AD23: 0 | AE23: 229694052.1 | AF23: 0 | AG23: 0 | AH23: 0 | AI23: 0 | AJ23: 0 | AK23: 0 | AL23: 0 | AM23: 0 | AN23: 0 | AO23: 0 | AP23: 0 | AQ23: 0 | AR23: 0 | AS23: 0 | AT23: 0 | AW23: 0 | AX23: 18869.90503 | AY23: 145049.1395 | AZ23: 0 | BA23: 0 | BB23: 133452.2443 | BC23: 0 | BD23: 0 | BE23: 0 | BF23: 0 | BG23: 0 | BH23: 0 | BI23: 0 | BJ23: 0 | BK23: 0 | BL23: 0 | BM23: 0 | BN23: 0 | BO23: 0 | BP23: 0 | BQ23: 0 | BR23: 297371.2888
B24: Non-Residential Two Rate 5d - Bulk | D24: 0 | E24: 0.0511 | F24: 0.0511 | G24: 0 | H24: 0 | I24: 0.0581 | J24: 0 | K24: 0 | L24: 0 | M24: 0 | N24: 0 | O24: 0 | P24: 0 | Q24: 0 | R24: 0 | S24: 0 | T24: 0 | U24: 0 | V24: 0 | W24: 0 | X24: 0 | Z24: 2020.25 | AA24: 7869817.56 | AB24: 101366372.2 | AC24: 0 | AD24: 0 | AE24: 73917992.83 | AF24: 0 | AG24: 0 | AH24: 0 | AI24: 0 | AJ24: 0 | AK24: 0 | AL24: 0 | AM24: 0 | AN24: 0 | AO24: 0 | AP24: 0 | AQ24: 0 | AR24: 0 | AS24: 0 | AT24: 0 | AW24: 0 | AX24: 4021.476773 | AY24: 51798.21622 | AZ24: 0 | BA24: 0 | BB24: 42946.35384 | BC24: 0 | BD24: 0 | BE24: 0 | BF24: 0 | BG24: 0 | BH24: 0 | BI24: 0 | BJ24: 0 | BK24: 0 | BL24: 0 | BM24: 0 | BN24: 0 | BO24: 0 | BP24: 0 | BQ24: 0 | BR24: 98766.04682
B25: Non-Residential Interval | D25: 0 | E25: 0.0511 | F25: 0.0511 | G25: 0 | H25: 0 | I25: 0.0581 | J25: 0 | K25: 0 | L25: 0 | M25: 0 | N25: 0 | O25: 0 | P25: 0 | Q25: 0 | R25: 0 | S25: 0 | T25: 0 | U25: 0 | V25: 0 | W25: 0 | X25: 0 | Z25: 5293.166667 | AA25: 16963663.91 | AB25: 103718158.6 | AC25: 0 | AD25: 0 | AE25: 77924102.56 | AF25: 0 | AG25: 0 | AH25: 0 | AI25: 0 | AJ25: 0 | AK25: 0 | AL25: 0 | AM25: 0 | AN25: 0 | AO25: 0 | AP25: 0 | AQ25: 0 | AR25: 0 | AS25: 0 | AT25: 0 | AW25: 0 | AX25: 8668.432259 | AY25: 52999.97907 | AZ25: 0 | BA25: 0 | BB25: 45273.90358 | BC25: 0 | BD25: 0 | BE25: 0 | BF25: 0 | BG25: 0 | BH25: 0 | BI25: 0 | BJ25: 0 | BK25: 0 | BL25: 0 | BM25: 0 | BN25: 0 | BO25: 0 | BP25: 0 | BQ25: 0 | BR25: 106942.3149
B26: Non-Residential Interval - Bulk | D26: 0 | E26: 0.0511 | F26: 0.0511 | G26: 0 | H26: 0 | I26: 0.0581 | J26: 0 | K26: 0 | L26: 0 | M26: 0 | N26: 0 | O26: 0 | P26: 0 | Q26: 0 | R26: 0 | S26: 0 | T26: 0 | U26: 0 | V26: 0 | W26: 0 | X26: 0 | Z26: 3179.25 | AA26: 11312092.45 | AB26: 171407388.9 | AC26: 0 | AD26: 0 | AE26: 116576671.4 | AF26: 0 | AG26: 0 | AH26: 0 | AI26: 0 | AJ26: 0 | AK26: 0 | AL26: 0 | AM26: 0 | AN26: 0 | AO26: 0 | AP26: 0 | AQ26: 0 | AR26: 0 | AS26: 0 | AT26: 0 | AW26: 0 | AX26: 5780.479239 | AY26: 87589.17575 | AZ26: 0 | BA26: 0 | BB26: 67731.04609 | BC26: 0 | BD26: 0 | BE26: 0 | BF26: 0 | BG26: 0 | BH26: 0 | BI26: 0 | BJ26: 0 | BK26: 0 | BL26: 0 | BM26: 0 | BN26: 0 | BO26: 0 | BP26: 0 | BQ26: 0 | BR26: 161100.7011
B27: Non-Residential | D27: 0 | E27: 0 | F27: 0 | G27: 0 | H27: 0 | I27: 0 | J27: 0 | K27: 0 | L27: 0 | M27: 0 | N27: 0 | O27: 0 | P27: 0 | Q27: 0.0537 | R27: 0.0537 | S27: 0.0537 | T27: 0 | U27: 0.0537 | V27: 0.0537 | W27: 0.0537 | X27: 0 | Z27: 19 | AA27: 0 | AB27: 0 | AC27: 0 | AD27: 0 | AE27: 0 | AF27: 0 | AG27: 0 | AH27: 0 | AI27: 0 | AJ27: 0 | AK27: 0 | AL27: 0 | AM27: 177181.0341 | AN27: 52838.80625 | AO27: 161086.0138 | AP27: 0 | AQ27: 289615.2537 | AR27: 78584.61479 | AS27: 258432.1713 | AT27: 0 | AW27: 0 | AX27: 0 | AY27: 0 | AZ27: 0 | BA27: 0 | BB27: 0 | BC27: 0 | BD27: 0 | BE27: 0 | BF27: 0 | BG27: 0 | BH27: 0 | BI27: 0 | BJ27: 95.14621531 | BK27: 28.37443895 | BL27: 86.50318939 | BM27: 0 | BN27: 155.5233912 | BO27: 42.19993814 | BP27: 138.778076 | BQ27: 0 | BR27: 546.5252491
B28: Non-Residential - Bulk | D28: 0 | E28: 0 | F28: 0 | G28: 0 | H28: 0 | I28: 0 | J28: 0 | K28: 0 | L28: 0 | M28: 0 | N28: 0 | O28: 0 | P28: 0 | Q28: 0.0484 | R28: 0.0484 | S28: 0.0484 | T28: 0 | U28: 0.0484 | V28: 0.0484 | W28: 0.0484 | X28: 0 | Z28: 11.75 | AA28: 0 | AB28: 0 | AC28: 0 | AD28: 0 | AE28: 0 | AF28: 0 | AG28: 0 | AH28: 0 | AI28: 0 | AJ28: 0 | AK28: 0 | AL28: 0 | AM28: 465439.777 | AN28: 105327.3811 | AO28: 385483.488 | AP28: 0 | AQ28: 592239.6303 | AR28: 129429.4682 | AS28: 471020.0628 | AT28: 0 | AW28: 0 | AX28: 0 | AY28: 0 | AZ28: 0 | BA28: 0 | BB28: 0 | BC28: 0 | BD28: 0 | BE28: 0 | BF28: 0 | BG28: 0 | BH28: 0 | BI28: 0 | BJ28: 225.2728521 | BK28: 50.97845248 | BL28: 186.5740082 | BM28: 0 | BN28: 286.6439811 | BO28: 62.6438626 | BP28: 227.9737104 | BQ28: 0 | BR28: 1040.086867
B29: Non-Residential Two Rate 7d | D29: 0 | E29: 0.0537 | F29: 0.0537 | G29: 0 | H29: 0 | I29: 0.0581 | J29: 0 | K29: 0 | L29: 0 | M29: 0 | N29: 0 | O29: 0 | P29: 0 | Q29: 0 | R29: 0 | S29: 0 | T29: 0 | U29: 0 | V29: 0 | W29: 0 | X29: 0 | Z29: 3178.666667 | AA29: 11335244.92 | AB29: 90595198.8 | AC29: 0 | AD29: 0 | AE29: 26033386.47 | AF29: 0 | AG29: 0 | AH29: 0 | AI29: 0 | AJ29: 0 | AK29: 0 | AL29: 0 | AM29: 0 | AN29: 0 | AO29: 0 | AP29: 0 | AQ29: 0 | AR29: 0 | AS29: 0 | AT29: 0 | AW29: 0 | AX29: 6087.026524 | AY29: 48649.62176 | AZ29: 0 | BA29: 0 | BB29: 15125.39754 | BC29: 0 | BD29: 0 | BE29: 0 | BF29: 0 | BG29: 0 | BH29: 0 | BI29: 0 | BJ29: 0 | BK29: 0 | BL29: 0 | BM29: 0 | BN29: 0 | BO29: 0 | BP29: 0 | BQ29: 0 | BR29: 69862.04582
B30: Non-Residential Two Rate 7d - Bulk | D30: 0 | E30: 0.0537 | F30: 0.0537 | G30: 0 | H30: 0 | I30: 0.0581 | J30: 0 | K30: 0 | L30: 0 | M30: 0 | N30: 0 | O30: 0 | P30: 0 | Q30: 0 | R30: 0 | S30: 0 | T30: 0 | U30: 0 | V30: 0 | W30: 0 | X30: 0 | Z30: 461.9166667 | AA30: 1738179.133 | AB30: 24880327.89 | AC30: 0 | AD30: 0 | AE30: 7330088.474 | AF30: 0 | AG30: 0 | AH30: 0 | AI30: 0 | AJ30: 0 | AK30: 0 | AL30: 0 | AM30: 0 | AN30: 0 | AO30: 0 | AP30: 0 | AQ30: 0 | AR30: 0 | AS30: 0 | AT30: 0 | AW30: 0 | AX30: 933.4021942 | AY30: 13360.73608 | AZ30: 0 | BA30: 0 | BB30: 4258.781403 | BC30: 0 | BD30: 0 | BE30: 0 | BF30: 0 | BG30: 0 | BH30: 0 | BI30: 0 | BJ30: 0 | BK30: 0 | BL30: 0 | BM30: 0 | BN30: 0 | BO30: 0 | BP30: 0 | BQ30: 0 | BR30: 18552.91968
B31: Unmetered Supplies / Public Lighting | D31: 0 | E31: 0.0537 | F31: 0.0537 | G31: 0 | H31: 0 | I31: 0.0581 | J31: 0 | K31: 0 | L31: 0 | M31: 0 | N31: 0 | O31: 0 | P31: 0 | Q31: 0 | R31: 0 | S31: 0 | T31: 0 | U31: 0 | V31: 0 | W31: 0 | X31: 0 | Z31: 1153 | AA31: 1798242.22 | AB31: 8767212.36 | AC31: 0 | AD31: 0 | AE31: 26501222.9 | AF31: 0 | AG31: 0 | AH31: 0 | AI31: 0 | AJ31: 0 | AK31: 0 | AL31: 0 | AM31: 0 | AN31: 0 | AO31: 0 | AP31: 0 | AQ31: 0 | AR31: 0 | AS31: 0 | AT31: 0 | AW31: 0 | AX31: 965.6560721 | AY31: 4707.993037 | AZ31: 0 | BA31: 0 | BB31: 15397.21051 | BC31: 0 | BD31: 0 | BE31: 0 | BF31: 0 | BG31: 0 | BH31: 0 | BI31: 0 | BJ31: 0 | BK31: 0 | BL31: 0 | BM31: 0 | BN31: 0 | BO31: 0 | BP31: 0 | BQ31: 0 | BR31: 21070.85962
B32: Large Two Rate 7d | D32: 0 | E32: 0.0537 | F32: 0.0537 | G32: 0 | H32: 0 | I32: 0.0581 | J32: 0 | K32: 0 | L32: 0 | M32: 0 | N32: 0 | O32: 0 | P32: 0 | Q32: 0 | R32: 0 | S32: 0 | T32: 0 | U32: 0 | V32: 0 | W32: 0 | X32: 0 | Z32: 46.33333333 | AA32: 185795.8578 | AB32: 16545006.7 | AC32: 0 | AD32: 0 | AE32: 4115894.18 | AF32: 0 | AG32: 0 | AH32: 0 | AI32: 0 | AJ32: 0 | AK32: 0 | AL32: 0 | AM32: 0 | AN32: 0 | AO32: 0 | AP32: 0 | AQ32: 0 | AR32: 0 | AS32: 0 | AT32: 0 | AW32: 0 | AX32: 99.77237564 | AY32: 8884.668598 | AZ32: 0 | BA32: 0 | BB32: 2391.334518 | BC32: 0 | BD32: 0 | BE32: 0 | BF32: 0 | BG32: 0 | BH32: 0 | BI32: 0 | BJ32: 0 | BK32: 0 | BL32: 0 | BM32: 0 | BN32: 0 | BO32: 0 | BP32: 0 | BQ32: 0 | BR32: 11375.77549
B33: Large Low Voltage Demand | D33: 0 | E33: 0.0537 | F33: 0.0537 | G33: 0 | H33: 0 | I33: 0.0581 | J33: 0 | K33: 0 | L33: 0 | M33: 0 | N33: 0 | O33: 0 | P33: 0 | Q33: 0 | R33: 0 | S33: 0 | T33: 0 | U33: 0 | V33: 0 | W33: 0 | X33: 0 | Z33: 237.5833333 | AA33: 943965.5717 | AB33: 86845052.88 | AC33: 0 | AD33: 0 | AE33: 68055719 | AF33: 0 | AG33: 0 | AH33: 0 | AI33: 58998.00115 | AJ33: 0 | AK33: 0 | AL33: 0 | AM33: 0 | AN33: 0 | AO33: 0 | AP33: 0 | AQ33: 0 | AR33: 0 | AS33: 0 | AT33: 0 | AW33: 0 | AX33: 506.909512 | AY33: 46635.79339 | AZ33: 0 | BA33: 0 | BB33: 39540.37274 | BC33: 0 | BD33: 0 | BE33: 0 | BF33: 0 | BG33: 0 | BH33: 0 | BI33: 0 | BJ33: 0 | BK33: 0 | BL33: 0 | BM33: 0 | BN33: 0 | BO33: 0 | BP33: 0 | BQ33: 0 | BR33: 86683.07564
B34: Large Low Voltage Demand - Bulk | D34: 0 | E34: 0.0537 | F34: 0.0537 | G34: 0 | H34: 0 | I34: 0.0581 | J34: 0 | K34: 0 | L34: 0 | M34: 0 | N34: 0 | O34: 0 | P34: 0 | Q34: 0 | R34: 0 | S34: 0 | T34: 0 | U34: 0 | V34: 0 | W34: 0 | X34: 0 | Z34: 1276.666667 | AA34: 4531515.5 | AB34: 1044136588 | AC34: 0 | AD34: 0 | AE34: 765822042.6 | AF34: 0 | AG34: 0 | AH34: 0 | AI34: 644001.9563 | AJ34: 0 | AK34: 0 | AL34: 0 | AM34: 0 | AN34: 0 | AO34: 0 | AP34: 0 | AQ34: 0 | AR34: 0 | AS34: 0 | AT34: 0 | AW34: 0 | AX34: 2433.423824 | AY34: 560701.3478 | AZ34: 0 | BA34: 0 | BB34: 444942.6067 | BC34: 0 | BD34: 0 | BE34: 0 | BF34: 0 | BG34: 0 | BH34: 0 | BI34: 0 | BJ34: 0 | BK34: 0 | BL34: 0 | BM34: 0 | BN34: 0 | BO34: 0 | BP34: 0 | BQ34: 0 | BR34: 1008077.378
B35: Large Low Voltage Demand R | D35: 0 | E35: 0.0537 | F35: 0.0537 | G35: 0 | H35: 0 | I35: 0.0581 | J35: 0 | K35: 0 | L35: 0 | M35: 0 | N35: 0 | O35: 0 | P35: 0 | Q35: 0 | R35: 0 | S35: 0 | T35: 0 | U35: 0 | V35: 0 | W35: 0 | X35: 0 | Z35: 0 | AA35: 0 | AB35: 0 | AC35: 0 | AD35: 0 | AE35: 0 | AF35: 0 | AG35: 0 | AH35: 0 | AI35: 0 | AJ35: 0 | AK35: 0 | AL35: 0 | AM35: 0 | AN35: 0 | AO35: 0 | AP35: 0 | AQ35: 0 | AR35: 0 | AS35: 0 | AT35: 0 | AW35: 0 | AX35: 0 | AY35: 0 | AZ35: 0 | BA35: 0 | BB35: 0 | BC35: 0 | BD35: 0 | BE35: 0 | BF35: 0 | BG35: 0 | BH35: 0 | BI35: 0 | BJ35: 0 | BK35: 0 | BL35: 0 | BM35: 0 | BN35: 0 | BO35: 0 | BP35: 0 | BQ35: 0 | BR35: 0
B36: Large Low Voltage Demand G | D36: 0 | E36: 0.0537 | F36: 0.0537 | G36: 0 | H36: 0 | I36: 0.0581 | J36: 0 | K36: 0 | L36: 0 | M36: 0 | N36: 0 | O36: 0 | P36: 0 | Q36: 0 | R36: 0 | S36: 0 | T36: 0 | U36: 0 | V36: 0 | W36: 0 | X36: 0 | Z36: 9 | AA36: 36574.05217 | AB36: 3081721.341 | AC36: 0 | AD36: 0 | AE36: 3464710.497 | AF36: 0 | AG36: 0 | AH36: 0 | AI36: 3072.419247 | AJ36: 0 | AK36: 0 | AL36: 0 | AM36: 0 | AN36: 0 | AO36: 0 | AP36: 0 | AQ36: 0 | AR36: 0 | AS36: 0 | AT36: 0 | AW36: 0 | AX36: 19.64026602 | AY36: 1654.88436 | AZ36: 0 | BA36: 0 | BB36: 2012.996799 | BC36: 0 | BD36: 0 | BE36: 0 | BF36: 0 | BG36: 0 | BH36: 0 | BI36: 0 | BJ36: 0 | BK36: 0 | BL36: 0 | BM36: 0 | BN36: 0 | BO36: 0 | BP36: 0 | BQ36: 0 | BR36: 3687.521425
B37: Large Low Voltage Demand - Bulk R | D37: 0 | E37: 0.0537 | F37: 0.0537 | G37: 0 | H37: 0 | I37: 0.0581 | J37: 0 | K37: 0 | L37: 0 | M37: 0 | N37: 0 | O37: 0 | P37: 0 | Q37: 0 | R37: 0 | S37: 0 | T37: 0 | U37: 0 | V37: 0 | W37: 0 | X37: 0 | Z37: 0 | AA37: 0 | AB37: 0 | AC37: 0 | AD37: 0 | AE37: 0 | AF37: 0 | AG37: 0 | AH37: 0 | AI37: 0 | AJ37: 0 | AK37: 0 | AL37: 0 | AM37: 0 | AN37: 0 | AO37: 0 | AP37: 0 | AQ37: 0 | AR37: 0 | AS37: 0 | AT37: 0 | AW37: 0 | AX37: 0 | AY37: 0 | AZ37: 0 | BA37: 0 | BB37: 0 | BC37: 0 | BD37: 0 | BE37: 0 | BF37: 0 | BG37: 0 | BH37: 0 | BI37: 0 | BJ37: 0 | BK37: 0 | BL37: 0 | BM37: 0 | BN37: 0 | BO37: 0 | BP37: 0 | BQ37: 0 | BR37: 0
B38: Large Low Voltage Demand - Bulk G | D38: 0 | E38: 0.0537 | F38: 0.0537 | G38: 0 | H38: 0 | I38: 0.0581 | J38: 0 | K38: 0 | L38: 0 | M38: 0 | N38: 0 | O38: 0 | P38: 0 | Q38: 0 | R38: 0 | S38: 0 | T38: 0 | U38: 0 | V38: 0 | W38: 0 | X38: 0 | Z38: 157.0833333 | AA38: 635076.8896 | AB38: 99872289.97 | AC38: 0 | AD38: 0 | AE38: 74395708.77 | AF38: 0 | AG38: 0 | AH38: 0 | AI38: 56232.23912 | AJ38: 0 | AK38: 0 | AL38: 0 | AM38: 0 | AN38: 0 | AO38: 0 | AP38: 0 | AQ38: 0 | AR38: 0 | AS38: 0 | AT38: 0 | AW38: 0 | AX38: 341.0362897 | AY38: 53631.41971 | AZ38: 0 | BA38: 0 | BB38: 43223.9068 | BC38: 0 | BD38: 0 | BE38: 0 | BF38: 0 | BG38: 0 | BH38: 0 | BI38: 0 | BJ38: 0 | BK38: 0 | BL38: 0 | BM38: 0 | BN38: 0 | BO38: 0 | BP38: 0 | BQ38: 0 | BR38: 97196.3628
B39: High Voltage Demand | D39: 0 | E39: 0 | F39: 0 | G39: 0 | H39: 0 | I39: 0 | J39: 0 | K39: 0 | L39: 0 | M39: 0 | N39: 0 | O39: 0 | P39: 0 | Q39: 0 | R39: 0 | S39: 0 | T39: 0 | U39: 0 | V39: 0 | W39: 0 | X39: 0 | Z39: 74.66666667 | AA39: 293099.4998 | AB39: 290374567.3 | AC39: 0 | AD39: 0 | AE39: 274124189.8 | AF39: 0 | AG39: 0 | AH39: 0 | AI39: 184555.8469 | AJ39: 0 | AK39: 0 | AL39: 0 | AM39: 0 | AN39: 0 | AO39: 0 | AP39: 0 | AQ39: 0 | AR39: 0 | AS39: 0 | AT39: 0 | AW39: 0 | AX39: 0 | AY39: 0 | AZ39: 0 | BA39: 0 | BB39: 0 | BC39: 0 | BD39: 0 | BE39: 0 | BF39: 0 | BG39: 0 | BH39: 0 | BI39: 0 | BJ39: 0 | BK39: 0 | BL39: 0 | BM39: 0 | BN39: 0 | BO39: 0 | BP39: 0 | BQ39: 0 | BR39: 0
B40: High Voltage Demand D1 | D40: 0 | E40: 0 | F40: 0 | G40: 0 | H40: 0 | I40: 0 | J40: 0 | K40: 0 | L40: 0 | M40: 0 | N40: 0 | O40: 0 | P40: 0 | Q40: 0 | R40: 0 | S40: 0 | T40: 0 | U40: 0 | V40: 0 | W40: 0 | X40: 0 | Z40: 0 | AA40: 0 | AB40: 0 | AC40: 0 | AD40: 0 | AE40: 0 | AF40: 0 | AG40: 0 | AH40: 0 | AI40: 0 | AJ40: 0 | AK40: 0 | AL40: 0 | AM40: 0 | AN40: 0 | AO40: 0 | AP40: 0 | AQ40: 0 | AR40: 0 | AS40: 0 | AT40: 0 | AW40: 0 | AX40: =E40/100*AA40 -> 0 | AY40: =F40/100*AB40 -> 0 | AZ40: =G40/100*AC40 -> 0 | BA40: =H40/100*AD40 -> 0 | BB40: =I40/100*AE40 -> 0 | BC40: =J40/100*AF40 -> 0 | BD40: =K40/100*AG40 -> 0 | BE40: =L40/100*AH40 -> 0 | BF40: 0 | BG40: 0 | BH40: 0 | BI40: 0 | BJ40: 0 | BK40: 0 | BL40: 0 | BM40: 0 | BN40: 0 | BO40: 0 | BP40: 0 | BQ40: 0 | BR40: 0
B41: High Voltage Demand R | D41: 0 | E41: 0 | F41: 0 | G41: 0 | H41: 0 | I41: 0 | J41: 0 | K41: 0 | L41: 0 | M41: 0 | N41: 0 | O41: 0 | P41: 0 | Q41: 0 | R41: 0 | S41: 0 | T41: 0 | U41: 0 | V41: 0 | W41: 0 | X41: 0 | Z41: 0 | AA41: 0 | AB41: 0 | AC41: 0 | AD41: 0 | AE41: 0 | AF41: 0 | AG41: 0 | AH41: 0 | AI41: 0 | AJ41: 0 | AK41: 0 | AL41: 0 | AM41: 0 | AN41: 0 | AO41: 0 | AP41: 0 | AQ41: 0 | AR41: 0 | AS41: 0 | AT41: 0 | AW41: 0 | AX41: 0 | AY41: 0 | AZ41: 0 | BA41: 0 | BB41: 0 | BC41: 0 | BD41: 0 | BE41: 0 | BF41: 0 | BG41: =N41*AJ41 -> 0 | BH41: =O41*AK41 -> 0 | BI41: =P41*AL41 -> 0 | BJ41: 0 | BK41: 0 | BL41: 0 | BM41: 0 | BN41: 0 | BO41: 0 | BP41: 0 | BQ41: 0 | BR41: 0
B42: High Voltage Demand G | D42: 0 | E42: 0 | F42: 0 | G42: 0 | H42: 0 | I42: 0 | J42: 0 | K42: 0 | L42: 0 | M42: 0 | N42: 0 | O42: 0 | P42: 0 | Q42: 0 | R42: 0 | S42: 0 | T42: 0 | U42: 0 | V42: 0 | W42: 0 | X42: 0 | Z42: 1 | AA42: 4071.058015 | AB42: 5726004.328 | AC42: 0 | AD42: 0 | AE42: 2653280.342 | AF42: 0 | AG42: 0 | AH42: 0 | AI42: 3440.25 | AJ42: 0 | AK42: 0 | AL42: 0 | AM42: 0 | AN42: 0 | AO42: 0 | AP42: 0 | AQ42: 0 | AR42: 0 | AS42: 0 | AT42: 0 | AW42: 0 | AX42: 0 | AY42: 0 | AZ42: 0 | BA42: 0 | BB42: 0 | BC42: 0 | BD42: 0 | BE42: 0 | BF42: 0 | BG42: 0 | BH42: 0 | BI42: 0 | BJ42: 0 | BK42: 0 | BL42: 0 | BM42: 0 | BN42: 0 | BO42: 0 | BP42: 0 | BQ42: 0 | BR42: 0
B43: Subtransmission Demand | D43: 0 | E43: 0 | F43: 0 | G43: 0 | H43: 0 | I43: 0 | J43: 0 | K43: 0 | L43: 0 | M43: 0 | N43: 0 | O43: 0 | P43: 0 | Q43: 0 | R43: 0 | S43: 0 | T43: 0 | U43: 0 | V43: 0 | W43: 0 | X43: 0 | Z43: 7 | AA43: 28497.4061 | AB43: 71510214.99 | AC43: 0 | AD43: 0 | AE43: 40129199.15 | AF43: 0 | AG43: 0 | AH43: 0 | AI43: 71571.93167 | AJ43: 0 | AK43: 0 | AL43: 0 | AM43: 0 | AN43: 0 | AO43: 0 | AP43: 0 | AQ43: 0 | AR43: 0 | AS43: 0 | AT43: 0 | AW43: 0 | AX43: 0 | AY43: 0 | AZ43: 0 | BA43: 0 | BB43: 0 | BC43: 0 | BD43: 0 | BE43: 0 | BF43: 0 | BG43: 0 | BH43: 0 | BI43: 0 | BJ43: 0 | BK43: 0 | BL43: 0 | BM43: 0 | BN43: 0 | BO43: 0 | BP43: 0 | BQ43: 0 | BR43: 0
AW44: 0 | AX44: 0 | AY44: 0 | AZ44: 0 | BA44: 0 | BB44: 0 | BC44: 0 | BD44: 0 | BE44: 0 | BF44: 0 | BG44: 0 | BH44: 0 | BI44: 0 | BJ44: 0 | BK44: 0 | BL44: 0 | BM44: 0 | BN44: 0 | BO44: 0 | BP44: 0 | BQ44: 0 | BR44: 0
AW45: 0 | AX45: 0 | AY45: 0 | AZ45: 0 | BA45: 0 | BB45: 0 | BC45: 0 | BD45: 0 | BE45: 0 | BF45: 0 | BG45: 0 | BH45: 0 | BI45: 0 | BJ45: 0 | BK45: 0 | BL45: 0 | BM45: 0 | BN45: 0 | BO45: 0 | BP45: 0 | BQ45: 0 | BR45: 0
AW46: 0 | AX46: 0 | AY46: 0 | AZ46: 0 | BA46: 0 | BB46: 0 | BC46: 0 | BD46: 0 | BE46: 0 | BF46: 0 | BG46: 0 | BH46: 0 | BI46: 0 | BJ46: 0 | BK46: 0 | BL46: 0 | BM46: 0 | BN46: 0 | BO46: 0 | BP46: 0 | BQ46: 0 | BR46: 0
AW47: 0 | AX47: 0 | AY47: 0 | AZ47: 0 | BA47: 0 | BB47: 0 | BC47: 0 | BD47: 0 | BE47: 0 | BF47: 0 | BG47: 0 | BH47: 0 | BI47: 0 | BJ47: 0 | BK47: 0 | BL47: 0 | BM47: 0 | BN47: 0 | BO47: 0 | BP47: 0 | BQ47: 0 | BR47: 0
AW48: 0 | AX48: 0 | AY48: 0 | AZ48: 0 | BA48: 0 | BB48: 0 | BC48: 0 | BD48: 0 | BE48: 0 | BF48: 0 | BG48: 0 | BH48: 0 | BI48: 0 | BJ48: 0 | BK48: 0 | BL48: 0 | BM48: 0 | BN48: 0 | BO48: 0 | BP48: 0 | BQ48: 0 | BR48: 0
AW49: 0 | AX49: 0 | AY49: 0 | AZ49: 0 | BA49: 0 | BB49: 0 | BC49: 0 | BD49: 0 | BE49: 0 | BF49: 0 | BG49: 0 | BH49: 0 | BI49: 0 | BJ49: 0 | BK49: 0 | BL49: 0 | BM49: 0 | BN49: 0 | BO49: 0 | BP49: 0 | BQ49: 0 | BR49: 0
AW50: 0 | AX50: 0 | AY50: 0 | AZ50: 0 | BA50: 0 | BB50: 0 | BC50: 0 | BD50: 0 | BE50: 0 | BF50: 0 | BG50: 0 | BH50: 0 | BI50: 0 | BJ50: 0 | BK50: 0 | BL50: 0 | BM50: 0 | BN50: 0 | BO50: 0 | BP50: 0 | BQ50: 0 | BR50: 0
AW51: 0 | AX51: 0 | AY51: 0 | AZ51: 0 | BA51: 0 | BB51: 0 | BC51: 0 | BD51: 0 | BE51: 0 | BF51: 0 | BG51: 0 | BH51: 0 | BI51: 0 | BJ51: 0 | BK51: 0 | BL51: 0 | BM51: 0 | BN51: 0 | BO51: 0 | BP51: 0 | BQ51: 0 | BR51: 0
AW52: 0 | AX52: 0 | AY52: 0 | AZ52: 0 | BA52: 0 | BB52: 0 | BC52: 0 | BD52: 0 | BE52: 0 | BF52: 0 | BG52: 0 | BH52: 0 | BI52: 0 | BJ52: 0 | BK52: 0 | BL52: 0 | BM52: 0 | BN52: 0 | BO52: 0 | BP52: 0 | BQ52: 0 | BR52: 0
AW53: 0 | AX53: 0 | AY53: 0 | AZ53: 0 | BA53: 0 | BB53: 0 | BC53: 0 | BD53: 0 | BE53: 0 | BF53: 0 | BG53: 0 | BH53: 0 | BI53: 0 | BJ53: 0 | BK53: 0 | BL53: 0 | BM53: 0 | BN53: 0 | BO53: 0 | BP53: 0 | BQ53: 0 | BR53: 0
AW54: 0 | AX54: 0 | AY54: 0 | AZ54: 0 | BA54: 0 | BB54: 0 | BC54: 0 | BD54: 0 | BE54: 0 | BF54: 0 | BG54: 0 | BH54: 0 | BI54: 0 | BJ54: 0 | BK54: 0 | BL54: 0 | BM54: 0 | BN54: 0 | BO54: 0 | BP54: 0 | BQ54: 0 | BR54: 0
AW55: 0 | AX55: 0 | AY55: 0 | AZ55: 0 | BA55: 0 | BB55: 0 | BC55: 0 | BD55: 0 | BE55: 0 | BF55: 0 | BG55: 0 | BH55: 0 | BI55: 0 | BJ55: 0 | BK55: 0 | BL55: 0 | BM55: 0 | BN55: 0 | BO55: 0 | BP55: 0 | BQ55: 0 | BR55: 0
AW56: 0 | AX56: 0 | AY56: 0 | AZ56: 0 | BA56: 0 | BB56: 0 | BC56: 0 | BD56: 0 | BE56: 0 | BF56: 0 | BG56: 0 | BH56: 0 | BI56: 0 | BJ56: 0 | BK56: 0 | BL56: 0 | BM56: 0 | BN56: 0 | BO56: 0 | BP56: 0 | BQ56: 0 | BR56: 0
AW57: 0 | AX57: 0 | AY57: 0 | AZ57: 0 | BA57: 0 | BB57: 0 | BC57: 0 | BD57: 0 | BE57: 0 | BF57: 0 | BG57: 0 | BH57: 0 | BI57: 0 | BJ57: 0 | BK57: 0 | BL57: 0 | BM57: 0 | BN57: 0 | BO57: 0 | BP57: 0 | BQ57: 0 | BR57: 0
AW58: 0 | AX58: 0 | AY58: 0 | AZ58: 0 | BA58: 0 | BB58: 0 | BC58: 0 | BD58: 0 | BE58: 0 | BF58: 0 | BG58: 0 | BH58: 0 | BI58: 0 | BJ58: 0 | BK58: 0 | BL58: 0 | BM58: 0 | BN58: 0 | BO58: 0 | BP58: 0 | BQ58: 0 | BR58: 0
AW59: 0 | AX59: 0 | AY59: 0 | AZ59: 0 | BA59: 0 | BB59: 0 | BC59: 0 | BD59: 0 | BE59: 0 | BF59: 0 | BG59: 0 | BH59: 0 | BI59: 0 | BJ59: 0 | BK59: 0 | BL59: 0 | BM59: 0 | BN59: 0 | BO59: 0 | BP59: 0 | BQ59: 0 | BR59: 0
AW60: 0 | AX60: 0 | AY60: 0 | AZ60: 0 | BA60: 0 | BB60: 0 | BC60: 0 | BD60: 0 | BE60: 0 | BF60: 0 | BG60: 0 | BH60: 0 | BI60: 0 | BJ60: 0 | BK60: 0 | BL60: 0 | BM60: 0 | BN60: 0 | BO60: 0 | BP60: 0 | BQ60: 0 | BR60: 0
AW61: 0 | AX61: 0 | AY61: 0 | AZ61: 0 | BA61: 0 | BB61: 0 | BC61: 0 | BD61: 0 | BE61: 0 | BF61: 0 | BG61: 0 | BH61: 0 | BI61: 0 | BJ61: 0 | BK61: 0 | BL61: 0 | BM61: 0 | BN61: 0 | BO61: 0 | BP61: 0 | BQ61: 0 | BR61: 0
AW62: 0 | AX62: 0 | AY62: 0 | AZ62: 0 | BA62: 0 | BB62: 0 | BC62: 0 | BD62: 0 | BE62: 0 | BF62: 0 | BG62: 0 | BH62: 0 | BI62: 0 | BJ62: 0 | BK62: 0 | BL62: 0 | BM62: 0 | BN62: 0 | BO62: 0 | BP62: 0 | BQ62: 0 | BR62: 0
AW63: 0 | AX63: 0 | AY63: 0 | AZ63: 0 | BA63: 0 | BB63: 0 | BC63: 0 | BD63: 0 | BE63: 0 | BF63: 0 | BG63: 0 | BH63: 0 | BI63: 0 | BJ63: 0 | BK63: 0 | BL63: 0 | BM63: 0 | BN63: 0 | BO63: 0 | BP63: 0 | BQ63: 0 | BR63: 0
AW64: 0 | AX64: 0 | AY64: 0 | AZ64: 0 | BA64: 0 | BB64: 0 | BC64: 0 | BD64: 0 | BE64: 0 | BF64: 0 | BG64: 0 | BH64: 0 | BI64: 0 | BJ64: 0 | BK64: 0 | BL64: 0 | BM64: 0 | BN64: 0 | BO64: 0 | BP64: 0 | BQ64: 0 | BR64: 0
AW65: 0 | AX65: 0 | AY65: 0 | AZ65: 0 | BA65: 0 | BB65: 0 | BC65: 0 | BD65: 0 | BE65: 0 | BF65: 0 | BG65: 0 | BH65: 0 | BI65: 0 | BJ65: 0 | BK65: 0 | BL65: 0 | BM65: 0 | BN65: 0 | BO65: 0 | BP65: 0 | BQ65: 0 | BR65: 0
AW66: 0 | AX66: 0 | AY66: 0 | AZ66: 0 | BA66: 0 | BB66: 0 | BC66: 0 | BD66: 0 | BE66: 0 | BF66: 0 | BG66: 0 | BH66: 0 | BI66: 0 | BJ66: 0 | BK66: 0 | BL66: 0 | BM66: 0 | BN66: 0 | BO66: 0 | BP66: 0 | BQ66: 0 | BR66: 0
AW67: 0 | AX67: 0 | AY67: 0 | AZ67: 0 | BA67: 0 | BB67: 0 | BC67: 0 | BD67: 0 | BE67: 0 | BF67: 0 | BG67: 0 | BH67: 0 | BI67: 0 | BJ67: 0 | BK67: 0 | BL67: 0 | BM67: 0 | BN67: 0 | BO67: 0 | BP67: 0 | BQ67: 0 | BR67: 0
Z68: =SUM(Z8:Z67) -> 353639.0833 | AA68: 885078063.5 | AB68: 3058643310 | AC68: 0 | AD68: 0 | AE68: 1970437900 | AF68: 0 | AG68: 0 | AH68: 0 | AI68: 1021872.644 | AJ68: 0 | AK68: 0 | AL68: 0 | AM68: =SUM(AM8:AM67) -> 822918.2309 | AN68: 565869.6162 | AO68: 826562.6226 | AP68: 0 | AQ68: 1162444.318 | AR68: 689566.182 | AS68: 1175437.55 | AT68: 0 | AW68: =SUM(AW8:AW67) -> 0 | AX68: 450358.8566 | AY68: 1409782.793 | AZ68: 0 | BA68: 0 | BB68: 960702.6424 | BC68: 0 | BD68: 0 | BE68: 0 | BF68: 0 | BG68: 0 | BH68: 0 | BI68: 0 | BJ68: =SUM(BJ8:BJ67) -> 416.1663973 | BK68: 295.7067317 | BL68: 421.700202 | BM68: 0 | BN68: 591.0109879 | BO68: 360.1033658 | BP68: 585.2445765 | BQ68: 0 | BR68: 2823514.224
AW70: 0 | AX70: 0 | AY70: 0 | AZ70: 0 | BA70: 0 | BB70: 0 | BC70: 0 | BD70: 0 | BE70: 0 | BF70: 0 | BG70: 0 | BH70: 0 | BI70: 0 | BJ70: 0 | BK70: 0 | BL70: 0 | BM70: 0 | BN70: 0 | BO70: 0 | BP70: 0 | BQ70: 0 | BR70: 0
B73: Definitions
B74: All information must be reported consistent the terms used in the DNSPs pricing proposal

Sheet 29. Juris cost audit template
B1: =Cover!E22 -> CitiPower Pty
B2: Jurisdictional amount cost audit template
B3: =Cover!E26 -> 2014
B5: Templates 24 to 29 collect data required for annual pricing proposals. T-2 requires actual information for the reporting year.
B7: Jurisdictional scheme amounts | F7: t-2 actual
B8: PFIT | F8: 2508091.78
B9: TFIT | F9: 646122.45
B10: <DNSP to insert for future schemes>
E11: Total | F11: =SUM(F8:F10) -> 3154214.23
B13: Where the following definitions apply
B14: PFIT | C14: Premium feed-in tariff payments
B15: TFIT | C15: Transitional feed-in tariff payments

Sheet Income Work Paper
B4: CitiPower
B5: Income Statement Workpaper
B6: 2014
D9: Directly Attributed ($'000 nominal) | L9: Allocated ($'000 nominal) | T9: Numeric QTY of each allocator (%) | AB9: Description of Allocation Basis | AC9: Reason for choosing this basis
B10: Income Statement Workpaper | C10: CitiPower | D10: SCS | E10: AMI | F10: PL (EF) | G10: PL (NE) | H10: ACS (F) | I10: ACS (Q) | J10: Neg'd | K10: Un'reg | L10: SCS | M10: AMI | N10: PL (EF) | O10: PL (NE) | P10: ACS (F) | Q10: ACS (Q) | R10: Neg'd | S10: Un'reg | T10: SCS | U10: AMI | V10: PL (EF) | W10: PL (NE) | X10: ACS (F) | Y10: ACS (Q) | Z10: Neg'd | AA10: Un'reg | AD10: check
B12: Distribution Revenue | C12: -308156.3724 | D12: -254485.6561 | E12: -39623.20664 | F12: -1771.474078 | G12: -2752.811502 | H12: -5972.255693 | I12: -3456.46758 | J12: -94.51791 | K12: 0 | AD12: =C12-SUM(D12:S12) -> 0.01711128914
B13: TUOS revenue | C13: 0 | AD13: 0
B14: Cross boundary revenue | C14: 0 | AD14: 0
B15: Jurisdictional Scheme Amounts | C15: 0 | AD15: 0
B16: Profit from sale of Fixed Assets | C16: 0 | AD16: 0
B17: Customer Contributions | C17: 0 | AD17: 0
B18: Interest income | C18: -225.30643 | L18: -206.8057165 | M18: -16.87791043 | N18: -0.536823985 | O18: -1.085979037 | P18: 0 | Q18: 0 | R18: 0 | S18: 0 | T18: =L18/SUM($L$18:$S$18) -> 0.9178864383 | U18: =M18/SUM($L$18:$S$18) -> 0.07491091323 | V18: 0.002382639435 | W18: 0.004820009076 | X18: 0 | Y18: 0 | Z18: 0 | AA18: 0 | AB18: Allocation based on RAB balances calculated using the methodology and assumptions consistent with the published AER roll forward model | AC18: Most appropriate allocator | AD18: 0
B19: Revenue from use of RAB assets for non-SCS purposes | C19: 0 | AD19: 0
B20: Other Revenue | C20: -479.68051 | D20: -1353.52263 | E20: 3611.23983 | F20: 48.368 | G20: 0 | H20: 0 | I20: 0 | J20: 0 | K20: -2785.76571 | AD20: -1.818989404e-12
B22: Total Revenue | C22: =SUM(C12:C20) -> -308861.3593 | D22: =SUM(D12:D20) -> -255839.1787 | E22: =SUM(E12:E20) -> -36011.96681 | F22: =SUM(F12:F20) -> -1723.106078 | G22: -2752.811502 | H22: -5972.255693 | I22: -3456.46758 | J22: -94.51791 | K22: -2785.76571 | L22: =SUM(L12:L20) -> -206.8057165 | M22: =SUM(M12:M20) -> -16.87791043 | N22: =SUM(N12:N20) -> -0.536823985 | O22: -1.085979037 | P22: 0 | Q22: 0 | R22: 0 | S22: 0 | AD22: =SUM(AD12:AD20) -> 0.01711128914
B24: Maintenance | C24: 38974.38224 | D24: 31071.68328 | E24: 912.8298254 | F24: 1046.280702 | G24: 2116.594902 | H24: 1930.550826 | I24: 1896.442701 | J24: 0 | K24: 0 | AD24: =C24-SUM(D24:S24) -> 0
B25: TUOS costs | C25: 0 | H25: 0 | AD25: 0
B26: Cross boundary costs | C26: 0
B27: Jurisdictional Scheme Amounts | C27: 0 | AD27: 0
B28: Operating Expenses (Billing & Revenue Collection - Allocated) | C28: 2386.293746 | L28: 2120.03829 | M28: 123.4259036 | N28: 11.76317115 | O28: 23.79654718 | P28: 56.0292675 | Q28: 51.24056648 | R28: 0 | S28: 0 | T28: 0.8884230173 | U28: 0.05172284585 | V28: 0.004929473234 | W28: 0.009972178496 | X28: 0.0234796188 | Y28: 0.02147286627 | Z28: 0 | AA28: 0 | AB28: Allocation based on Expenditure Split | AC28: Reflective of the costs incurred in providing different categories of distribution services | AD28: 0
B29: Operating Expenses (Advertising/Marketing - Allocated) | C29: 6.324149437 | L29: 5.618519925 | M29: 0.3271030065 | N29: 0.03117472538 | O29: 0.06306554702 | P29: 0.148488618 | Q29: 0.1357976151 | R29: 0 | S29: 0 | T29: 0.8884230173 | U29: 0.05172284585 | V29: 0.004929473234 | W29: 0.009972178496 | X29: 0.0234796188 | Y29: 0.02147286627 | Z29: 0 | AA29: 0 | AB29: Allocation based on Expenditure Split | AC29: Reflective of the costs incurred in providing different categories of distribution services | AD29: 0
B30: Operating Expenses (Customer Service - Allocated) | C30: 3236.747944 | L30: 2875.601375 | M30: 167.413815 | N30: 15.95546236 | O30: 32.27742825 | P30: 75.9976079 | Q30: 69.50225576 | R30: 0 | S30: 0 | T30: 0.8884230173 | U30: 0.05172284585 | V30: 0.004929473234 | W30: 0.009972178496 | X30: 0.0234796188 | Y30: 0.02147286627 | Z30: 0 | AA30: 0 | AB30: Allocation based on Expenditure Split | AC30: Reflective of the costs incurred in providing different categories of distribution services | AD30: 0
B31: Operating Expenses (Directly Attributable) | C31: 34980.9558 | D31: 20909.34828 | E31: 8357.185497 | F31: 0 | G31: 0 | H31: 3053.250513 | I31: 2661.17151 | J31: 0 | K31: 0 | AD31: 0
B32: Depreciation | C32: 103351.9109 | D32: 84256.09457 | E32: 18368.9858 | F32: 240.4358748 | G32: 486.3946603 | H32: 0 | I32: 0 | J32: 0 | K32: 0 | AD32: 0
B33: Finance Charges | C33: -22.70507 | D33: -22.70507 | E33: 0 | F33: 0 | G33: 0 | H33: 0 | I33: 0 | J33: 0 | K33: 0 | L33: 0 | M33: 0 | N33: 0 | O33: 0 | P33: 0 | Q33: 0 | R33: 0 | S33: 0 | AD33: 0
B34: Loss from sale of Fixed Assets | C34: 46.16064 | D34: 46.16064 | AD34: 0
B35: Impairment Losses (Nature) | C35: 0 | AD35: 0
B36: Costs from use of RAB assets for non-SCS purposes | C36: 0 | AD36: 0
B37: Other | C37: 0 | AD37: 0
B39: Profit before Tax (PBT) | C39: =SUM(C22:C37) -> -125901.289 | D39: =SUM(D22:D37) -> -119578.597 | E39: -8372.965685 | F39: -436.389501 | G39: -149.8219392 | H39: -988.4543529 | I39: 1101.146631 | J39: -94.51791 | K39: -2785.76571 | L39: 4794.452468 | M39: 274.2889111 | N39: 27.21298425 | O39: 55.05106193 | P39: 132.175364 | Q39: 120.8786199 | R39: 0 | S39: 0 | AD39: =C39-SUM(D39:S39) -> 0.01711128917
B41: Income Tax Expense / (Benefit) | C41: 1834.393536 | L41: 1672.415704 | M41: 117.9984768 | N41: 5.961740053 | O41: 1.38082053 | P41: 12.47606482 | Q41: -17.805022 | R41: 1.377134774 | S41: 40.5888665 | T41: =L41/$C$41 -> 0.9116995187 | U41: =M41/$C$41 -> 0.06432560651 | V41: =N41/$C$41 -> 0.003249978774 | W41: 0.0007527395311 | X41: 0.006801193188 | Y41: -0.009706217153 | Z41: 0.0007507302806 | AA41: 0.02212658609 | AB41: Allocated based on Proportion of Profit/Loss in each segment | AC41: Most appropriate allocator | AD41: =C41-SUM(D41:S41) -> -0.0002493130805
B43: Profit after Tax | C43: =SUM(C39:C41) -> -124066.8954 | D43: -119578.597 | E43: -8372.965685 | F43: -436.389501 | G43: -149.8219392 | H43: -988.4543529 | I43: 1101.146631 | J43: -94.51791 | K43: -2785.76571 | L43: 6466.868172 | M43: 392.2873879 | N43: 33.1747243 | O43: 56.43188246 | P43: 144.6514288 | Q43: 103.0735979 | R43: 1.377134774 | S43: 40.5888665 | AD43: =C43-SUM(D43:S43) -> 0.0168619761
C46: 0

Sheet Services Fee Work Paper
A2: Corporate Services Fee Allocations Workpaper
F7: 'Numeric QTY of each allocator (%) | O7: ($'000 nominal) | X7: Description of Allocation Basis
B8: Services Fee Workpaper | C8: Statutory $000's | D8: Related Party / Amount Capitalised | E8: CitiPower $000 | F8: SCS | G8: AMI | H8: PL (EF) | I8: PL (NE) | J8: ACS (F) | K8: ACS (Q) | L8: Neg'd | M8: Un'reg | N8: Total % | O8: SCS | P8: AMI | Q8: PL (EF) | R8: PL (NE) | S8: ACS (F) | T8: ACS (Q) | U8: Neg'd | V8: Un'reg | W8: Total $
B10: Maintenance | C10: 4332.411686 | E10: 4332.411686 | O10: 3390.46121 | P10: 112.92184 | Q10: 126.0388621 | R10: 254.9728886 | S10: 221.3146086 | T10: 226.7022772 | U10: 0 | V10: 0 | W10: =SUM(O10:V10) -> 4332.411686 | X10: Directly attributable | Z10: =E10-W10 -> 0
B11: Network operating costs | C11: 411.1653565 | E11: 411.1653565 | O11: 0 | P11: 411.1653565 | Q11: 0 | R11: 0 | S11: 0 | T11: 0 | U11: 0 | V11: 0 | W11: =SUM(O11:V11) -> 411.1653565 | X11: Directly attributable | Z11: =E11-W11 -> 0
B12: Meter data services | C12: 0 | E12: 0 | O12: 0 | P12: 0 | Q12: 0 | R12: 0 | S12: 0 | T12: 0 | U12: 0 | V12: 0 | W12: 0 | X12: Directly attributable to AMI | Z12: 0
B13: Billing and revenue collection - CIS | C13: 664.235267 | E13: 664.235267 | O13: 664.235267 | P13: 0 | Q13: 0 | R13: 0 | S13: 0 | T13: 0 | U13: 0 | V13: 0 | W13: 664.235267 | X13: Directly attributable to SCS | Z13: 0
B14: Billing and revenue collection | C14: 2386.293746 | E14: 2386.293746 | F14: 0.8884230173 | G14: 0.05172284585 | H14: 0.004929473234 | I14: 0.009972178496 | J14: 0.0234796188 | K14: 0.02147286627 | L14: 0 | M14: 0 | N14: 1 | O14: 2120.03829 | P14: 123.4259036 | Q14: 11.76317115 | R14: 23.79654718 | S14: 56.0292675 | T14: 51.24056648 | U14: 0 | V14: 0 | W14: 2386.293746 | X14: Allocation based on 2012 expenditure split | Z14: 0
B15: Advertising & Marketing | C15: 6.324149437 | E15: 6.324149437 | F15: 0.8884230173 | G15: 0.05172284585 | H15: 0.004929473234 | I15: 0.009972178496 | J15: 0.0234796188 | K15: 0.02147286627 | L15: 0 | M15: 0 | N15: 1 | O15: 5.618519925 | P15: 0.3271030065 | Q15: 0.03117472538 | R15: 0.06306554702 | S15: 0.148488618 | T15: 0.1357976151 | U15: 0 | V15: 0 | W15: 6.324149437 | X15: Allocation based on 2012 expenditure split | Z15: 0
B16: Customer Service | C16: 3236.747944 | E16: 3236.747944 | F16: 0.8884230173 | G16: 0.05172284585 | H16: 0.004929473234 | I16: 0.009972178496 | J16: 0.0234796188 | K16: 0.02147286627 | L16: 0 | M16: 0 | N16: 1 | O16: 2875.601375 | P16: 167.413815 | Q16: 15.95546236 | R16: 32.27742825 | S16: 75.9976079 | T16: 69.50225576 | U16: 0 | V16: 0 | W16: 3236.747944 | X16: Allocation based on 2012 expenditure split | Z16: 0
B17: Regulatory | C17: 2117.984495 | D17: 2117.984495 | E17: 0 | O17: 0 | P17: 0 | Q17: 0 | R17: 0 | S17: 0 | T17: 0 | U17: 0 | V17: 0 | W17: 0 | X17: Directly attributable | Z17: 0
B18: Other | C18: 20003.27905 | D18: 17765.33705 | E18: 2237.942001 | O18: 2746.271161 | P18: 0 | S18: -508.32916 | W18: 2237.942001 | X18: Directly attributable to SCS & ACS | Z18: 5.456968211e-12
Z19: 0
B20: TOTAL | C20: =SUM(C10:C19) -> 33158.44169 | D20: =SUM(D10:D19) -> 19883.32154 | E20: =SUM(E10:E19) -> 13275.12015 | O20: =SUM(O10:O19) -> 11802.22582 | P20: =SUM(P10:P19) -> 815.2540182 | Q20: =SUM(Q10:Q19) -> 153.7886703 | R20: 311.1099296 | S20: -154.8391874 | T20: 347.580897 | U20: 0 | V20: 0 | W20: =SUM(W10:W19) -> 13275.12015 | Z20: 0
Z21: 0
Z22: 0

Sheet Adjustments Work Paper
C2: CITIPOWER - Statutory to Regulatory Reconciliation
C5: Description | D5: Audited Statutory Accounts | E5: Adjustments | F5: Distribution business | H5: Adjustments | I5: Basis
C7: Distribution Revenue | D7: 308156.3724 | E7: 0 | F7: 308156.3724
C8: TUOS revenue | D8: 70755.29311 | E8: -70755.29311 | F8: 0 | H8: Pass-through transmission revenues | I8: Revenues not earned by the distribution business and only passed through from retailers to the transmission businesses. | J8: =E8 -> -70755.29311
C9: Cross boundary revenue | D9: 3618.49768 | E9: -3618.49768 | F9: 0 | H9: Pass-through transmission revenues | I9: As above | J9: =E9 -> -3618.49768
C10: Jurisdictional Scheme Amounts | D10: 2823.84083 | E10: -2823.84083 | F10: 0 | H10: Pass-through transmission revenues | I10: As above | J10: -2823.84083
C11: Profit from sale of Fixed Assets | D11: -46.16064 | E11: 46.16064 | F11: 0 | H11: Transfer Proceeds from Sale of Assets to Loss from sale of Fixed Assets | I11: This is not an adjustment between the statutory and regulatory accounts expenditure. It is merely a product of the reporting templates with an offsetting entry in Loss from sale of Fixed Assets | J11: 46.16064
C12: Customer Contributions | D12: 24152.12042 | E12: -24152.12042 | F12: 0 | H12: Transfer Customer Contribution Revenue to Fixed assets | I12: Customer contributions are netted off against capex for regulatory purposes to ensure that the there is no further recovery of this portion of capex through the RAB. This is consistent with RAB Roll forward methodology | J12: -24152.12042
C13: Interest income | D13: 225.30643 | E13: 0 | F13: 225.30643
C14: Revenue from use of RAB assets for non-SCS purposes | D14: 0 | E14: 0 | F14: 0
C15: Other Revenue | D15: 28445.56914 | E15: -27965.88863 | F15: 479.68051 | H15: Other Revenue | I15: Other Revenue | J15: =SUM(J16:J18) -> -27965.88863
H16: Resources Contract Revenue | I16: Under the respective resources agreements, we provide staff to other entities. In turn, these entities pay us for wages and salaries (including bonuses, allowances, leave payments, fringe benefits, fringe benefit tax, payroll tax, superannuation payments and work cover payments); operating expenses that are incidental to the provision of the services (including phone calls and stationery); and motor vehicle expenses relating to provision of the services. The pricing of services under the resources services agreement is at cost. There are no margins, management fees, incentive payments or overhead costs associated with the resources agreement. | J16: -27461.91026
H17: Activity Allocations treated as Revenue in Statutory Reporting transfer to Non-Regulated | I17: Net time confirmations and operating expenditure charged between internal related parties. Reflects work performed by / peformed on behalf of the distribution business. | J17: -24.06582638
H18: Other revenue relating to non-distribution services | I18: Revenues earned from non distrubition services or assets | J18: -479.91254
C19: Total revenue | D19: =SUM(D7:D15) -> 438130.8394 | E19: =SUM(E7:E15) -> -129269.48 | F19: =SUM(F7:F15) -> 308861.3593
C20: TUOS costs | D20: 70755.29311 | E20: -70755.29311 | F20: 0 | H20: Pass-through transmission charges | I20: Costs not incurred by the distribution business and only passed through from transmission businesses to retailers. | J20: =E20 -> -70755.29311
C21: Cross boundary costs | D21: 3618.49768 | E21: -3618.49768 | F21: 0 | H21: Pass-through transmission charges | I21: As above | J21: -3618.49768
C22: Jurisdictional Scheme Amounts | D22: 2823.84083 | E22: -2823.84083 | F22: 0 | H22: Pass-through transmission charges | I22: As above | J22: -2823.84083
C23: Maintenance | D23: 38974.38224 | E23: 0 | F23: 38974.38224
C24: Operating Expenses | D24: 64732.21033 | E24: -24121.88869 | F24: 40610.32164
C25: Network Operating Costs | D25: 12257.14343 | E25: 2823.148016 | F25: 15080.29144 | H25: Network Operating Costs | I25: Network Operating Costs | J25: =SUM(J26:J27) -> 2823.148016
H26: Capital to Operating adjustment in relation to ACS activities | I26: Certain assets are treated as capex for statutory purposes though not for regulatory purposes. i.e. ACS Capex where revenues are recovered directly from the customer. | J26: 2955.399186
H27: Non-network operating costs transfer to Other Standard Control Services | I27: This is not an adjustment between the statutory and regulatory accounts expenditure. It is merely a product of the reporting templates with an offsetting entry in Other - Standard Control Services . | J27: -132.25117
C28: Billing & Revenue Collection | D28: 3327.466637 | E28: 0 | F28: 3327.466637
C29: Advertising/Marketing | D29: 5.618519925 | E29: 0 | F29: 5.618519925
C30: Customer Service | D30: 2875.601375 | E30: 0 | F30: 2875.601375
C31: Regulatory | D31: 0 | E31: 0 | F31: 0
C32: Regulatory Reset | D32: 469.92144 | E32: 0 | F32: 469.92144
C33: IT | D33: 0 | E33: 0 | F33: 0
C34: Licence fee | D34: 6.8445 | E34: 0 | F34: 6.8445
C35: GSL payments | D35: 77.11 | E35: 0 | F35: 77.11
C36: Non-network alternatives costs | D36: 0 | E36: 0 | F36: 0
C37: Debt raising costs | D37: 0 | E37: 0 | F37: 0
C38: Other - Standard Control Services | D38: 31012.78926 | E38: -26945.03671 | F38: 4067.752549 | H38: Other - Standard Control Services | I38: Other - Standard Control Services | J38: =SUM(J39:J42) -> -26945.03671
H39: Resources Contract Cost | I39: Under the respective resources agreements, we provide staff to other entities. In turn, these entities pay us for wages and salaries (including bonuses, allowances, leave payments, fringe benefits, fringe benefit tax, payroll tax, superannuation payments and work cover payments); operating expenses that are incidental to the provision of the services (including phone calls and stationary); and motor vehicle expenses relating to provision of the services. The pricing of services under the resources services agreement is at cost. There are no margins, management fees, incentive payments or overhead costs associated with the resources agreement. | J39: -27461.91026
H40: Non-network operating costs transfer to Other Standard Control Services | I40: This is not an adjustment between the statutory and regulatory accounts expenditure. It is merely a product of the reporting templates with an offsetting entry in Network Operating Costs. | J40: 132.25117
H41: Capital to Operating adjustment in relation to ACS activities | I41: Certain assets are treated as capex for statutory purposes though not for regulatory purposes. i.e. ACS Capex where revenues are recovered directly from the customer. | J41: 388.31024
H42: Other items relating to non-distribution services | I42: Net expenditures relating to a a related party for non distribution services. | J42: -3.68786
C43: AMI | D43: 8648.352319 | E43: 0 | F43: 8648.352319
C44: Public Lighting | D44: 83.8868492 | E44: 0 | F44: 83.8868492
C45: Alternative control -other | D45: 5967.476007 | E45: 0 | F45: 5967.476007
C46: Negotiated services | D46: 0 | E46: 0 | F46: 0
C47: Unregulated services | D47: 0 | E47: 0 | F47: 0
C48: Depreciation | D48: 71829.27869 | E48: 31522.63222 | F48: 103351.9109 | H48: The adjustment between statutory and regulatory disclosures relates to the differing methodologies on which depreciation is calculated. | I48: The Depreciation balance has been calculated using the methodology and assumptions consistent with the published AER roll forward model. - For regulatory purposes the asset base is revalued for inflation. - Certain assets are treated as capex for statutory purposes though not for regulatory purposes. i.e. ACS Capex where revenues are recovered directly from the customer. | J48: =E48 -> 31522.63222
C49: Finance Charges | D49: 9508.62148 | E49: -9531.32655 | F49: -22.70507 | H49: Interest expense not relating to the Distribution Business. | I49: Inter company interest calculated on inter company loans which is non-cash. Revenue is not reflective of costs incurred. | J49: =E49 -> -9531.32655
C50: Loss from sale of Fixed Assets | D50: 0 | E50: 46.16064 | F50: 46.16064 | H50: Transfer Proceeds from Sale of Assets to Loss from sale of Fixed Assets | I50: This is not an adjustment between the statutory and regulatory accounts expenditure. It is merely a product of the reporting templates with an offsetting entry in Profit from sale of Fixed Assets | J50: =E50 -> 46.16064
C51: Impairment Losses (Nature) | D51: 0 | E51: 0 | F51: 0
C52: Costs from use of RAB assets for non-SCS purposes | D52: 0 | E52: 0 | F52: 0
C53: Other | D53: 0 | E53: 0 | F53: 0
C54: Profit before Tax (PBT) | D54: =D19-SUM(D20:D24,D48:D53) -> 175888.715 | E54: =E19-SUM(E20:E24,E48:E53) -> -49987.42602 | F54: =F19-SUM(F20:F24,F48:F53) -> 125901.289
C55: Income Tax Expenses /(Benefit) | D55: 2562.715 | E55: -728.3214643 | F55: 1834.393536 | H55: Re-apportionment of income tax expense | I55: Income tax expense as reported in the Statutory Accounts has been apportioned based on the ratio of profit before tax disclosed per regulatory segment in the Income Statement. | J55: =E55 -> -728.3214643
C56: Profit after tax | D56: =D54-D55 -> 173326 | E56: -49259.10455 | F56: 124066.8954

Sheet Amendments
B2: Amendments - RIN rationalisation
B4: Information no longer required from Annual Reporting RIN | D4: Reasoning
B5: (workbook/worksheet/table/row-column-cell)
B6: Financial information templates
B7: 1b. Provisions | C7: Entire worksheet | D7: Information in Benchmarking RIN T3.3
B8: 2. Demand and Revenue | C8: T1/T2 Standard control services revenue, yr t,t-1 | D8: Information in Benchmarking RIN Worksheet 2
C9: T5/T6 Public lighting revenue, yr t,t-1 | D9: Information in Benchmarking RIN Worksheet 2
B10: 4a. Capex overheads | C10: Entire worksheets | D10: Information in Category analysis RIN Worksheets 2.10
B11: 4b. Capex O’head margins
B12: 7a. Maintenance O’head | C12: Entire worksheets | D12: Information in Category analysis RIN Worksheets 2.10
B13: 7b. Main O’head margins
B14: 9a. Operating O’head | C14: Entire worksheets | D14: Information in Category analysis RIN Worksheets 2.10
B15: 9b. Opex O’head margins
B16: 10. Overheads allocation | C16: Entire worksheet | D16: Information in Category analysis RIN Worksheet 2.10
B17: 11. Total Overheads | C17: Entire worksheet | D17: Information in Category analysis RIN Worksheet 2.10
B18: 12. Cost categories | C18: Entire worksheet | D18: Information in Category analysis RIN Worksheet 2.12
